Workbook

Sheet AER CF (hidden)
B1: AER CONDITIONAL FORMATTING
B4: CONDITIONAL FORMATTING MAP
F5: =INDEX(dms_CF_3.6.1, MATCH(dms_TradingName,dms_CF_TradingName))="Y" | G5: =INDEX(dms_CF_3.6.5, MATCH(dms_TradingName,dms_CF_TradingName))="Y" | H5: =INDEX(dms_CF_3.6.6, MATCH(dms_TradingName,dms_CF_TradingName))="Y" | I5: =INDEX(dms_CF_3.6.7.1, MATCH(dms_TradingName,dms_CF_TradingName))="Y" | J5: =INDEX(dms_CF_3.6.7.2, MATCH(dms_TradingName,dms_CF_TradingName))="Y" | K5: =INDEX(dms_CF_3.6.7.3, MATCH(dms_TradingName,dms_CF_TradingName))="Y" | L5: =INDEX(dms_CF_3.6.7.4, MATCH(dms_TradingName,dms_CF_TradingName))="Y" | M5: =INDEX(dms_CF_3.6.8, MATCH(dms_TradingName,dms_CF_TradingName))="Y" | N5: =INDEX(dms_CF_4.1, MATCH(dms_TradingName,dms_CF_TradingName))="Y" | O5: =INDEX(dms_CF_6.6.1, MATCH(dms_TradingName,dms_CF_TradingName))="Y" | P5: =INDEX(dms_CF_6.8, MATCH(dms_TradingName,dms_CF_TradingName))="Y" | Q5: =INDEX(dms_CF_7.12, MATCH(dms_TradingName,dms_CF_TradingName))="Y" | R5: =INDEX(dms_CF_8.1_A, MATCH(dms_TradingName,dms_CF_TradingName))="Y" | S5: =INDEX(dms_CF_8.1_B, MATCH(dms_TradingName,dms_CF_TradingName))="Y" | T5: =INDEX(dms_CF_8.1_Neg, MATCH(dms_TradingName,dms_CF_TradingName))="Y" | U5: =INDEX(dms_CF_4.4.1_Neg, MATCH(dms_TradingName,dms_CF_TradingName))="Y"
B6: dms_CF_TradingName | C6: JurisdictionList | D6: Sector | E6: Segment | F6: dms_CF_3.6.1 | G6: dms_CF_3.6.5 | H6: dms_CF_3.6.6 | I6: dms_CF_3.6.7.1 | J6: dms_CF_3.6.7.2 | K6: dms_CF_3.6.7.3 | L6: dms_CF_3.6.7.4 | M6: dms_CF_3.6.8 | N6: dms_CF_4.1 | O6: dms_CF_6.6.1 | P6: dms_CF_6.8 | Q6: dms_CF_7.12 | R6: dms_CF_8.1_A | S6: dms_CF_8.1_B | T6: dms_CF_8.1_Neg | U6: dms_CF_4.4.1 | V6: dms_CF_MAIFI_flag | W6: Spare1 | X6: Spare2
B7: ActewAGL Distribution | C7: ACT | D7: Electricity | E7: Distribution | G7: Y | I7: Y | J7: Y | K7: N | L7: Y | M7: N | N7: N | O7: N | P7: Y | Q7: Y | R7: N | S7: Y | T7: Y | U7: N | V7: N | W7: N | X7: N
B8: Ausgrid | C8: NSW | D8: Electricity | E8: Distribution | G8: Y | I8: N | J8: N | K8: N | L8: Y | M8: N | N8: N | O8: N | P8: Y | Q8: Y | R8: N | S8: Y | T8: Y | U8: N | V8: N | W8: N | X8: N
B9: AusNet (D) | C9: Vic | D9: Electricity | E9: Distribution | G9: N | I9: N | J9: N | K9: N | L9: N | M9: N | N9: Y | O9: N | P9: Y | Q9: N | R9: N | S9: N | T9: Y | U9: N | V9: N | W9: N | X9: N
B10: AusNet (T) | C10: Vic | D10: Electricity | E10: Transmission | G10: N | I10: N | J10: N | K10: N | L10: N | M10: N | N10: Y | O10: N | P10: Y | Q10: N | R10: N | S10: N | T10: Y | U10: N | V10: N | W10: N | X10: N
B11: CitiPower | C11: Vic | D11: Electricity | E11: Distribution | G11: N | I11: N | J11: N | K11: N | L11: N | M11: N | N11: Y | O11: N | P11: Y | Q11: N | R11: N | S11: N | T11: Y | U11: N | V11: N | W11: N | X11: N
B12: Directlink | C12: Qld | D12: Electricity | E12: Transmission | G12: N | I12: N | J12: N | K12: N | L12: N | M12: N | N12: Y | O12: N | P12: Y | Q12: N | R12: N | S12: Y | T12: Y | U12: N | V12: N | W12: N | X12: N
B13: ElectraNet | C13: SA | D13: Electricity | E13: Transmission | G13: N | I13: N | J13: N | K13: N | L13: N | M13: N | N13: Y | O13: N | P13: Y | Q13: N | R13: N | S13: Y | T13: Y | U13: N | V13: N | W13: N | X13: N
B14: Endeavour Energy | C14: NSW | D14: Electricity | E14: Distribution | G14: Y | I14: N | J14: N | K14: N | L14: Y | M14: N | N14: N | O14: N | P14: Y | Q14: Y | R14: N | S14: Y | T14: Y | U14: Y | V14: N | W14: N | X14: N
B15: Energex | C15: Qld | D15: Electricity | E15: Distribution | G15: Y | I15: N | J15: N | K15: N | L15: N | M15: N | N15: N | O15: N | P15: Y | Q15: Y | R15: N | S15: Y | T15: Y | U15: Y | V15: N | W15: N | X15: N
B16: Ergon Energy | C16: Qld | D16: Electricity | E16: Distribution | G16: Y | I16: N | J16: N | K16: N | L16: N | M16: N | N16: N | O16: N | P16: Y | Q16: Y | R16: N | S16: Y | T16: Y | U16: N | V16: N | W16: N | X16: N
B17: Essential Energy | C17: NSW | D17: Electricity | E17: Distribution | G17: Y | I17: N | J17: N | K17: N | L17: Y | M17: N | N17: N | O17: N | P17: Y | Q17: Y | R17: N | S17: Y | T17: Y | U17: N | V17: N | W17: N | X17: N
B18: Jemena Electricity | C18: Vic | D18: Electricity | E18: Distribution | G18: N | I18: N | J18: N | K18: N | L18: N | M18: N | N18: Y | O18: N | P18: Y | Q18: N | R18: N | S18: N | T18: Y | U18: N | V18: N | W18: N | X18: N
B19: Murraylink | C19: SA | D19: Electricity | E19: Transmission | G19: N | I19: N | J19: N | K19: N | L19: N | M19: N | N19: Y | O19: N | P19: Y | Q19: N | R19: N | S19: Y | T19: Y | U19: N | V19: N | W19: N | X19: N
B20: Power and Water | C20: NT | D20: Electricity | E20: Distribution | G20: N | I20: N | J20: Y | K20: N | L20: N | M20: Y | N20: Y | O20: Y | P20: Y | Q20: Y | R20: N | S20: Y | T20: Y | U20: N | V20: N | W20: N | X20: N
B21: Powercor Australia | C21: Vic | D21: Electricity | E21: Distribution | G21: N | I21: N | J21: N | K21: N | L21: N | M21: N | N21: Y | O21: N | P21: Y | Q21: N | R21: N | S21: N | T21: Y | U21: N | V21: N | W21: N | X21: N
B22: Powerlink | C22: Qld | D22: Electricity | E22: Transmission | G22: N | I22: N | J22: N | K22: N | L22: N | M22: N | N22: Y | O22: N | P22: Y | Q22: N | R22: N | S22: Y | T22: Y | U22: N | V22: N | W22: N | X22: N
B23: SA Power Networks | C23: SA | D23: Electricity | E23: Distribution | G23: Y | I23: N | J23: N | K23: N | L23: N | M23: N | N23: Y | O23: N | P23: Y | Q23: Y | R23: Y | S23: Y | T23: N | U23: N | V23: N | W23: N | X23: N
B24: TasNetworks (D) | C24: Tas | D24: Electricity | E24: Distribution | G24: Y | I24: N | J24: N | K24: N | L24: N | M24: N | N24: N | O24: N | P24: Y | Q24: Y | R24: N | S24: Y | T24: Y | U24: N | V24: N | W24: N | X24: N
B25: TasNetworks (T) | C25: Tas | D25: Electricity | E25: Transmission | G25: N | I25: N | J25: N | K25: N | L25: N | M25: N | N25: Y | O25: N | P25: Y | Q25: N | R25: N | S25: Y | T25: Y | U25: N | V25: N | W25: N | X25: N
B26: TransGrid | C26: NSW | D26: Electricity | E26: Transmission | G26: N | I26: N | J26: N | K26: N | L26: N | M26: N | N26: Y | O26: N | P26: Y | Q26: N | R26: N | S26: Y | T26: Y | U26: N | V26: N | W26: N | X26: N
B27: United Energy | C27: Vic | D27: Electricity | E27: Distribution | G27: N | I27: N | J27: N | K27: N | L27: N | M27: N | N27: Y | O27: N | P27: Y | Q27: N | R27: N | S27: N | T27: Y | U27: N | V27: N | W27: N | X27: N
B30: Confidential
B31: Amended
B33: Worksheet 6.2 STPIS reliability
B34: Formula | F34: Applied to:
B36: =INDEX(dms_CBD_flag,MATCH(dms_TradingName,dms_TradingName_List))="NO" | F36: $D$11,$D$17,$D$23,$D$33,$D$39,$D$45,$D$55,$D$61,$D$67,$D$77,$D$83,$D$89
B37: =INDEX(dms_Urban_flag,MATCH(dms_TradingName,dms_TradingName_List))="NO" | F37: $D$12,$D$18,$D$24,$D$56,$D$62,$D$78,$D$68,$D$84
B38: =INDEX(dms_ShortRural_flag,MATCH(dms_TradingName,dms_TradingName_List))="NO" | F38: $D$13,$D$19,$D$25,$D$57,$D$63,$D$69,$D$79,$D$85
B39: =INDEX(dms_LongRural_flag,MATCH(dms_TradingName,dms_TradingName_List))="NO" | F39: $D$14,$D$20,$D$26,$D$58,$D$64,$D$65,$D$70,$D$71,$D$80,$D$86
B40: =INDEX(dms_FeederType_5_flag,MATCH(dms_TradingName,dms_TradingName_List))="NO" | F40: $D$87,$D$81,$D$71,$D$65,$D$59,$D$49,$D$43,$D$37,$D$21,$D$15
B41: =dms_MAIFI_Flag="No" | F41: $D$55:$D$72
B44: Business & other details
B45: =(INDEX(dms_Model_Span,MATCH(dms_Model,dms_Model_List))>1)
B46: =(INDEX(dms_Model_Span,MATCH(dms_Model,dms_Model_List))=1)
B49: STYLES IN USE
C50: dms_1
C51: dms_2
C52: dms_3
C53: dms_4
C54: dms_5
C55: dms_NUM
C56: dms_NUM%
C57: dms_Row_Locked
C58: dms_Row1
C59: dms_Row2
C60: dms_T1
C61: dms_T2
C62: dms_BH
C63: dms_BY1
C64: dms_BY2
C65: dms_GH
C66: dms_GY1
C67: dms_GY2
C126: 0
C127: =IFERROR(IF(dms_Model="ARR",(MAX(0,dms_0608_LastRow-dms_0608_OffsetRows)),"not an ARR"),"0") -> not an ARR

Sheet AER NRs (hidden)
B1: AER NAMED RANGES
B3: DROP DOWN SELECTORS USED IN WORKBOOKS
B5: COVER SHEET | C5: dms_DataQuality_List | D5: dms_Confid_status_List
C6: -- select -- | D6: -- select --
C7: Actual | D7: Public
C8: Estimate | D8: Confidential
C9: Consolidated
C12: For all files either AER or business needs to be able to specify the type of submission | D12: For PTRM & RFM templates we must provide a choice in case they change their form of control - otherwise it is drawn from the business specific lookup table above.
C13: dms_SourceList | D13: dms_FormControl_Choices
C14: -- select -- | D14: Revenue cap
C15: After appeal | D15: Revenue yield
C16: Draft decision | D16: Weighted average price cap
C17: Final decision
C18: PTRM update 1
C19: PTRM update 2
C20: PTRM update 3
C21: PTRM update 4
C22: PTRM update 5
C23: PTRM update 6
C24: PTRM update 7
C25: Regulatory proposal
C26: Reporting
C27: Revised regulatory proposal
K30: This is used to create an image to insert on 6.3 STPIS sheet - not for dropdown lists.
B31: CA & RESET RINS DNSP | C31: dms_DNSP_020301_SubstationType | D31: dms_DNSP_020301_ProjectType | E31: dms_DNSP_020301_ProjectTrigger | F31: dms_DNSP_020302_ProjectType | G31: dms_DNSP_020302_ProjectTrigger | H31: dms_STPIS_Exclusion_List | I31: dms_Reason_Interruption | J31: dms_Reason_Interruption_Detailed | K31: Reason for interruption | N31: dms_N0205_AssetType
C32: Subtransmission substation | D32: New substation establishment | E32: Demand growth | F32: New line on new route - single circuit | G32: Demand growth | H32: Weather | I32: Animal | J32: Animal impact | K32: Animal | L32: Animal impact | N32: Cast Iron
C33: Zone substation | D33: Substation upgrade - capacity | E33: Voltage issues | F33: New line on new route - dual circuit | G33: Voltage issues | H33: Equipment failure | I33: Asset failure | J33: Animal nesting/burrowing, etc and other | L33: Animal nesting/burrowing, etc and other | N33: PVC
C34: Switching station | D34: Substation upgrade - voltage | E34: Reactive power issue | F34: New line on new route - other | G34: Reactive power issue | H34: Operational error | I34: Other | J34: Other | L34: Other | N34: Polyamide
C35: Other | D35: Other | E35: Fault level issues | F35: Line rebuild over existing route - single circuit | G35: Fault level issues | H35: Vegetation | I35: Overloads | J35: LV | K35: Asset failure | L35: LV | N35: High density polyethylene (80)
E36: Safety | F36: Line rebuild over existing route - dual circuit | G36: Net market benefit | H36: Animals | I36: Planned | J36: Distribution substation | L36: Distribution substation | N36: High density polyethylene (100)
E37: Environment | F37: Reconductor - Single circuit | G37: Safety | H37: Third party impacts | I37: Network business | J37: HV | L37: HV | N37: High density polyethylene (250)
E38: Other | F38: Reconductor - Dual circuit | G38: Environment | H38: Transmission failure | I38: Third party | J38: Zone substation | L38: Zone substation | N38: High density polyethylene (575)
F39: Reconductor - Other | G39: Other | H39: Load shedding | I39: Unknown | J39: Subtransmission | L39: Subtransmission | N39: Medium density polyethylene
F40: Line upgrade - raising/retensoring | H40: Inter-distributor connection failure | I40: Vegetation | J40: insert description of 'other' | K40: Other | L40: insert description of 'other' | N40: Unprotected steel
F41: Line upgrade - voltage upgrade | H41: Other | I41: Weather | J41: Network error | K41: Overloads | N41: Protected steel
F42: Line upgrade - capacity | I42: 2 - STPIS Exclusion (3.3)(a) | J42: Switching and protection error | K42: Planned | N42: Other
F43: String spare circuit | I43: 3 - STPIS Exclusion (3.3)(a) | J43: Fire | K43: Network business | L43: Network error
F44: Other | I44: 4 - STPIS Exclusion (3.3)(a) | J44: Other | L44: Switching and protection error
I45: 5 - STPIS Exclusion (3.3)(a) | J45: Dig-in | K45: Third party | L45: Fire
I46: 6 - STPIS Exclusion (3.3)(a) | J46: Unauthorised access | L46: Other
I47: 7 - STPIS Exclusion (3.3)(a) | J47: Vehicle impact | L47: Dig-in
J48: Unknown | L48: Unauthorised access
J49: Blow-in/Fall-in - NSP responsibility | L49: Vehicle impact
J50: Grow-in - NSP responsibility | K50: Unknown | L50: Unknown
J51: Blow-in/Fall-in - Other responsible party | K51: Vegetation | L51: Blow-in/Fall-in - NSP responsibility
J52: Grow-in - Other responsible party | L52: Grow-in - NSP responsibility
L53: Blow-in/Fall-in - Other responsible party
L54: Grow-in - Other responsible party
K55: Weather
K56: 2 - STPIS Exclusion (3.3)(a)
K57: 3 - STPIS Exclusion (3.3)(a)
K58: 4 - STPIS Exclusion (3.3)(a)
K59: 5 - STPIS Exclusion (3.3)(a)
K60: 6 - STPIS Exclusion (3.3)(a)
K61: 7 - STPIS Exclusion (3.3)(a)
B64: CA & RESET RINS TNSP | C64: dms_TNSP_0203_SubstationType | D64: dms_TNSP_020301_ProjectType | E64: dms_TNSP_020301_ProjectTrigger | F64: dms_TNSP_020302_ProjectType | G64: dms_TNSP_0203_ProjectTrigger
C65: Terminal station | D65: New substation establishment | E65: Demand growth | F65: New line on new route - single circuit | G65: Demand growth
C66: Switching station | D66: Capacity upgrade | E66: Voltage issues | F66: New line on new route - dual circuit | G66: Voltage issues
C67: Transmission substation | D67: Voltage upgrade | E67: Reactive power issue | F67: New line on new route - other | G67: Reactive power issue
C68: Other | D68: Other | E68: Fault level issues | F68: Line rebuild over existing route - single circuit | G68: Fault level issues
E69: Net market benefit | F69: Line rebuild over existing route - dual circuit | G69: Net market benefit
E70: Safety | F70: Reconductor - Single circuit | G70: Safety
E71: Environment | F71: Reconductor - Dual circuit | G71: Environment
E72: Other | F72: Reconductor - Other | G72: Other
F73: Line upgrade - raising/retensoring
F74: Line upgrade - voltage upgrade
F75: Line upgrade - capacity
F76: String spare circuit
F77: Other
B81: NAMED RANGES USED IN ETL PROCESS
B83: CA & RESET RINS DNSP ONLY | C83: dms_020303_01_UOM | D83: dms_020501_01_UOM | E83: dms_020501_02_UOM | F83: dms_020501_03_UOM | G83: dms_020501_04_UOM | H83: dms_020701_01_UOM | I83: dms_020701_02_UOM | J83: dms_020701_01_Rows | K83: dms_040102_01_UOM | L83: dms_040102_04_UOM | M83: dms_E050201_UOM | N83: dms_E050302_UOM
C84: Circuit line length in km | D84: 0's | E84: 0's | F84: 0's | G84: 0's | H84: km | I84: km | J84: Route line length within zone | K84: 0's | L84: days | M84: per metre per connection | N84: metres per connection
C85: Circuit line length in km | D85: 0's | E85: 0's | F85: 0's | G85: 0's | H85: 0's | I85: 0's | J85: Number of maintenance spans | K85: 0's | L85: 0's | M85: per service per connection | N85: number per connection
C86: Circuit line length in km | D86: MVA added | E86: MVA added | F86: MVA added | G86: MVA added | H86: km | I86: km | J86: Total length of maintenance spans | K86: 0's | L86: $0s | M86: number per connection | N86: number per connection
C87: Circuit line length in km | D87: 0's | E87: 0's | F87: 0's | G87: 0's | H87: km | I87: km | J87: Length of vegetation corridors | K87: $0s | L87: 0's
C88: Number | D88: total spend $0s | E88: total spend $0s | F88: total spend $0s | G88: total spend $0s | H88: 0's | I88: 0's | J88: Average number of trees per maintenance span
C89: Number | D89: net circuit km added | E89: net circuit km added | F89: net circuit km added | G89: net circuit km added | H89: years | I89: years | J89: Average frequency of cutting cycle
C90: Number | D90: total spend $0s | E90: total spend $0s | F90: total spend $0s | G90: total spend $0s
D91: net circuit km added | E91: net circuit km added | F91: net circuit km added | G91: net circuit km added
D92: total spend $0s | E92: total spend $0s | F92: total spend $0s | G92: total spend $0s
D93: 0's | F93: $0s
D94: 0's
D95: 0's
D96: $0s
B99: CA & RESET RINS TNSP ONLY | C99: dms_020701_01_UOM
C100: km
C101: 0's
C102: km
C103: 0's
C104: km
C105: metres
C106: years
B109: CA & RESET RINS DNSP & TNSP | C109: dms_020603_01_UOM
C110: 0's
C111: 0's
C112: 0's
C113: 0's
C114: (per cent)
B117: EB & RESET RINS DNSP ONLY | C117: dms_030601_01_UOM | D117: dms_030601_02_UOM | E117: dms_030701_01_UOM | F117: dms_030702_01_UOM | G117: dms_030703_01_UOM
C118: minutes/customer | D118: minutes/customer | E118: Customer / km | F118: % | G118: km
C119: minutes/customer | D119: minutes/customer | E119: MWh/customer | F119: Number of spans
C120: interruptions/customer | D120: interruptions/customer | E120: kVA / customer | F120: Number of spans
C121: interruptions/customer | D121: interruptions/customer | F121: Number of spans
F122: Number of spans
F123: Years
F124: Years
F125: Trees
F126: Trees
F127: Defects
F128: Defects
F129: Spans
F130: km
F131: Spans
C133: WHEN INSERTING COVER SHEET INTO A TNSP FILE - APPLY THESE NAMED RANGES
B134: EB & RESET RINS TNSP ONLY | C134: dms_030601_01_UOM | E134: dms_030701_01_UOM | F134: dms_030702_01_UOM
C135: % | E135: Number of spans | F135: km
C136: number | E136: Years | F136: %
C137: number | E137: Trees | F137: km
C138: % | E138: Defects | F138: number
C139: number | E139: Number of spans
C140: number | E140: km
C141: % | E141: km
C142: number | E142: Number of spans
C143: number
C144: %
C145: number
C146: %
C147: number
C148: %
C149: number
B151: EB & RESET RINS DNSP & TNSP | C151: dms_EB_RAB_PIT
C152: Beginning of year
C153: End of year
C154: End of year
C155: End of year
C156: End of year
C157: End of year
B159: ARR DNSP ONLY | C159: dms_030605_UOM | D159: dms_03060703_UOM | E159: Spare | F159: Spare
C160: number | D160: number
C161: number | D161: number
C162: number | D162: number
C163: number | D163: number
C164: number | D164: (per cent)
C165: number
C166: number
C167: number
C168: number
C169: number
C170: number
C171: number
C172: (per cent)
C173: (per cent)
B175: RFM | C175: dms_Beg | D175: dms_Mid | E175: dms_End
C176: Beginning of year | D176: Mid year | E176: End of Year
B178: PTRM | C178: dms_PTRM_RAB_PIT | D178: dms_PTRM_TAB_PIT | E178: DMS_Xfactor
C179: Beginning of year | D179: Beginning of year | E179: x factors
C180: End of year | D180: End of year
C181: End of year | D181: End of year
C182: End of year | D182: End of year
C183: End of year
B186: STPIS & MIC NAMED RANGES
B188: These "row descriptions" are the column headings in the various templates but become row descriptions in the ETL process
B190: Table 6.3 sustained interruptions - row descriptions | C190: dms_060301_CustNo_Affected_Row | D190: dms_060301_Avg_Duration_Sustained_Int_Row | E190: dms_060301_Effect_unplanned_SAIDI_Row | F190: dms_060301_Effect_unplanned_SAIFI_Row
C191: Number of customers affected by the interruption | D191: Average duration of sustained customer interruption | E191: Effect on unplanned SAIDI | F191: Effect on unplanned SAIFI
B194: Table 6.1 telephone answering - row descriptions and start date | C194: dms_060101_Rows | D194: dms_060102_Rows | E194: dms_060101_StartDateTxt
C195: Total number of calls (after removing excluded events) | D195: Number of calls answered within 30 seconds (after excluding excluded events) | E195: =dms_060701_StartDateTxt -> 1-Jul-2014
B198: Table 6.8.1 - row descriptions | C198: dms_060801_01_Rows | D198: dms_060801_02_Rows | E198: dms_060801_03_Rows | F198: dms_060801_04_Rows
C199: Number of interruptions | D199: Duration of interruptions | E199: Total unplanned minutes off supply | F199: Effect on unplanned MAIFI
B202: Table 7.9.4 - market impact component - row descriptions | C202: dms_070904_01_Rows | D202: without exclusions | E202: with exclusions
B205: These headings (Lists) are determined from the INDEX/MATCH function on the NSP selected on the Business & other details sheet
B207: Table 6.7.1 - daily performance data - unplanned - MAIFI -- row descriptions and header named range values | C207: dms_060701_Feeder_Header_Lvl4 | D207: =INDEX(dms_FeederName_1,MATCH(dms_TradingName,dms_TradingName_List)) -> CBD | E207: =INDEX(dms_FeederName_1,MATCH(dms_TradingName,dms_TradingName_List)) -> CBD | F207: =INDEX(dms_FeederName_2,MATCH(dms_TradingName,dms_TradingName_List)) -> Urban | G207: =INDEX(dms_FeederName_2,MATCH(dms_TradingName,dms_TradingName_List)) -> Urban | H207: =INDEX(dms_FeederName_3,MATCH(dms_TradingName,dms_TradingName_List)) -> Short rural | I207: =INDEX(dms_FeederName_3,MATCH(dms_TradingName,dms_TradingName_List)) -> Short rural | J207: =INDEX(dms_FeederName_4,MATCH(dms_TradingName,dms_TradingName_List)) -> Long rural | K207: =INDEX(dms_FeederName_4,MATCH(dms_TradingName,dms_TradingName_List)) -> Long rural | L207: =IF((INDEX(dms_FeederName_5,MATCH(dms_TradingName,dms_TradingName_List))=0),"Network",(INDEX(dms_FeederName_5,MATCH(dms_TradingName,dms_TradingName_List)))) -> Network | M207: =IF((INDEX(dms_FeederName_5,MATCH(dms_TradingName,dms_TradingName_List))=0),"Network",(INDEX(dms_FeederName_5,MATCH(dms_TradingName,dms_TradingName_List)))) -> Network | N207: Network | O207: Network
C209: dms_060701_Rows | D209: All events | E209: After removing excluded events | F209: All events | G209: After removing excluded events | H209: All events | I209: After removing excluded events | J209: All events | K209: After removing excluded events | L209: All events | M209: After removing excluded events | N209: All events | O209: After removing excluded events
D210: the number of column headings changes from 10 to 12 depending on the number of feeder categories for the NSP
C212: dms_0603_FeederList | D212: =INDEX(dms_FeederName_1,MATCH(dms_TradingName,dms_TradingName_List)) -> CBD | E212: =INDEX(dms_FeederName_2,MATCH(dms_TradingName,dms_TradingName_List)) -> Urban | F212: =INDEX(dms_FeederName_3,MATCH(dms_TradingName,dms_TradingName_List)) -> Short rural | G212: =INDEX(dms_FeederName_4,MATCH(dms_TradingName,dms_TradingName_List)) -> Long rural
B215: Use these to add to specific worksheets in existing files | C215: Use these to add to specific worksheets in existing files
B218: ARRs 6.7 STPIS daily performance | C218: dms_060101_Values | D218: dms_060102_Values | E218: dms_060701_Values
C219: dms_LeapYear
B222: ARR's 6.8 STPIS exclusions | C222: dms_060801_Event_Date | D222: dms_060801_OutageID | E222: dms_060801_FeederID | F222: dms_060801_FeederClass | G222: dms_060801_CauseID | H222: dms_060801_01_Values | I222: dms_060801_02_Values | J222: dms_060801_03_Values | K222: dms_060801_Excl_Cat | L222: dms_060801_04_Values
C223: dms_060801_StartCell
B226: CA 6.3 sustained interruptions | C226: dms_060301_Event_Date | D226: dms_060301_Event_Time | E226: dms_060301_AssetID | F226: dms_060301_FeederClass | G226: dms_060301_Reason | H226: dms_060301_DetailedReason | I226: dms_060301_CustNo_Affected_Values | J226: dms_060301_Avg_Duration_Sustained_Int_Values | K226: dms_060301_Effect_unplanned_SAIDI_Values | L226: dms_060301_Effect_unplanned_SAIFI_Values | M226: dms_060301_MED

Sheet AER lookups (hidden)
B1: AER LOOKUP TABLES
B3: Data in these columns used for data validation and database purposes.
B4: Date last modified: | C4: 2017-01-16 | D4: added (Albury and Victora) for AGN
C5: 2016-10-17 | D5: updated TransGrid's correct legal name, corrected TasNetworks (T) to June financial year
C6: 2017-02-01 | D6: inserted Power and Water, added NRs (dms_FeederCat_1 and dms_FeederCat_2)
C7: 2017-03-03 | D7: inserted AEMO as a business
C8: 2018-03-28 | D8: major changes to accommodate STPIS
C9: Template Version | D9: 5
Z14: Feeder Types | AD14: TasNetworks (D) | AE14: MAIFI flag | AF14: Feeder Names
B16: dms_TradingName_List | C16: dms_TradingNameFull_List | D16: dms_ABN_List | E16: dms_JurisdictionList | F16: dms_Sector_List | G16: dms_Segment_List | H16: dms_FormControl_List | I16: dms_RPT_List | J16: dms_RPTMonth_List | K16: dms_CRCPlength_List | L16: dms_FRCPlength_List | M16: dms_PRCPlength_List | N16: dms_663_List | O16: dms_DeterminationRef_List | P16: dms_Addr1_List | Q16: dms_Addr2_List | R16: dms_Suburb_List | S16: dms_State_List | T16: dms_PostCode_List | U16: dms_PAddr1_List | V16: dms_PAddr2_List | W16: dms_PSuburb_List | X16: dms_PState_List | Y16: dms_PPostCode_List | Z16: dms_CBD_flag | AA16: dms_Urban_flag | AB16: dms_ShortRural_flag | AC16: dms_LongRural_flag | AD16: dms_FeederType_5_flag | AE16: dms_MAIFI_flag_List | AF16: dms_FeederName_1 | AG16: dms_FeederName_2 | AH16: dms_FeederName_3 | AI16: dms_FeederName_4 | AJ16: dms_FeederName_5 | AK16: dms_Public_Lighting_List | AL16: Name
B17: AGN (Albury and Victoria) | C17: Australian Gas Networks Limited (reporting data for Albury and Victoria) | D17: 19078551685 | E17: Vic | F17: Gas | G17: Distribution | H17: Weighted average price cap | I17: Calendar | J17: December | K17: 5 | L17: 5 | M17: 5 | N17: x | P17: Level 6 | Q17: 400 King William Street | R17: ADELAIDE | S17: SA | T17: 5000 | U17: PO Box 6468 | V17: Halifax Street | W17: ADELAIDE | X17: SA | Y17: 5000 | Z17: NO | AA17: NO | AB17: NO | AC17: NO | AD17: NO | AE17: - | AF17: CBD | AG17: Urban | AH17: Short rural | AI17: Long rural | AK17: NO | AL17: AGN (Albury)
B18: AGN (Albury) | C18: Australian Gas Networks Limited (reporting data for Albury) | D18: 19078551685 | E18: Vic | F18: Gas | G18: Distribution | H18: Weighted average price cap | I18: Calendar | J18: December | K18: 5 | L18: 5 | M18: 5 | N18: x | P18: Level 6 | Q18: 400 King William Street | R18: ADELAIDE | S18: SA | T18: 5000 | U18: PO Box 6468 | V18: Halifax Street | W18: ADELAIDE | X18: SA | Y18: 5000 | Z18: NO | AA18: NO | AB18: NO | AC18: NO | AD18: NO | AE18: - | AF18: CBD | AG18: Urban | AH18: Short rural | AI18: Long rural | AK18: NO
B19: AGN (SA) | C19: Australian Gas Networks Limited (reporting data for SA) | D19: 19078551685 | E19: SA | F19: Gas | G19: Distribution | H19: Weighted average price cap | I19: Financial | J19: June | K19: 5 | L19: 5 | M19: 5 | N19: 5 | O19: distribution determination | P19: Level 6 | Q19: 400 King William Street | R19: ADELAIDE | S19: SA | T19: 5000 | U19: PO Box 6468 | V19: Halifax Street | W19: ADELAIDE | X19: SA | Y19: 5000 | Z19: NO | AA19: NO | AB19: NO | AC19: NO | AD19: NO | AE19: - | AF19: CBD | AG19: Urban | AH19: Short rural | AI19: Long rural | AK19: NO | AL19: AGN (SA)
B20: AGN (Victoria) | C20: Australian Gas Networks Limited (reporting data for Victoria) | D20: 19078551685 | E20: Vic | F20: Gas | G20: Distribution | H20: Weighted average price cap | I20: Calendar | J20: December | K20: 5 | L20: 5 | M20: 5 | N20: x | P20: Level 6 | Q20: 400 King William Street | R20: ADELAIDE | S20: SA | T20: 5000 | U20: PO Box 6468 | V20: Halifax Street | W20: ADELAIDE | X20: SA | Y20: 5000 | Z20: NO | AA20: NO | AB20: NO | AC20: NO | AD20: NO | AE20: - | AF20: CBD | AG20: Urban | AH20: Short rural | AI20: Long rural | AK20: NO | AL20: AGN (Victoria)
B21: Amadeus | C21: APT Pipelines (NT) Pty Ltd | D21: 39009737393 | E21: NT | F21: Gas | G21: Transmission | H21: Weighted average price cap | I21: Financial | J21: June | K21: 5 | L21: 5 | M21: 5 | N21: x | O21: n/a | P21: Level 19, HSBC Building | Q21: 580 George Street | R21: SYDNEY | S21: NSW | T21: 2000 | U21: Level 19, HSBC Building | V21: 580 George Street | W21: SYDNEY | X21: NSW | Y21: 2000 | Z21: NO | AA21: NO | AB21: NO | AC21: NO | AD21: NO | AE21: - | AF21: CBD | AG21: Urban | AH21: Short rural | AI21: Long rural | AK21: NO | AL21: Amadeus
B22: APA GasNet | C22: APA GasNet Australia (Operations) Pty Ltd | D22: 065083009 | E22: Vic | F22: Gas | G22: Transmission | H22: Weighted average price cap | I22: Calendar | J22: December | K22: 5 | L22: 5 | M22: 5 | N22: x | P22: Level 19, HSBC Building | Q22: 580 George Street | R22: SYDNEY | S22: NSW | T22: 2000 | U22: PO Box R41 | W22: ROYAL EXCHANGE | X22: NSW | Y22: 1225 | Z22: NO | AA22: NO | AB22: NO | AC22: NO | AD22: NO | AE22: - | AF22: CBD | AG22: Urban | AH22: Short rural | AI22: Long rural | AK22: NO | AL22: APA GasNet
B23: AusNet (Gas) | C23: AusNet Gas Services | D23: 086015036 | E23: Vic | F23: Gas | G23: Distribution | H23: Weighted average price cap | I23: Calendar | J23: December | K23: 5 | L23: 5 | M23: 5 | N23: X | P23: Level 19, HSBC Building | Q23: 580 George Street | R23: SYDNEY | S23: NSW | T23: 2000 | U23: PO Box R41 | W23: ROYAL EXCHANGE | X23: NSW | Y23: 1225 | Z23: NO | AA23: NO | AB23: NO | AC23: NO | AD23: NO | AE23: - | AF23: CBD | AG23: Urban | AH23: Short rural | AI23: Long rural | AK23: NO | AL23: AusNet (Gas)
B24: Australian Distribution Co. (Gas) | C24: Australian Gas Distribution Co. | D24: 11222333444 | E24: NSW | F24: Gas | G24: Distribution | H24: Weighted average price cap | I24: Financial | J24: June | K24: 5 | L24: 5 | M24: 5 | P24: 123 Straight Street | R24: SYDNEY | S24: NSW | T24: 2000 | U24: PO Box 123 | W24: SYDNEY | X24: NSW | Y24: 2000 | Z24: NO | AA24: NO | AB24: NO | AC24: NO | AD24: NO | AE24: - | AF24: CBD | AG24: Urban | AH24: Short rural | AI24: Long rural | AK24: NO | AL24: Australian Distribution Co. (Vic)
B25: Central Ranges Pipeline (D) | C25: Central Ranges Pipeline Pty Ltd | D25: 108218355 | E25: NSW | F25: Gas | G25: Distribution | H25: Weighted average price cap | I25: Financial | J25: June | K25: 15 | L25: 5 | M25: 5 | N25: 5 | O25: distribution determination | P25: Level 19 | Q25: 580 George Street | R25: SYDNEY | S25: NSW | T25: 2000 | U25: PO Box R41 | W25: ROYAL EXCHANGE | X25: NSW | Y25: 1225 | Z25: NO | AA25: NO | AB25: NO | AC25: NO | AD25: NO | AE25: - | AF25: CBD | AG25: Urban | AH25: Short rural | AI25: Long rural | AK25: NO
B26: Central Ranges Pipeline (T) | C26: Central Ranges Pipeline Pty Ltd | D26: 108218355 | E26: NSW | F26: Gas | G26: Transmission | H26: Weighted average price cap | I26: Financial | J26: June | K26: 14 | L26: 5 | M26: 5 | N26: 5 | O26: transmission determination | P26: Level 19 | Q26: 580 George Street | R26: SYDNEY | S26: NSW | T26: 2000 | U26: PO Box R41 | W26: ROYAL EXCHANGE | X26: NSW | Y26: 1225 | Z26: NO | AA26: NO | AB26: NO | AC26: NO | AD26: NO | AE26: - | AF26: CBD | AG26: Urban | AH26: Short rural | AI26: Long rural | AK26: NO
B27: Evoenergy Gas | C27: Evoenergy Gas | D27: 76670568688 | E27: ACT | F27: Gas | G27: Distribution | H27: Weighted average price cap | I27: Financial | J27: June | K27: 5 | L27: 5 | M27: 5 | N27: x | P27: 40 Bunda Street | R27: CANBERRA | S27: ACT | T27: 2600 | U27: GPO BOX 366 | W27: CANBERRA | X27: ACT | Y27: 2601 | Z27: NO | AA27: NO | AB27: NO | AC27: NO | AD27: NO | AE27: - | AF27: CBD | AG27: Urban | AH27: Short rural | AI27: Long rural | AK27: NO | AL27: ActewAGL Gas
B28: JGN | C28: Jemena Gas Networks (NSW) Ltd | D28: 003 004 322 | E28: NSW | F28: Gas | G28: Distribution | H28: Weighted average price cap | I28: Financial | J28: June | K28: 5 | L28: 5 | M28: 5 | P28: please provide street address | U28: please provide postal address | Z28: NO | AA28: NO | AB28: NO | AC28: NO | AD28: NO | AE28: - | AF28: CBD | AG28: Urban | AH28: Short rural | AI28: Long rural | AK28: NO | AL28: JGN
B29: Multinet Gas | C29: Multinet Gas (DB No.1) Pty Ltd (ACN 086 026 986), Multinet Gas (DB No.2) Pty Ltd (ACN 086 230 122) | D29: 086026986 | E29: Vic | F29: Gas | G29: Distribution | H29: Weighted average price cap | I29: Calendar | J29: December | K29: 5 | L29: 5 | M29: 5 | N29: x | P29: 43-45 Centreway | R29: MT WAVERLEY | S29: Vic | T29: 3149 | Z29: NO | AA29: NO | AB29: NO | AC29: NO | AD29: NO | AE29: - | AF29: CBD | AG29: Urban | AH29: Short rural | AI29: Long rural | AK29: NO | AL29: Multinet Gas
B30: Roma to Brisbane Pipeline | C30: APT Petroleum Pipelines Limited t/a Roma to Brisbane Pipeline | D30: 009 737 393 | E30: Qld | F30: Gas | G30: Transmission | H30: Weighted average price cap | I30: Financial | J30: June | K30: 5 | L30: 5 | M30: 5 | N30: x | O30: n/a | P30: 580 George Street | R30: SYDNEY | S30: NSW | T30: 2000 | U30: PO Box R41 | W30: ROYAL EXCHANGE | X30: NSW | Y30: 1225 | Z30: NO | AA30: NO | AB30: NO | AC30: NO | AD30: NO | AE30: - | AF30: CBD | AG30: Urban | AH30: Short rural | AI30: Long rural | AK30: NO | AL30: Roma to Brisbane Pipeline
B35: The Reg Year Ending (dms_RYE) must be set to the last year of the regulatory period. For forecast data is is usually (FRCP_y5) for actual it is a single year (CRY). For historical actual data the RYE will need to be set manually in the business details sheet by setting the dms_Multiyear_flag to 1 and putting the correct value in 'dms_Specified_FinalYear. See cells C67:C68
B36: dms_Model_List | C36: dms_Model_Name_Format1 | D36: dms_Worksheet_List | E36: dms_Model_Span_List
B37: ARR | C37: Annual Reporting | D37: =IF(dms_MultiYear_ResponseFlag="yes","NEW HISTORICAL ANNUAL REPORTING","ANNUAL REPORTING") -> ANNUAL REPORTING | E37: 1
B38: CA | C38: Category Analysis | D38: =IF(dms_MultiYear_ResponseFlag="yes","NEW HISTORICAL CATEGORY ANALYSIS","CATEGORY ANALYSIS") -> CATEGORY ANALYSIS | E38: 1
B39: CESS | C39: Capitlal Expenditure | D39: CAPITLAL EXPENDITURE SHARING SCHEMING | E39: 5
B40: CPI | C40: CPI | D40: CPI | E40: 5
B41: EB | C41: Economic Benchmarking | D41: =IF(dms_MultiYear_ResponseFlag="yes","NEW HISTORICAL ECONOMIC BENCHMARKING","ECONOMIC BENCHMARKING") -> ECONOMIC BENCHMARKING | E41: 1
B42: Pricing | C42: Pricing Proposal | D42: PRICING PROPOSAL | E42: 5
B43: PTRM | C43: Post Tax Revenue Model | D43: POST TAX REVENUE MODEL | E43: 5
B44: Reset | C44: Regulatory Reporting (Reset) | D44: REGULATORY REPORTING STATEMENT | E44: 5
B45: RFM | C45: Roll Forward Model | D45: ROLL FORWARD MODEL | E45: 5
B46: WACC | C46: Weighted Average Cost of Capital | D46: WEIGHTED AVERAGE COST OF CAPITAL | E46: 1
B50: Financial | C50: Calendar | E50: PREVIOUS | G50: CURRENT | I50: FORTHCOMING
B51: 1987-88 | C51: 1988 | D51: PRCP_y1 | E51: =INDEX(INDIRECT(dms_RPT),dms_PRCP_start_row) -> 2011-12 | F51: CRCP_y1 | G51: =INDEX(INDIRECT(dms_RPT),dms_CRCP_start_row) -> 2016-17 | H51: =FRCP_y1 -> 2021-22 | I51: =INDEX(INDIRECT(dms_RPT),dms_FRCP_start_row) -> 2021-22
B52: 1988-89 | C52: 1989 | D52: PRCP_y2 | E52: =INDEX(INDIRECT(dms_RPT),dms_PRCP_start_row+1) -> 2012-13 | F52: CRCP_y2 | G52: =INDEX(INDIRECT(dms_RPT),dms_CRCP_start_row+1) -> 2017-18 | H52: FRCP_y2 | I52: =INDEX(INDIRECT(dms_RPT),dms_FRCP_start_row+1) -> 2022-23
B53: 1989-90 | C53: 1990 | D53: PRCP_y3 | E53: =INDEX(INDIRECT(dms_RPT),dms_PRCP_start_row+2) -> 2013-14 | F53: CRCP_y3 | G53: =INDEX(INDIRECT(dms_RPT),dms_CRCP_start_row+2) -> 2018-19 | H53: FRCP_y3 | I53: =INDEX(INDIRECT(dms_RPT),dms_FRCP_start_row+2) -> 2023-24
B54: 1990-91 | C54: 1991 | D54: PRCP_y4 | E54: =INDEX(INDIRECT(dms_RPT),dms_PRCP_start_row+3) -> 2014-15 | F54: CRCP_y4 | G54: =INDEX(INDIRECT(dms_RPT),dms_CRCP_start_row+3) -> 2019-20 | H54: FRCP_y4 | I54: =INDEX(INDIRECT(dms_RPT),dms_FRCP_start_row+3) -> 2024-25
B55: 1991-92 | C55: 1992 | D55: PRCP_y5 | E55: =INDEX(INDIRECT(dms_RPT),dms_PRCP_start_row+4) -> 2015-16 | F55: CRCP_y5 | G55: =INDEX(INDIRECT(dms_RPT),dms_CRCP_start_row+4) -> 2020-21 | H55: FRCP_y5 | I55: =INDEX(INDIRECT(dms_RPT),dms_FRCP_start_row+4) -> 2025-26
B56: 1992-93 | C56: 1993 | D56: PRCP_y6 | E56: =INDEX(INDIRECT(dms_RPT),dms_PRCP_start_row+5) -> 2016-17 | F56: CRCP_y6 | G56: =INDEX(INDIRECT(dms_RPT),dms_CRCP_start_row+5) -> 2021-22 | H56: FRCP_y6 | I56: =INDEX(INDIRECT(dms_RPT),dms_FRCP_start_row+5) -> 2026-27
B57: 1993-94 | C57: 1994 | D57: PRCP_y7 | E57: =INDEX(INDIRECT(dms_RPT),dms_PRCP_start_row+6) -> 2017-18 | F57: CRCP_y7 | G57: =INDEX(INDIRECT(dms_RPT),dms_CRCP_start_row+6) -> 2022-23 | H57: FRCP_y7 | I57: =INDEX(INDIRECT(dms_RPT),dms_FRCP_start_row+6) -> 2027-28
B58: 1994-95 | C58: 1995 | D58: PRCP_y8 | E58: =INDEX(INDIRECT(dms_RPT),dms_PRCP_start_row+7) -> 2018-19 | F58: CRCP_y8 | G58: =INDEX(INDIRECT(dms_RPT),dms_CRCP_start_row+7) -> 2023-24 | H58: FRCP_y8 | I58: =INDEX(INDIRECT(dms_RPT),dms_FRCP_start_row+7) -> 2028-29
B59: 1995-96 | C59: 1996 | D59: PRCP_y9 | E59: =INDEX(INDIRECT(dms_RPT),dms_PRCP_start_row+8) -> 2019-20 | F59: CRCP_y9 | G59: =INDEX(INDIRECT(dms_RPT),dms_CRCP_start_row+8) -> 2024-25 | H59: FRCP_y9 | I59: =INDEX(INDIRECT(dms_RPT),dms_FRCP_start_row+8) -> 2029-30
B60: 1996-97 | C60: 1997 | D60: PRCP_y10 | E60: =INDEX(INDIRECT(dms_RPT),dms_PRCP_start_row+9) -> 2020-21 | F60: CRCP_y10 | G60: =INDEX(INDIRECT(dms_RPT),dms_CRCP_start_row+9) -> 2025-26 | H60: FRCP_y10 | I60: =INDEX(INDIRECT(dms_RPT),dms_FRCP_start_row+9) -> 2030-31
B61: 1997-98 | C61: 1998 | D61: PRCP_y11 | E61: =INDEX(INDIRECT(dms_RPT),dms_PRCP_start_row+10) -> 2021-22 | F61: CRCP_y11 | G61: =INDEX(INDIRECT(dms_RPT),dms_CRCP_start_row+10) -> 2026-27 | H61: FRCP_y11 | I61: =INDEX(INDIRECT(dms_RPT),dms_FRCP_start_row+10) -> 2031-32
B62: 1998-99 | C62: 1999 | D62: PRCP_y12 | E62: =INDEX(INDIRECT(dms_RPT),dms_PRCP_start_row+11) -> 2022-23 | F62: CRCP_y12 | G62: =INDEX(INDIRECT(dms_RPT),dms_CRCP_start_row+11) -> 2027-28 | H62: FRCP_y12 | I62: =INDEX(INDIRECT(dms_RPT),dms_FRCP_start_row+11) -> 2032-33
B63: 1999-00 | C63: 2000 | D63: PRCP_y13 | E63: =INDEX(INDIRECT(dms_RPT),dms_PRCP_start_row+12) -> 2023-24 | F63: CRCP_y13 | G63: =INDEX(INDIRECT(dms_RPT),dms_CRCP_start_row+12) -> 2028-29 | H63: FRCP_y13 | I63: =INDEX(INDIRECT(dms_RPT),dms_FRCP_start_row+12) -> 2033-34
B64: 2000-01 | C64: 2001 | D64: PRCP_y14 | E64: =INDEX(INDIRECT(dms_RPT),dms_PRCP_start_row+13) -> 2024-25 | F64: CRCP_y14 | G64: =INDEX(INDIRECT(dms_RPT),dms_CRCP_start_row+13) -> 2029-30 | H64: FRCP_y14 | I64: =INDEX(INDIRECT(dms_RPT),dms_FRCP_start_row+13) -> 2034-35
B65: 2001-02 | C65: 2002 | D65: PRCP_y15 | E65: =INDEX(INDIRECT(dms_RPT),dms_PRCP_start_row+14) -> 2025-26 | F65: CRCP_y15 | G65: =INDEX(INDIRECT(dms_RPT),dms_CRCP_start_row+14) -> 2030-31 | H65: FRCP_y15 | I65: =INDEX(INDIRECT(dms_RPT),dms_FRCP_start_row+14) -> 2035-36
B66: 2002-03 | C66: 2003 | D66: PRCP_y16 | E66: =INDEX(INDIRECT(dms_RPT),dms_PRCP_start_row+15) -> 2026-27 | F66: CRCP_y16 | G66: =INDEX(INDIRECT(dms_RPT),dms_CRCP_start_row+15) -> 2031-32 | H66: FRCP_y16 | I66: =INDEX(INDIRECT(dms_RPT),dms_FRCP_start_row+15) -> 2036-37
B67: 2003-04 | C67: 2004
B68: 2004-05 | C68: 2005
B69: 2005-06 | C69: 2006 | E69: CRY - FRY
B70: 2006-07 | C70: 2007 | D70: dms_y1 | E70: =IFERROR(INDEX(INDIRECT(dms_RPT),dms_CRY_start_row),0) -> 2019-20
B71: 2007-08 | C71: 2008 | D71: dms_y2 | E71: =IFERROR(INDEX(INDIRECT(dms_RPT),dms_CRY_start_row+1),0) -> 2020-21
B72: 2008-09 | C72: 2009 | D72: dms_y3 | E72: =IFERROR(INDEX(INDIRECT(dms_RPT),dms_CRY_start_row+2),0) -> 2021-22
B73: 2009-10 | C73: 2010 | D73: dms_y4 | E73: =IFERROR(INDEX(INDIRECT(dms_RPT),dms_CRY_start_row+3),0) -> 2022-23
B74: 2010-11 | C74: 2011 | D74: dms_y5 | E74: =IFERROR(INDEX(INDIRECT(dms_RPT),dms_CRY_start_row+4),0) -> 2023-24
B75: 2011-12 | C75: 2012 | D75: dms_y6 | E75: =IFERROR(INDEX(INDIRECT(dms_RPT),dms_CRY_start_row+5),0) -> 2024-25
B76: 2012-13 | C76: 2013 | D76: dms_y7 | E76: =IFERROR(INDEX(INDIRECT(dms_RPT),dms_CRY_start_row+6),0) -> 2025-26
B77: 2013-14 | C77: 2014 | D77: dms_y8 | E77: =IFERROR(INDEX(INDIRECT(dms_RPT),dms_CRY_start_row+7),0) -> 2026-27
B78: 2014-15 | C78: 2015 | D78: dms_y9 | E78: =IFERROR(INDEX(INDIRECT(dms_RPT),dms_CRY_start_row+8),0) -> 2027-28
B79: 2015-16 | C79: 2016 | D79: dms_y10 | E79: =IFERROR(INDEX(INDIRECT(dms_RPT),dms_CRY_start_row+9),0) -> 2028-29
B80: 2016-17 | C80: 2017 | D80: dms_y11 | E80: =IFERROR(INDEX(INDIRECT(dms_RPT),dms_CRY_start_row+10),0) -> 2029-30
B81: 2017-18 | C81: 2018 | D81: dms_y12 | E81: =IFERROR(INDEX(INDIRECT(dms_RPT),dms_CRY_start_row+11),0) -> 2030-31
B82: 2018-19 | C82: 2019 | D82: dms_y13 | E82: =IFERROR(INDEX(INDIRECT(dms_RPT),dms_CRY_start_row+12),0) -> 2031-32
B83: 2019-20 | C83: 2020 | D83: dms_y14 | E83: =IFERROR(INDEX(INDIRECT(dms_RPT),dms_CRY_start_row+13),0) -> 2032-33
B84: 2020-21 | C84: 2021 | D84: dms_y15 | E84: =IFERROR(INDEX(INDIRECT(dms_RPT),dms_CRY_start_row+14),0) -> 2033-34
B85: 2021-22 | C85: 2022 | D85: dms_y16 | E85: =IFERROR(INDEX(INDIRECT(dms_RPT),dms_CRY_start_row+15),0) -> 2034-35
B86: 2022-23 | C86: 2023
B87: 2023-24 | C87: 2024
B88: 2024-25 | C88: 2025
B89: 2025-26 | C89: 2026
B90: 2026-27 | C90: 2027
B91: 2027-28 | C91: 2028
B92: 2028-29 | C92: 2029
B93: 2029-30 | C93: 2030
B94: 2030-31 | C94: 2031
B95: 2031-32 | C95: 2032
B96: 2032-33 | C96: 2033
B97: 2033-34 | C97: 2034
B98: 2034-35 | C98: 2035
B99: 2035-36 | C99: 2036
B100: 2036-37 | C100: 2037

Sheet AER ETL (hidden)
A1: FINAL RIN - 20200224 | B1: AER ETL INFORMATION
B3: USES NAMED RANGES FLAG | C3: yes | D3: dms_Defined_Names_Used
B5: IF THIS IS AN ABC RIN - make sure the the named range CRY is applied and the named range dms_dollar_nom_UOM is applied
B6: IF THIS IS A RESET RIN - make sure the named ranges CRY and dms_dollar_nom_UOM are NOT present in the workbook
B7: FOR ABC RINS THAT SPAN MULTIPLE YEARS - make sure MultiYear Flag is set and final year entered as required
B9: Full trading name | C9: =INDEX(dms_TradingNameFull_List,MATCH(dms_TradingName,dms_TradingName_List)) -> Evoenergy Gas | E9: dms_TradingNameFull
B10: Trading name | C10: =dms_TradingName -> Evoenergy Gas
A11: Selected here | B11: Model / RIN | C11: Reset | D11: dms_Model
A12: Read from Business & other details | B12: Source | C12: =dms_Selected_Source -> Regulatory proposal | D12: dms_Source
B13: Data quality | C13: =dms_Selected_Quality -> Consolidated | D13: dms_DQ_1
B14: Data status | C14: =dms_Selected_Status -> Public | D14: dms_DQ_2
B15: Amendment reason | C15: =dms_Amendment_Text -> . | F15: dms_AmendmentReason
B16: Submission date | C16: =dms_Typed_Submission_Date -> dd/mm/yy | D16: dms_SubmissionDate
A18: Redundant | B18: EBSS - First application of scheme in forthcoming period? | C18: No
A19: Pre-populated from lookup table | B19: Data ingestion data quality | C19: =dms_Selected_Quality -> Consolidated | D19: dms_DataQuality | E19: =IF(dms_DQ_2="Confidential","Consolidated","Public")
B20: Sector | C20: =INDEX(dms_Sector_List,MATCH(dms_TradingName,dms_TradingName_List)) -> Gas | D20: dms_Sector | E20: =INDEX(dms_Sector_List,MATCH(dms_TradingName,dms_TradingName_List))
B21: Segment | C21: =INDEX(dms_Segment_List,MATCH(dms_TradingName,dms_TradingName_List)) -> Distribution | D21: dms_Segment | E21: =INDEX(dms_Segment_List,MATCH(dms_TradingName,dms_TradingName_List))
B22: Regulatory Year Ending | C22: =dms_RYE_result -> 2026 | D22: dms_RYE | E22: =IF(dms_MultiYear_Flag=1,LEFT(dms_Specified_FinalYear,2)&RIGHT(dms_Specified_FinalYear,2),INDEX(dms_RYE_Formula_Result,MATCH(dms_Model,dms_Model_List)))
B23: Reporting Period Type | C23: =INDEX(dms_RPT_List,MATCH(dms_TradingName,dms_TradingName_List)) -> Financial | D23: dms_RPT | E23: =INDEX(dms_RPT_List,MATCH(dms_TradingName,dms_TradingName_List))
B24: EB/CA Unit of Measure for Monetary Values | C24: $0s | D24: dms_dollar_nom_UOM | E24: If the cover sheet is attached to an ABC RIN apply the NAMED RANGE to the cell
B25: Security Classification | C25: Public | D25: dms_Classification | E25: Always Public
B26: Jurisdiction | C26: =INDEX(dms_JurisdictionList,MATCH(dms_TradingName,dms_TradingName_List)) -> ACT | D26: dms_Jurisdiction | E26: =INDEX(dms_JurisdictionList,MATCH(dms_TradingName,dms_TradingName_List))
A27: Relevant for PTRM, RFMs and Reset RINS | B27: $ REAL REFERENCES
B28: Does the named range CRY exist in this file? | C28: =IFERROR(CRY,"NO") -> NO
B29: CRY-1 (last full calendar year before CRY) | C29: =IFERROR(IF(dms_RPT="calendar",CRY-1,LEFT(CRY,4)),"CRY not present") -> CRY not present | D29: dms_Cal_Year_B4_CRY | E29: '=IF(dms_RPT="financial",VALUE(LEFT(dms_SingleYear_FinalYear_Result,4)),VALUE(LEFT(dms_SingleYear_FinalYear_Result,4)-1))
B30: Dollar $ real month | C30: =INDEX(dms_RPTMonth_List,MATCH(dms_TradingName,dms_TradingName_List)) -> June | D30: dms_RPTMonth | E30: =INDEX(dms_RPTMonth_List,MATCH(dms_TradingName,dms_TradingName_List))
B31: Dollar $ real (the last month before the FRCP_y1) | C31: =IF(dms_SingleYearModel="yes",CONCATENATE(dms_RPTMonth)&" "&VALUE((LEFT(CRY,2))&RIGHT(CRY,2)),CONCATENATE(dms_RPTMonth)&" "&dms_DollarReal_year) -> June 2021 | D31: dms_DollarReal | E31: =IF(SUM(dms_SingleYear_Model)>0,CONCATENATE(dms_RPTMonth)&" "&VALUE((LEFT(CRY,2))&RIGHT(CRY,2)),CONCATENATE(dms_RPTMonth)&" "&VALUE((LEFT(dms_RYE,2)&RIGHT(dms_RYE,2))))
B32: Dollar $ real previous year (PRCP_y5) | C32: =IF(dms_SingleYearModel="yes",CONCATENATE(dms_RPTMonth)&" "&VALUE((LEFT(CRY,2))&RIGHT(CRY,2)),CONCATENATE(dms_RPTMonth)&" "&dms_Previous_DollarReal_year) -> June 2016 | D32: dms_DollarReal_Prev | E32: =IF(SUM(dms_SingleYear_Model)>0,CONCATENATE(dms_RPTMonth)&" "&VALUE(((LEFT(CRY,2))&RIGHT(CRY,2))-1),CONCATENATE(dms_RPTMonth)&" "&VALUE(((LEFT(dms_CRCP_FirstYear_Result,2)&RIGHT(dms_CRCP_FirstYear_Result,2))))-1)
B33: PTRM/ RFMs
B34: Form of control | C34: =INDEX(dms_FormControl_List,MATCH(dms_TradingName,dms_TradingName_List)) -> Weighted average price cap | D34: dms_FormControl | E34: =INDEX(dms_FormControl_List,MATCH(dms_TradingName,dms_TradingName_List))
A35: All potential values for Regulatory Years or RYEs as calculated | B35: This block works out the various RYE's for ALL RIN types and MODELS
B36: dms_start_year | C36: =FRCP_y1 -> 2021-22 | D36: FRCP_y1 from cover sheet
B37: dms_CRY_start_year | C37: =IFERROR(CRY,CRCP_y4) -> 2019-20
B38: dms_CRY_start_row | C38: =IFERROR(MATCH(dms_CRY_start_year,INDIRECT(dms_RPT),0),0) -> 33
B39: dms_FRCP_start_row | C39: =MATCH(dms_start_year,INDIRECT(dms_RPT),0) -> 35 | D39: Uses FRCP_y1 as a start reference
B40: dms_CRCP_start_row | C40: =dms_FRCP_start_row-dms_CRCPlength_Num -> 30 | D40: Uses the value in dms_CRCPlength_Num
B41: dms_PRCP_start_row | C41: =dms_FRCP_start_row-dms_CRCPlength_Num-dms_PRCPlength_Num -> 25 | D41: Uses the value in dms_CRCPlength_Num and dms_PRCPlength_Num
B42: dms_RYE_start_row | C42: =dms_FRCP_start_row+(dms_FRCPlength_Num-1) -> 39 | D42: Uses the value in dms_FRCPlength_Num-1
B43: FRCP_start_year | C43: =INDEX(INDIRECT(dms_RPT),dms_FRCP_start_row) -> 2021-22 | D43: Converts the FRCP start row to display the year
B44: CRCP_start_year | C44: =INDEX(INDIRECT(dms_RPT),dms_CRCP_start_row) -> 2016-17 | D44: Converts the CRCP start row to display the year
B45: PRCP_start_year | C45: =INDEX(INDIRECT(dms_RPT),dms_PRCP_start_row) -> 2011-12 | D45: Converts the PRCP start row to display the year
B46: FRCP_final_year | C46: =INDEX(INDIRECT(dms_RPT),dms_FRCP_start_row+dms_FRCPlength_Num-1) -> 2025-26 | D46: Finds the FRCP final year
B47: CRCP_final_year | C47: =INDEX(INDIRECT(dms_RPT),dms_CRCP_start_row+dms_CRCPlength_Num-1) -> 2020-21 | D47: Finds the CRCP final year
B48: PRCP_final_year | C48: =INDEX(INDIRECT(dms_RPT),dms_PRCP_start_row+dms_FRCPlength_Num-1) -> 2015-16 | D48: Finds the PRCP final year
B49: dms_Reset_final_year | C49: =INDEX(INDIRECT(dms_RPT),dms_RYE_start_row) -> 2025-26 | D49: For Resets and PTRM/RFMs (same as FRCP_final_year)
B50: dms_SpecifiedYear_final_year | C50: =FRY -> 2025-26 | D50: FRY from cover sheet
B51: dms_DollarReal_year | C51: =LEFT(CRCP_final_year,2)&RIGHT(CRCP_final_year,2) -> 2021 | D51: Uses the value in CRCP_final_year
B52: dms_Previous_DollarReal_year | C52: =LEFT(PRCP_final_year,2)&RIGHT(PRCP_final_year,2) -> 2016 | D52: Uses the value in PRCP_final_year
B53: dms_CRY_RYE | C53: =IFERROR(LEFT(CRY,2)&RIGHT(CRY,2),0) -> 0 | D53: For ABC single year RINS
B54: dms_Reset_RYE | C54: =IF(dms_Model_Span>1,IF(dms_Model="RFM",(LEFT(dms_DollarReal_year,2)&RIGHT(dms_DollarReal_year,2)),(LEFT(dms_Reset_final_year,2)&RIGHT(dms_Reset_final_year,2))),0) -> 2026 | D54: If model span > 1 then uses dms_Reset_RYE otherwise it's a multi year ABC and uses dms_Specified_RYE
B55: dms_Specified_RYE | C55: =IF(dms_MultiYear_ResponseFlag="Yes",(LEFT(dms_Specified_FinalYear,2)&RIGHT(dms_Specified_FinalYear,2)),0) -> 0 | D55: If multi year ABC - uses dms_Specified_FinalYear
B56: dms_Model_Span | C56: =INDEX(dms_Model_Span_List,MATCH(dms_Model,dms_Model_List)) -> 5 | D56: A result of 5 is used to signify that it is more than 1 year span
B57: dms_RYE_result | C57: =IF(dms_MultiYear_ResponseFlag="yes",dms_Specified_RYE,(IF(dms_Model_Span>1,dms_Reset_RYE,dms_CRY_RYE))) -> 2026 | D57: Nested IF - feeds into dms_RYE
B58: dms_Reset_Span | C58: =IF(dms_Reset_RYE>0,CONCATENATE(FRCP_y1," to ",FRCP_final_year),0) -> 2021-22 to 2025-26 | D58: Reset span of years as text
B59: dms_SpecifiedYear_Span | C59: =IF(dms_Specified_RYE>0,CONCATENATE(CRY," to ",dms_Specified_FinalYear),0) -> 0 | D59: Multi year ABC span of years as text
B60: dms_Header_Span | C60: =IF(dms_MultiYear_Flag=1,dms_SpecifiedYear_Span,IF(dms_Model_Span>1,dms_y1&" - "&FRCP_final_year,CRY)) -> 2019-20 - 2025-26 | D60: NESTED IF - for Sheet Headers
B61: ABC RINS THAT SPAN MULTIPLE YEARS
B62: This is a multi year ABC RIN? | C62: No
C63: =IF(dms_MultiYear_ResponseFlag="No",0,1) -> 0 | D63: dms_MultiYear_Flag | E63: This is set from the answer provided above
C64: =IF(dms_MultiYear_Flag=1,FRY,"not a Multiple year submission") -> not a Multiple year submission | D64: dms_Specified_FinalYear | E64: The result here is returned to dms_CRCP_FinalYear_Result if response to Q in C73 is "yes" and dms_MultiYear_Flag is set to 1
B65: Start year for 5.2 in Multi year ABC RINS | C65: =IFERROR(IF(dms_MultiYear_Flag=1,FRY,CRY),"not an ABC") -> not an ABC | D65: dms_0502_Inst_Year | E65: =IF(dms_MultiYear_Flag=1,FRY,CRY) | G65: For single year RINS this is CRY - multi year RINS need to start a the end of the span of years (ie. FRY)
B66: WHAT IS THE RYE?
B67: Reg Period Lengths
B68: PRCP length in years | C68: =INDEX(dms_PRCPlength_List,MATCH(dms_TradingName,dms_TradingName_List)) -> 5 | D68: dms_PRCPlength_Num | E68: =INDEX(dms_PRCPlength_List,MATCH(dms_TradingName,dms_TradingName_List))
B69: CRCP length in years | C69: =INDEX(dms_CRCPlength_List,MATCH(dms_TradingName,dms_TradingName_List)) -> 5 | D69: dms_CRCPlength_Num | E69: =INDEX(dms_CRCPlength_List,MATCH(dms_TradingName,dms_TradingName_List))
B70: FRCP length in years | C70: =INDEX(dms_FRCPlength_List,MATCH(dms_TradingName,dms_TradingName_List)) -> 5 | D70: dms_FRCPlength_Num | E70: =INDEX(dms_FRCPlength_List,MATCH(dms_TradingName,dms_TradingName_List))
B71: Single year RIN?
B72: Single Year ABC RIN ? | C72: =IF(dms_Model="EB",1,0) -> 0 | D72: dms_EB
C73: =IF(dms_Model="CA",1,0) -> 0 | D73: dms_CA | E73: =dms_SingleYear_Model
C74: =IF(dms_Model="ARR",1,0) -> 0 | D74: dms_ARR
B75: Is this a single Year ABC RIN? | C75: =IF(SUM(dms_SingleYear_Model)=1,"yes","no") -> no | D75: dms_SingleYearModel | E75: =IF(SUM(dms_SingleYear_Model)=1,"yes","no")
B76: Single Year Final Year Result | C76: =IF(AND(dms_SingleYearModel="yes",dms_MultiYear_Flag=0),CRY,0) -> 0 | D76: dms_SingleYear_FinalYear_Result | E76: =IFERROR(IF(SUM(dms_SingleYear_Model)<>0,(INDIRECT(dms_SingleYear_FinalYear_Ref)),"not a single year RIN"),"CRY not present")
B77: Multi year RIN?
B79: Multi Year Reset/Model? | C79: =IF(dms_Model_Span>1,"yes","no") -> yes
B80: Final year result for Reset/Model | C80: =IF(dms_Model_Span>1,dms_Reset_final_year,0) -> 2025-26 | D80: dms_MultiYear_FinalYear_Result
B82: Multi Year ABC RIN? | C82: =IF(dms_MultiYear_Flag=1,"yes","no") -> no | D82: dms_MultiYear_ABC_RIN
B83: Final year result for ABC multi year | C83: =IF(dms_MultiYear_Flag=1,C50,0) -> 0
B85: EB RINS
B86: Calendar Year for table 3.6 data | C86: =IFERROR(IF(dms_Segment="Transmission",dms_Cal_Year_B4_CRY,CRY),"CRY not present") -> CRY not present | D86: dms_0306_Year | E86: =IF(dms_Segment="Transmission",dms_Cal_Year_B4_CRY,CRY)
B87: CA RINS
B88: Find how many rows in tables 6.3 sustained interruptions? | E88: dms_060301_MaxRows only returns a valid value when cover sheet is attached to a CA file
C89: =IF(dms_Model<>"CA","not a CA","Is a CA") -> not a CA | E89: =IF(dms_Model<>"CA","not a CA","Is a CA")
B90: dms_060301_Avg_Duration_Sustained_Int_Values present? | C90: =IFERROR(IF(INDEX(dms_060301_Avg_Duration_Sustained_Int_Values,1,1)<>"","yes","no"),"no") -> no | D90: dms_060301_checkvalue | E90: =IFERROR(IF(INDEX(dms_060301_Avg_Duration_Sustained_Int_Values,1,1)<>"","yes","no"),"no")
C91: =IF(AND(dms_Model="CA",(dms_060301_checkvalue="no")),"error - NR not present","no errors") -> no errors | E91: =IF(AND(dms_Model="CA",(dms_060301_checkvalue="no")),"error - NR not present","no errors")
B92: Table 6.3.1 - last row reference | C92: =IFERROR(IF(dms_Model="CA",LOOKUP(2,1/(dms_060301_Avg_Duration_Sustained_Int_Values<>""),(ROW(dms_060301_Avg_Duration_Sustained_Int_Values))),"not a CA"),"6.3 not present") -> not a CA | D92: dms_060301_LastRow | E92: =IFERROR(IF(dms_Model="CA",LOOKUP(2,1/(dms_060301_Avg_Duration_Sustained_Int_Values<>""),(ROW(dms_060301_Avg_Duration_Sustained_Int_Values))),"not a CA"),"6.3 not present")
B93: Table 6.3.1 - max number rows | C93: =IFERROR(IF(dms_Model="CA",(dms_060301_LastRow-15),"not a CA"),"error") -> not a CA | D93: dms_060301_MaxRows | E93: =IFERROR(IF(dms_Model="CA",(dms_060301_LastRow-15),"not a CA"),"error")
B94: Table 6.6.3 - Public lighting repair - no. business days | C94: =INDEX(dms_663_List,MATCH(dms_TradingName,dms_TradingName_List)) -> x | D94: dms_663 | E94: =INDEX(dms_663_List,MATCH(dms_TradingName,dms_TradingName_List))
B95: ARR or RESET RINS
B96: How many rows in tables 6.1 or 6.7? (leap year?) | C96: insert dms_LeapYear NR if required | E96: 'dms_LeapYear is used to determine dms_060701_Max_Rows BUT it is only found on worksheet 6.1 or 6.7 and the date value in the cell is used to determine whether it is a leap year
B97: Is dms_LeapYear named range present? | C97: =IFERROR(IF(dms_LeapYear,"yes"),"no") -> no
B98: Table 6.7.1 - includes a leap year? | C98: =IFERROR(IF(MONTH(DATE(YEAR(dms_LeapYear),2,29))=2,"is a leap year","not a leap year"), "dms_LeapYear not present") -> dms_LeapYear not present | D98: dms_LeapYear_Result | E98: =IFERROR(IF(MONTH(DATE(YEAR(dms_LeapYear),2,29))=2,"is a leap year","not a leap year"),"dms_LeapYear not present")
B99: MaxRows if Reset and leap year | C99: =IF(dms_LeapYear_Result="is a leap year",1827,1826) -> 1826 | D99: dms_060701_Reset_MaxRows | E99: =IF(dms_LeapYear_Result="is a leap year",1827,1826) | H99: number of days present in Reset RIN table
B100: MaxRows if ARR and leap year | C100: =IF(dms_LeapYear_Result="is a leap year",366,365) -> 365 | D100: dms_060701_ARR_MaxRows | E100: =IF(dms_LeapYear_Result="is a leap year",366,365) | H100: number of days present in ARR RIN table
B101: Table 6.7.1 - Max Rows (leap year/ non leap year) | C101: =IF(dms_Model="ARR",dms_060701_ARR_MaxRows,IF(dms_Model="Reset",dms_060701_Reset_MaxRows,"not a relevant RIN type")) -> 1826 | D101: dms_060701_MaxRows | E101: =IF(dms_Model="ARR",dms_060701_ARR_MaxRows,IF(dms_Model="Reset",dms_060701_Reset_MaxRows,"not a relevant RIN type"))
B102: How many columns in 6.7? (4 or 5 feeder categories) | C102: =IF(dms_FifthFeeder_flag_NSP="NO","This NSP has only 4 feeder categories","This NSP has 5 feeder categories") -> This NSP has only 4 feeder categories
B103: Table 6.7.1 - Last column (# of feeder categories > 4) | C103: =IF(dms_FifthFeeder_flag_NSP="NO",10,12) -> 10 | D103: dms_060701_MaxCols | E103: =IF(dms_FifthFeeder_flag_NSP="NO",8,10)
B104: Table 6.7.1 - Number of offset rows | C104: =IF(dms_Model="ARR",15,9) -> 9 | D104: dms_060701_OffsetRows | E104: =IF(dms_Model="ARR",15,9)
B105: Start date for telephone answering in 6.1 or 6.7? | E105: Using 060101 as naming standard not 060701 for start dates
B106: Table 6.1.1 and 6.7.1 - Start Date as Text | C106: =IF(dms_SingleYearModel="yes",(CONCATENATE(IF(LEN(CRY)=4,"1-Jan-","1-Jul-"),LEFT(CRY,4))),(CONCATENATE(IF(LEN(PRCP_y4)=4,"1-Jan-","1-Jul-"),LEFT(PRCP_y4,4)))) -> 1-Jul-2014 | D106: dms_060101_StartDateTxt | E106: =IF(SUM(dms_SingleYear_Model)>1,(CONCATENATE(IF(LEN(CRY)=4,"1-Jan-","1-Jul-"),LEFT(CRY,4))),(CONCATENATE(IF(LEN(CRCP_y4)=4,"1-Jan-","1-Jul-"),LEFT(CRCP_y4,4))))
B107: Table 6.1.1 and 6.7.1 - Start Date as Date Value | C107: =DATEVALUE(dms_060701_StartDateTxt) -> 41821 | D107: dms_060101_StartDateVal | E107: =DATEVALUE(dms_060701_StartDateTxt)
B108: ARRs
B109: How many rows in table 6.8? | C109: insert dms_060801_StartCell NR if required | E109: dms_060801_StartCell is only found on worksheet 6.8 and is used to determine the starting date for the date range
B110: Is dms_060801_StartCell named range present? | C110: yes | E110: =IFERROR(IF((ROW(dms_060801_StartCell)-1)=1,"yes","yes"),"no")
B111: Table 6.8 - Number of offset rows | C111: 12 | D111: dms_0608_OffsetRows | E111: =IFERROR(IF(dms_Model="ARR",(ROW(dms_060801_StartCell)-1),"not an ARR"),"6.8 error")
B112: Table 6.8 - Last row | C112: 0 | D112: dms_0608_LastRow | E112: =IFERROR(IF(dms_060801_StartCell<>"",IF(dms_Model="ARR",(LOOKUP(2,1/(dms_060801_01_Values<>""),(ROW(dms_060801_01_Values)))),"not an ARR"),0),"0")
B113: Table 6.8 - MaxRows | C113: =IFERROR(IF(dms_Model="ARR",(MAX(0,dms_0608_LastRow-dms_0608_OffsetRows)),"not an ARR"),"0") -> not an ARR | D113: dms_060801_MaxRows | E113: =IFERROR(IF(dms_Model="ARR",(MAX(0,dms_0608_LastRow-dms_0608_OffsetRows)),"not an ARR"),"0")
B114: TNSP RESET RINS
B115: Table 7.9.4 only appears in TNSPs Reset RIN
B116: Table 7.9.4 - first year | C116: =LEFT(PRCP_y3,4) -> 2013 | D116: dms_070904_Start_Year | E116: =LEFT(PRCP_y3,4)
B118: MISC
B119: Distribution Determination Reference | C119: =INDEX(dms_DeterminationRef_List,MATCH(dms_TradingName,dms_TradingName_List)) -> 0 | D119: dms_DeterminationRef
B120: Public lighting NSP? | C120: =INDEX(dms_Public_Lighting_List,MATCH(dms_TradingName,dms_TradingName_List)) -> NO | D120: dms_Public_Lighting | E120: =INDEX(dms_Public_Lighting_List,MATCH(dms_TradingName,dms_TradingName_List))
B121: CBD Feeder for this business | C121: =INDEX(dms_CBD_flag,MATCH(dms_TradingName,dms_TradingName_List)) -> NO | D121: dms_CBD_flag_NSP
B122: Urban Feeder for this business | C122: =INDEX(dms_Urban_flag,MATCH(dms_TradingName,dms_TradingName_List)) -> NO | D122: dms_Urban_flag_NSP
B123: Short rural Feeder for this business | C123: =INDEX(dms_ShortRural_flag,MATCH(dms_TradingName,dms_TradingName_List)) -> NO | D123: dms_ShortRural_flag_NSP
B124: Long rural Feeder for this business | C124: =INDEX(dms_LongRural_flag,MATCH(dms_TradingName,dms_TradingName_List)) -> NO | D124: dms_LongRural_flag_NSP
B125: Fifth Feeder Category (eg. TasNetworks (D)) | C125: =INDEX(dms_FeederType_5_flag,MATCH(dms_TradingName,dms_TradingName_List)) -> NO | D125: dms_FifthFeeder_flag_NSP | E125: =INDEX(dms_FeederType_5_flag,MATCH(dms_TradingName,dms_TradingName_List))
B127: DISCARD FILES
B128: discard this record? | C128: NO | D128: dms_DISCARD | E128: If record is to be discarded from DB set this flag to YES
B130: SUBSET FILES
B131: Is this Submission File a Subset File | C131: NO | D131: dms_Partial
B134: REGULATORY YEARS FOR MULTI RYE SUBMISSIONS
B135: Multiple RYE flag | C135: NO | D135: dms_Multi_RYE_flag
C136: Manually specify RYE | D136: Named ranges to apply
C137: 2013 | D137: dms_RYE_01
C138: 2014 | D138: dms_RYE_02
C139: 2015 | D139: dms_RYE_03
C140: 2016 | D140: dms_RYE_04
C141: 2017 | D141: dms_RYE_05
C142: 2018 | D142: dms_RYE_06
C143: 2019 | D143: dms_RYE_07
C144: 2020 | D144: dms_RYE_08
C145: 2021 | D145: dms_RYE_09

Sheet Instructions
B2: =CONCATENATE(dms_Sector," ",dms_Segment," ", "Pipeline Service Provider") -> Gas Distribution Pipeline Service Provider
B3: =IF(dms_Model="Reset","Regulatory Proposal RIN Template","Annual Reporting RIN") -> Regulatory Proposal RIN Template
B4: =CONCATENATE("This template is to be used by ",dms_TradingNameFull," to fulfil its reporting obligations to the AER.") -> This template is to be used by Evoenergy Gas to fulfil its reporting obligations to the AER.
B5: INSTRUCTIONS
B6: GENERAL | C6: Complete the Business & other details worksheet before entering data or values in any other worksheets. The Business & other details worksheet is linked to other worksheets within the workbook and automatically generates certain column headings and conditional formatting.
B8: CONFIDENTIAL INFORMATION | C8: Please use the macro at the top of each worksheet to identify confidential information in the confidential workbook.
C9: -Do this by selecting the cell or cells that contain confidential information and then run the Mark selection as CONFIDENTIAL macro. This will format the cells a specific colour that is identified by the AER's database which in turn marks that information as confidential. -To reverse this, select the cell or cells and run the Return selection to NON-CONFIDENTIAL macro.
B11: RESPONSES | C11: Please return two (2) files to the AER: 1. A confidential version which must contain a complete set of all responses with confidential information marked using the Mark selection CONFIDENTIAL macro and which has been completed using the locked template file provided by the AER. 2. A public version with confidential information either removed completely or aggregated in some form together with writtten consent to disclose the public version of the response. Use the drop down box on the Business and other details worksheet to identify the file as either confidential ('consolidated') or public.
B13: AMENDMENTS | C13: If an NSP wishes to correct data previously submitted to the AER it should resubmit that data using the original completed submission as the starting point. Please make any necessary changes to the data. Data that is not being amended should be left unchanged. NSPs must identify the reason for the amendments in the Amendment Reason box on the Business and other details worksheet. NSPs may provide further details regarding any amendments in the Amendments worksheet. .
C14: NSP may use Amended Data macro to highlight cells that contain amended data. NB: if data is also CONFIDENTIAL, re-apply the Confidentiality macro after applying the Amended macro
C15: Please resubmit two (2) files - a confidential version and a public version of the amended submission to the AER
B17: UNITS OF MEASURE | C17: All amounts are to be unrounded and reported on a one for one basis: that is 1000 is to be entered as '1000'. Applicable units of measure may be identified in the table column headings or row descriptors.
B19: INPUT / NON-INPUT CELLS
D20: Yellow = Input cell (mandatory)
D21: Darker yellow = input cell (mandatory)
D22: Orange = input cell (if data available)
D23: Grey = Not applicable/No inputs required
D24: PLEASE DO NOT ENTER TEXT into cells that are to contain numeric data.
B27: NAVIGATION | C27: Many tables in the worksheets have been "grouped" to allow for easy navigation. To ungroup or group data use the outline symbols in the left margin (for Row groupings) or above the columns (for column groupings).

Sheet CONTENTS
B1: =INDEX(dms_Worksheet_List,MATCH(dms_Model,dms_Model_List)) -> REGULATORY REPORTING STATEMENT
B2: =INDEX(dms_TradingNameFull_List,MATCH(dms_TradingName,dms_TradingName_List)) -> Evoenergy Gas
B3: =dms_Header_Span -> 2019-20 - 2025-26
C7: CONTENTS
C9: SUBMISSION | D9: Business & other details
C11: EXPENDITURE | D11: E1. Expenditure Summary
D12: E2. Mains Repex
D13: E3. Mains Augex
D14: E4. Meter replacement
D15: E5. New Connections
D16: E6. Non-network
D17: E10. Overheads
D18: E12. ICT
D19: E13. Other capex
D20: E17. Step changes
D21: E20. Opex
D22: E21. ARS
D23: E25. Escalators
C25: NETWORK | D25: N1. Demand
D26: N2. Network characteristcs
C28: SERVICE | D28: S1.1. Customer numbers - by customer type
D29: S1.2. Customer numbers - by tariff
D30: S10. Supply Quality
D31: S11. Network reliability
C33: FINANCIAL | D33: F2. Capex
D34: F3. Revenue
C36: ADMIN | D36: Additional disclosures

Sheet Business & other details
V1: =INDEX(dms_Worksheet_List,MATCH(dms_Model,dms_Model_List)) -> REGULATORY REPORTING STATEMENT
V2: =INDEX(dms_TradingNameFull_List,MATCH(dms_TradingName,dms_TradingName_List)) -> Evoenergy Gas
V3: =dms_Header_Span -> 2019-20 - 2025-26
V4: BUSINESS & OTHER DETAILS
V6: INSTRUCTIONS
V7: Complete the following business details regulatory template before entering data or values in any other regulatory template. This regulatory template is linked to other cells within the spreadsheet and automatically generates column headings and conditional formatting to distinguish business specific input and non-input cells.
Q9: SUBMISSION PARTICULARS INPUT SHEET
V12: ENTITY DETAILS
V14: Business Name
V16: Short name | AL16: Evoenergy Gas
V17: ACN/ABN | AL17: =INDEX(dms_ABN_List,MATCH(dms_TradingName,dms_TradingName_List)) -> 76670568688
V21: Business Address | BQ21: Postal Address
V23: Address 1 | AL23: =INDEX(dms_Addr1_List,MATCH(dms_TradingName,dms_TradingName_List)) -> 40 Bunda Street | BI23: Address 1 | BQ23: =INDEX(dms_PAddr1_List,MATCH(dms_TradingName,dms_TradingName_List)) -> GPO BOX 366
V24: Address 2 | AL24: =IF(ISBLANK(INDEX(dms_Addr2_List,MATCH(dms_TradingName,dms_TradingName_List))),"",(INDEX(dms_Addr2_List,MATCH(dms_TradingName,dms_TradingName_List)))) ->  | BI24: Address 2 | BQ24: =IF(ISBLANK(INDEX(dms_PAddr2_List,MATCH(dms_TradingName,dms_TradingName_List))),"",(INDEX(dms_PAddr2_List,MATCH(dms_TradingName,dms_TradingName_List)))) -> 
V25: Suburb | AL25: =INDEX(dms_Suburb_List,MATCH(dms_TradingName,dms_TradingName_List)) -> CANBERRA | BI25: Suburb | BQ25: =INDEX(dms_PSuburb_List,MATCH(dms_TradingName,dms_TradingName_List)) -> CANBERRA
V26: State | AL26: =INDEX(dms_State_List,MATCH(dms_TradingName,dms_TradingName_List)) -> ACT | AV26: Post code | BI26: State | BQ26: =INDEX(dms_PState_List,MATCH(dms_TradingName,dms_TradingName_List)) -> ACT | CA26: Post code
BA28: `
V30: Contact Names
V32: Name | AL32: Philip Deamer | BI32: Name | BQ32: Karonny Fok
V33: Phone | AL33: 02 6248 3438 | BI33: Phone | BQ33: 02 6248 3012
V34: Email | AL34: Philip.Deamer@actewagl.com.au | BI34: Email | BQ34: Karonny.Fok@actewagl.com.au
Q39: REGULATORY PERIODS
Z42: Forthcoming period | AL42: 2021-22 | AU42: =FRCP_y2 -> 2022-23 | BD42: =FRCP_y3 -> 2023-24 | BM42: =FRCP_y4 -> 2024-25 | BV42: =FRCP_y5 -> 2025-26
AL43: =FRCP_y6 -> 2026-27 | AU43: =FRCP_y7 -> 2027-28 | BD43: =FRCP_y8 -> 2028-29 | BM43: =FRCP_y9 -> 2029-30 | BV43: =FRCP_y10 -> 2030-31
AL44: =FRCP_y11 -> 2031-32 | AU44: =FRCP_y12 -> 2032-33 | BD44: =FRCP_y13 -> 2033-34 | BM44: =FRCP_y14 -> 2034-35 | BV44: =FRCP_y15 -> 2035-36
X46: RESETS | Z46: Current period | AL46: =CRCP_y1 -> 2016-17 | AU46: =CRCP_y2 -> 2017-18 | BD46: =CRCP_y3 -> 2018-19 | BM46: =CRCP_y4 -> 2019-20 | BV46: =CRCP_y5 -> 2020-21
AL47: =CRCP_y6 -> 2021-22 | AU47: =CRCP_y7 -> 2022-23 | BD47: =CRCP_y8 -> 2023-24 | BM47: =CRCP_y9 -> 2024-25 | BV47: =CRCP_y10 -> 2025-26
AL48: =CRCP_y11 -> 2026-27 | AU48: =CRCP_y12 -> 2027-28 | BD48: =CRCP_y13 -> 2028-29 | BM48: =CRCP_y14 -> 2029-30 | BV48: =CRCP_y15 -> 2030-31
Z50: Previous period | AL50: =PRCP_y1 -> 2011-12 | AU50: =PRCP_y2 -> 2012-13 | BD50: =PRCP_y3 -> 2013-14 | BM50: =PRCP_y4 -> 2014-15 | BV50: =PRCP_y5 -> 2015-16
AL51: =PRCP_y6 -> 2016-17 | AU51: =PRCP_y7 -> 2017-18 | BD51: =PRCP_y8 -> 2018-19 | BM51: =PRCP_y9 -> 2019-20 | BV51: =PRCP_y10 -> 2020-21
AL52: =PRCP_y11 -> 2021-22 | AU52: =PRCP_y12 -> 2022-23 | BD52: =PRCP_y13 -> 2023-24 | BM52: =PRCP_y14 -> 2024-25 | BV52: =PRCP_y15 -> 2025-26
Z54: Commencing year | AL54: 2019-20
X55: ANNUAL RINS
Z56: Final year | AL56: 2025-26
Q60: SUBMISSION DETAILS
Z62: RIN type | AL62: =INDIRECT(dms_Model) -> Regulatory Reporting (Reset)
Z64: Source | AL64: Regulatory proposal
X66: THIS FILE | Z66: Data Quality | AL66: Consolidated
Z68: Confidentiality Status | AL68: Public
Z70: Amended RIN Amendment Reason | AL70: .
Z74: Submission Date | AL74: dd/mm/yy | BE74: Please enter date this file submitted to AER

Sheet E1. Expenditure Summary
B1: =INDEX(dms_Worksheet_List,MATCH(dms_Model,dms_Model_List)) -> REGULATORY REPORTING STATEMENT
B2: =INDEX(dms_TradingNameFull_List,MATCH(dms_TradingName,dms_TradingName_List)) -> Evoenergy Gas
B3: =dms_Header_Span -> 2019-20 - 2025-26
B4: E1. EXPENDITURE SUMMARY
B7: E1.1 - CAPEX
B8: E1.1.1 - REFERENCE SERVICES
C9: EXPENDITURE
C10: =CONCATENATE("$0's, real ",dms_DollarReal) -> $0's, real June 2021
C11: =CRCP_y4 -> 2019-20 | D11: =CRCP_y5 -> 2020-21 | E11: =FRCP_y1 -> 2021-22 | F11: =FRCP_y2 -> 2022-23 | G11: =FRCP_y3 -> 2023-24 | H11: =FRCP_y4 -> 2024-25 | I11: =FRCP_y5 -> 2025-26
B12: Connections | C12: 7437495 | D12: 7091670 | E12: 4687789 | F12: 4995138 | G12: 4815567 | H12: 5160223 | I12: 5162236
B13: Mains replacement | C13: 270740 | D13: 1851695 | E13: 1966205 | F13: 1093760 | G13: 746871 | H13: 186711 | I13: 184751
B14: Mains augmentation | C14: 1921610 | D14: 180762 | E14: 166478 | F14: 178201 | G14: 176210 | H14: 186711 | I14: 184751
B15: Telemetry | C15: - | D15: - | E15: - | F15: - | G15: - | H15: - | I15: -
B16: Meter replacement | C16: 4395049 | D16: 3739558 | E16: 5678647 | F16: 4272037 | G16: 4669405 | H16: 3417765 | I16: 4185536
B17: ICT | C17: - | D17: - | E17: - | F17: - | G17: - | H17: - | I17: -
B18: Capitalised network overheads | C18: - | D18: - | E18: - | F18: - | G18: - | H18: - | I18: -
B19: Capitalised corporate overheads | C19: 853761 | D19: 837257 | E19: 858115 | F19: 841095 | G19: 690984 | H19: 624602 | I19: 593877
B20: Other capex | C20: 204458 | D20: 1090592 | E20: 1802801 | F20: 3479122 | G20: 1108345 | H20: 1458631 | I20: 180667
B21: Capital contributions included in the above | C21: 111782 | D21: 115864 | E21: 91164 | F21: 97862 | G21: 95670 | H21: 101985 | I21: 101761
B22: Total (less capital contributions) | C22: =SUM(C12:C20)-C21 -> 14971331 | D22: 14675670 | E22: 15068871 | F22: 14761491 | G22: 12111712 | H22: 10932658 | I22: 10390057
B24: E1.1.2 - NON-REFERENCE SERVICES
B50: Capital contributions included in the above
B51: Total | C51: =SUM(C25:C49)-C50 -> 0 | D51: 0 | E51: 0 | F51: 0 | G51: 0 | H51: 0 | I51: 0
B54: E1.2 - OPEX
B55: E1.2.1 - REFERENCE SERVICES
C56: EXPENDITURE
C57: =CONCATENATE("$0's, real ",dms_DollarReal) -> $0's, real June 2021
C58: =CRCP_y4 -> 2019-20 | D58: =CRCP_y5 -> 2020-21 | E58: =FRCP_y1 -> 2021-22 | F58: =FRCP_y2 -> 2022-23 | G58: =FRCP_y3 -> 2023-24 | H58: =FRCP_y4 -> 2024-25 | I58: =FRCP_y5 -> 2025-26
B59: ='E20. Opex'!B44 -> repairs and maintenance | C59: ='E20. Opex'!F44 -> 15195501 | D59: ='E20. Opex'!G44 -> 15214633 | E59: ='E20. Opex'!H44 -> 15323689.15 | F59: ='E20. Opex'!I44 -> 15395735 | G59: ='E20. Opex'!J44 -> 15482880 | H59: ='E20. Opex'!K44 -> 15573147 | I59: ='E20. Opex'!L44 -> 15650930
B60: ='E20. Opex'!B45 -> marketing and retail incentives | C60: ='E20. Opex'!F45 -> 1140732 | D60: ='E20. Opex'!G45 -> 1140732 | E60: ='E20. Opex'!H45 -> 1140732 | F60: ='E20. Opex'!I45 -> 1140732 | G60: ='E20. Opex'!J45 -> 1140732 | H60: ='E20. Opex'!K45 -> 1140732 | I60: ='E20. Opex'!L45 -> 1140732
B61: ='E20. Opex'!B46 -> debt raising | C61: ='E20. Opex'!F46 -> 0 | D61: ='E20. Opex'!G46 -> 0 | E61: ='E20. Opex'!H46 -> 194062 | F61: ='E20. Opex'!I46 -> 193910 | G61: ='E20. Opex'!J46 -> 193196 | H61: ='E20. Opex'!K46 -> 190710 | I61: ='E20. Opex'!L46 -> 187291
B62: ='E20. Opex'!B47 -> equity raising | C62: ='E20. Opex'!F47 -> 0 | D62: ='E20. Opex'!G47 -> 0 | E62: ='E20. Opex'!H47 -> 0 | F62: ='E20. Opex'!I47 -> 0 | G62: ='E20. Opex'!J47 -> 0 | H62: ='E20. Opex'!K47 -> 0 | I62: ='E20. Opex'!L47 -> 0
B63: ='E20. Opex'!B48 -> unaccounted for gas | C63: ='E20. Opex'!F48 -> 1649981 | D63: ='E20. Opex'!G48 -> 1610447 | E63: ='E20. Opex'!H48 -> 1939754 | F63: ='E20. Opex'!I48 -> 1745169 | G63: ='E20. Opex'!J48 -> 1734801 | H63: ='E20. Opex'!K48 -> 1675351 | I63: ='E20. Opex'!L48 -> 1731747
B64: ='E20. Opex'!B49 -> jurisdictional charges | C64: ='E20. Opex'!F49 -> 8637348 | D64: ='E20. Opex'!G49 -> 8430399 | E64: ='E20. Opex'!H49 -> 9235543 | F64: ='E20. Opex'!I49 -> 9464742 | G64: ='E20. Opex'!J49 -> 9693893 | H64: ='E20. Opex'!K49 -> 9931460 | I64: ='E20. Opex'!L49 -> 10173227
B65: ='E20. Opex'!B50 -> GSL payments | C65: ='E20. Opex'!F50 -> - | D65: ='E20. Opex'!G50 -> 0 | E65: ='E20. Opex'!H50 -> 0 | F65: ='E20. Opex'!I50 -> 0 | G65: ='E20. Opex'!J50 -> 0 | H65: ='E20. Opex'!K50 -> 0 | I65: ='E20. Opex'!L50 -> 0
B66: ='E20. Opex'!B51 -> other opex | C66: ='E20. Opex'!F51 -> 6804710.25 | D66: ='E20. Opex'!G51 -> 7051192.31 | E66: ='E20. Opex'!H51 -> 6747342.31 | F66: ='E20. Opex'!I51 -> 7268269.63 | G66: ='E20. Opex'!J51 -> 6370654.41 | H66: ='E20. Opex'!K51 -> 6752912.01 | I66: ='E20. Opex'!L51 -> 7548964.73
B67: Total | C67: =SUM(C59:C66) -> 33428272.25 | D67: 33447403.31 | E67: 34581122.46 | F67: 35208557.63 | G67: 34616156.41 | H67: 35264312.01 | I67: 36432891.73
B69: E1.2.2 - NON-REFERENCE SERVICES
B70: =IF(ISBLANK('E20. Opex'!B58),"",'E20. Opex'!B58) -> 
B71: =IF(ISBLANK('E20. Opex'!B59),"",'E20. Opex'!B59) -> 
B72: =IF(ISBLANK('E20. Opex'!B60),"",'E20. Opex'!B60) -> 
B73: =IF(ISBLANK('E20. Opex'!B61),"",'E20. Opex'!B61) -> 
B74: =IF(ISBLANK('E20. Opex'!B62),"",'E20. Opex'!B62) -> 
B75: =IF(ISBLANK('E20. Opex'!B63),"",'E20. Opex'!B63) -> 
B76: =IF(ISBLANK('E20. Opex'!B64),"",'E20. Opex'!B64) -> 
B77: =IF(ISBLANK('E20. Opex'!B65),"",'E20. Opex'!B65) -> 
B78: =IF(ISBLANK('E20. Opex'!B66),"",'E20. Opex'!B66) -> 
B79: =IF(ISBLANK('E20. Opex'!B67),"",'E20. Opex'!B67) -> 
B80: =IF(ISBLANK('E20. Opex'!B68),"",'E20. Opex'!B68) -> 
B81: =IF(ISBLANK('E20. Opex'!B69),"",'E20. Opex'!B69) -> 
B82: =IF(ISBLANK('E20. Opex'!B70),"",'E20. Opex'!B70) -> 
B83: =IF(ISBLANK('E20. Opex'!B71),"",'E20. Opex'!B71) -> 
B84: =IF(ISBLANK('E20. Opex'!B72),"",'E20. Opex'!B72) -> 
B85: =IF(ISBLANK('E20. Opex'!B73),"",'E20. Opex'!B73) -> 
B86: =IF(ISBLANK('E20. Opex'!B74),"",'E20. Opex'!B74) -> 
B87: =IF(ISBLANK('E20. Opex'!B75),"",'E20. Opex'!B75) -> 
B88: =IF(ISBLANK('E20. Opex'!B76),"",'E20. Opex'!B76) -> 
B89: =IF(ISBLANK('E20. Opex'!B77),"",'E20. Opex'!B77) -> 
B90: =IF(ISBLANK('E20. Opex'!B78),"",'E20. Opex'!B78) -> 
B91: =IF(ISBLANK('E20. Opex'!B79),"",'E20. Opex'!B79) -> 
B92: =IF(ISBLANK('E20. Opex'!B80),"",'E20. Opex'!B80) -> 
B93: =IF(ISBLANK('E20. Opex'!B81),"",'E20. Opex'!B81) -> 
B94: =IF(ISBLANK('E20. Opex'!B82),"",'E20. Opex'!B82) -> 
B95: Total | C95: =SUM(C70:C94) -> 0 | D95: =SUM(D70:D94) -> 0 | E95: 0 | F95: 0 | G95: 0 | H95: 0 | I95: 0
B98: E1.3 - CAPCONS
B99: E1.3.1 - REFERENCE SERVICES
C100: EXPENDITURE
C101: =CONCATENATE("$0's, real ",dms_DollarReal) -> $0's, real June 2021
C102: =CRCP_y4 -> 2019-20 | D102: =CRCP_y5 -> 2020-21 | E102: =FRCP_y1 -> 2021-22 | F102: =FRCP_y2 -> 2022-23 | G102: =FRCP_y3 -> 2023-24 | H102: =FRCP_y4 -> 2024-25 | I102: =FRCP_y5 -> 2025-26
B103: Connections | C103: 111782 | D103: 115864 | E103: 91164 | F103: 97862 | G103: 95670 | H103: 101985 | I103: 101761
B104: Mains replacement | C104: - | D104: - | E104: - | F104: - | G104: - | H104: - | I104: -
B105: Mains augmentation | C105: - | D105: - | E105: - | F105: - | G105: - | H105: - | I105: -
B106: Telemetry
B107: Meter replacement | C107: - | D107: - | E107: - | F107: - | G107: - | H107: - | I107: -
B108: ICT | C108: - | D108: - | E108: - | F108: - | G108: - | H108: - | I108: -
B109: Capitalised network overheads
B110: Capitalised corporate overheads
B111: Other capex | C111: - | D111: - | E111: - | F111: - | G111: - | H111: - | I111: -
B112: Total | C112: =SUM(C103:C111) -> 111782 | D112: 115864 | E112: 91164 | F112: 97862 | G112: 95670 | H112: 101985 | I112: 101761
B114: E1.3.2 - NON-REFERENCE SERVICES
C115: EXPENDITURE
C116: =CONCATENATE("$0's, real ",dms_DollarReal) -> $0's, real June 2021
C117: =CRCP_y4 -> 2019-20 | D117: =CRCP_y5 -> 2020-21 | E117: =FRCP_y1 -> 2021-22 | F117: =FRCP_y2 -> 2022-23 | G117: =FRCP_y3 -> 2023-24 | H117: =FRCP_y4 -> 2024-25 | I117: =FRCP_y5 -> 2025-26
B142: Total | C142: =SUM(C118:C141) -> 0 | D142: 0 | E142: 0 | F142: 0 | G142: 0 | H142: 0 | I142: 0
B145: E1.4 - CAPITALISED OVERHEADS
B146: E1.4.1 - REFERENCE SERVICES
C147: EXPENDITURE
C148: =CONCATENATE("$0's, real ",dms_DollarReal) -> $0's, real June 2021
C149: =CRCP_y4 -> 2019-20 | D149: =CRCP_y5 -> 2020-21 | E149: =FRCP_y1 -> 2021-22 | F149: =FRCP_y2 -> 2022-23 | G149: =FRCP_y3 -> 2023-24 | H149: =FRCP_y4 -> 2024-25 | I149: =FRCP_y5 -> 2025-26
B150: Connections | C150: 446250 | D150: 425500 | E150: 281267 | F150: 299708 | G150: 288934 | H150: 309613 | I150: 309734
B151: Mains replacement | C151: 16244 | D151: 111102 | E151: 117972 | F151: 65626 | G151: 44812 | H151: 11203 | I151: 11085
B152: Mains augmentation | C152: 115297 | D152: 10846 | E152: 9989 | F152: 10692 | G152: 10573 | H152: 11203 | I152: 11085
B153: Telemetry | C153: - | D153: - | E153: - | F153: - | G153: - | H153: - | I153: -
B154: Meter replacement | C154: 263703 | D154: 224373 | E154: 340719 | F154: 256322 | G154: 280164 | H154: 205066 | I154: 251132
B155: ICT | C155: - | D155: - | E155: - | F155: - | G155: - | H155: - | I155: -
B156: Other capex | C156: 12267 | D156: 65436 | E156: 108168 | F156: 208747 | G156: 66501 | H156: 87518 | I156: 10840
B157: Capital contributions included in the above
B158: Total (less capital contributions) | C158: =SUM(C150:C156)-C157 -> 853761 | D158: 837257 | E158: 858115 | F158: 841095 | G158: 690984 | H158: 624603 | I158: 593876
B162: E1.4.2 - NON-REFERENCE SERVICES
C163: EXPENDITURE
C164: =CONCATENATE("$0's, real ",dms_DollarReal) -> $0's, real June 2021
C165: =CRCP_y4 -> 2019-20 | D165: =CRCP_y5 -> 2020-21 | E165: =FRCP_y1 -> 2021-22 | F165: =FRCP_y2 -> 2022-23 | G165: =FRCP_y3 -> 2023-24 | H165: =FRCP_y4 -> 2024-25 | I165: =FRCP_y5 -> 2025-26
B188: Capital contributions included in the above
B189: Total (less capital contributions) | C189: =SUM(C166:C187)-C188 -> 0 | D189: 0 | E189: 0 | F189: 0 | G189: 0 | H189: 0 | I189: 0

Sheet E2. Mains Repex
B1: =INDEX(dms_Worksheet_List,MATCH(dms_Model,dms_Model_List)) -> REGULATORY REPORTING STATEMENT
B2: =INDEX(dms_TradingNameFull_List,MATCH(dms_TradingName,dms_TradingName_List)) -> Evoenergy Gas
B3: =dms_Header_Span -> 2019-20 - 2025-26
B4: E2. MAINS REPLACEMENT
B8: Please list all projects here:
B9: 20006843 - Yarralumla Secondary Relocation
B10: 20003149 - Inlet Piping - Woden Westfield
B11: 20003150 - Inlet Piping Retification - Belconnen Westfield
B12: 20003151 - Inlet Piping - Tuggeranong
B61: E2.1 - CAPEX
B62: E2.1.1 - PROACTIVE - BY PROJECT
D63: EXPENDITURE
D64: =CONCATENATE("$0's, real ",dms_DollarReal) -> $0's, real June 2021
D65: =CRCP_y4 -> 2019-20 | E65: =CRCP_y5 -> 2020-21 | F65: =FRCP_y1 -> 2021-22 | G65: =FRCP_y2 -> 2022-23 | H65: =FRCP_y3 -> 2023-24 | I65: =FRCP_y4 -> 2024-25 | J65: =FRCP_y5 -> 2025-26
B66: A. DIRECT INTERNAL LABOUR EXPENDITURE
B67: =IF(ISBLANK(dms_E2_Projects_01),"",dms_E2_Projects_01) -> 20006843 - Yarralumla Secondary Relocation | D67: - | E67: - | F67: - | G67: - | H67: - | I67: - | J67: -
B68: =IF(ISBLANK(dms_E2_Projects_02),"",dms_E2_Projects_02) -> 20003149 - Inlet Piping - Woden Westfield | D68: - | E68: - | F68: - | G68: - | H68: - | I68: - | J68: -
B69: =IF(ISBLANK(dms_E2_Projects_03),"",dms_E2_Projects_03) -> 20003150 - Inlet Piping Retification - Belconnen Westfield | D69: - | E69: - | F69: - | G69: - | H69: - | I69: - | J69: -
B70: =IF(ISBLANK(dms_E2_Projects_04),"",dms_E2_Projects_04) -> 20003151 - Inlet Piping - Tuggeranong | D70: - | E70: - | F70: - | G70: - | H70: - | I70: - | J70: -
B71: =IF(ISBLANK(dms_E2_Projects_05),"",dms_E2_Projects_05) -> 
B72: =IF(ISBLANK(dms_E2_Projects_06),"",dms_E2_Projects_06) -> 
B73: =IF(ISBLANK(dms_E2_Projects_07),"",dms_E2_Projects_07) -> 
B74: =IF(ISBLANK(dms_E2_Projects_08),"",dms_E2_Projects_08) -> 
B75: =IF(ISBLANK(dms_E2_Projects_09),"",dms_E2_Projects_09) -> 
B76: =IF(ISBLANK(dms_E2_Projects_10),"",dms_E2_Projects_10) -> 
B77: =IF(ISBLANK(dms_E2_Projects_11),"",dms_E2_Projects_11) -> 
B78: =IF(ISBLANK(dms_E2_Projects_12),"",dms_E2_Projects_12) -> 
B79: =IF(ISBLANK(dms_E2_Projects_13),"",dms_E2_Projects_13) -> 
B80: =IF(ISBLANK(dms_E2_Projects_14),"",dms_E2_Projects_14) -> 
B81: =IF(ISBLANK(dms_E2_Projects_15),"",dms_E2_Projects_15) -> 
B82: =IF(ISBLANK(dms_E2_Projects_16),"",dms_E2_Projects_16) -> 
B83: =IF(ISBLANK(dms_E2_Projects_17),"",dms_E2_Projects_17) -> 
B84: =IF(ISBLANK(dms_E2_Projects_18),"",dms_E2_Projects_18) -> 
B85: =IF(ISBLANK(dms_E2_Projects_18),"",dms_E2_Projects_18) -> 
B86: =IF(ISBLANK(dms_E2_Projects_19),"",dms_E2_Projects_19) -> 
B87: =IF(ISBLANK(dms_E2_Projects_20),"",dms_E2_Projects_20) -> 
B88: =IF(ISBLANK(dms_E2_Projects_21),"",dms_E2_Projects_21) -> 
B89: =IF(ISBLANK(dms_E2_Projects_22),"",dms_E2_Projects_22) -> 
B90: =IF(ISBLANK(dms_E2_Projects_23),"",dms_E2_Projects_23) -> 
B91: =IF(ISBLANK(dms_E2_Projects_24),"",dms_E2_Projects_24) -> 
B92: =IF(ISBLANK(dms_E2_Projects_25),"",dms_E2_Projects_26) -> 
B93: =IF(ISBLANK(dms_E2_Projects_27),"",dms_E2_Projects_27) -> 
B94: =IF(ISBLANK(dms_E2_Projects_28),"",dms_E2_Projects_28) -> 
B95: =IF(ISBLANK(dms_E2_Projects_29),"",dms_E2_Projects_29) -> 
B96: =IF(ISBLANK(dms_E2_Projects_30),"",dms_E2_Projects_30) -> 
B97: =IF(ISBLANK(dms_E2_Projects_31),"",dms_E2_Projects_31) -> 
B98: =IF(ISBLANK(dms_E2_Projects_32),"",dms_E2_Projects_32) -> 
B99: =IF(ISBLANK(dms_E2_Projects_33),"",dms_E2_Projects_33) -> 
B100: =IF(ISBLANK(dms_E2_Projects_34),"",dms_E2_Projects_34) -> 
B101: =IF(ISBLANK(dms_E2_Projects_35),"",dms_E2_Projects_35) -> 
B102: =IF(ISBLANK(dms_E2_Projects_36),"",dms_E2_Projects_36) -> 
B103: =IF(ISBLANK(dms_E2_Projects_37),"",dms_E2_Projects_37) -> 
B104: =IF(ISBLANK(dms_E2_Projects_38),"",dms_E2_Projects_38) -> 
B105: =IF(ISBLANK(dms_E2_Projects_39),"",dms_E2_Projects_39) -> 
B106: =IF(ISBLANK(dms_E2_Projects_40),"",dms_E2_Projects_40) -> 
B107: =IF(ISBLANK(dms_E2_Projects_41),"",dms_E2_Projects_41) -> 
B108: =IF(ISBLANK(dms_E2_Projects_42),"",dms_E2_Projects_42) -> 
B109: =IF(ISBLANK(dms_E2_Projects_43),"",dms_E2_Projects_43) -> 
B110: =IF(ISBLANK(dms_E2_Projects_44),"",dms_E2_Projects_44) -> 
B111: =IF(ISBLANK(dms_E2_Projects_45),"",dms_E2_Projects_45) -> 
B112: =IF(ISBLANK(dms_E2_Projects_46),"",dms_E2_Projects_46) -> 
B113: =IF(ISBLANK(dms_E2_Projects_47),"",dms_E2_Projects_47) -> 
B114: =IF(ISBLANK(dms_E2_Projects_48),"",dms_E2_Projects_48) -> 
B115: =IF(ISBLANK(dms_E2_Projects_49),"",dms_E2_Projects_49) -> 
B116: =IF(ISBLANK(dms_E2_Projects_50),"",dms_E2_Projects_50) -> 
B117: Other projects with expenditure of less than $500,000 | D117: - | E117: - | F117: - | G117: - | H117: - | I117: - | J117: -
C118: Total | D118: =SUM(D67:D117) -> 0 | E118: =SUM(E67:E117) -> 0 | F118: =SUM(F67:F117) -> 0 | G118: =SUM(G67:G117) -> 0 | H118: =SUM(H67:H117) -> 0 | I118: =SUM(I67:I117) -> 0 | J118: =SUM(J67:J117) -> 0
B120: B. DIRECT CONTRACTOR EXPENDITURE
D121: EXPENDITURE
D122: =CONCATENATE("$0's, real ",dms_DollarReal) -> $0's, real June 2021
D123: =CRCP_y4 -> 2019-20 | E123: =CRCP_y5 -> 2020-21 | F123: =FRCP_y1 -> 2021-22 | G123: =FRCP_y2 -> 2022-23 | H123: =FRCP_y3 -> 2023-24 | I123: =FRCP_y4 -> 2024-25 | J123: =FRCP_y5 -> 2025-26
B124: =IF(ISBLANK(dms_E2_Projects_01),"",dms_E2_Projects_01) -> 20006843 - Yarralumla Secondary Relocation
B125: =IF(ISBLANK(dms_E2_Projects_02),"",dms_E2_Projects_02) -> 20003149 - Inlet Piping - Woden Westfield
B126: =IF(ISBLANK(dms_E2_Projects_03),"",dms_E2_Projects_03) -> 20003150 - Inlet Piping Retification - Belconnen Westfield
B127: =IF(ISBLANK(dms_E2_Projects_04),"",dms_E2_Projects_04) -> 20003151 - Inlet Piping - Tuggeranong
B128: =IF(ISBLANK(dms_E2_Projects_05),"",dms_E2_Projects_05) -> 
B129: =IF(ISBLANK(dms_E2_Projects_06),"",dms_E2_Projects_06) -> 
B130: =IF(ISBLANK(dms_E2_Projects_07),"",dms_E2_Projects_07) -> 
B131: =IF(ISBLANK(dms_E2_Projects_08),"",dms_E2_Projects_08) -> 
B132: =IF(ISBLANK(dms_E2_Projects_09),"",dms_E2_Projects_09) -> 
B133: =IF(ISBLANK(dms_E2_Projects_10),"",dms_E2_Projects_10) -> 
B134: =IF(ISBLANK(dms_E2_Projects_11),"",dms_E2_Projects_11) -> 
B135: =IF(ISBLANK(dms_E2_Projects_12),"",dms_E2_Projects_12) -> 
B136: =IF(ISBLANK(dms_E2_Projects_13),"",dms_E2_Projects_13) -> 
B137: =IF(ISBLANK(dms_E2_Projects_14),"",dms_E2_Projects_14) -> 
B138: =IF(ISBLANK(dms_E2_Projects_15),"",dms_E2_Projects_15) -> 
B139: =IF(ISBLANK(dms_E2_Projects_16),"",dms_E2_Projects_16) -> 
B140: =IF(ISBLANK(dms_E2_Projects_17),"",dms_E2_Projects_17) -> 
B141: =IF(ISBLANK(dms_E2_Projects_18),"",dms_E2_Projects_18) -> 
B142: =IF(ISBLANK(dms_E2_Projects_18),"",dms_E2_Projects_18) -> 
B143: =IF(ISBLANK(dms_E2_Projects_19),"",dms_E2_Projects_19) -> 
B144: =IF(ISBLANK(dms_E2_Projects_20),"",dms_E2_Projects_20) -> 
B145: =IF(ISBLANK(dms_E2_Projects_21),"",dms_E2_Projects_21) -> 
B146: =IF(ISBLANK(dms_E2_Projects_22),"",dms_E2_Projects_22) -> 
B147: =IF(ISBLANK(dms_E2_Projects_23),"",dms_E2_Projects_23) -> 
B148: =IF(ISBLANK(dms_E2_Projects_24),"",dms_E2_Projects_24) -> 
B149: =IF(ISBLANK(dms_E2_Projects_25),"",dms_E2_Projects_26) -> 
B150: =IF(ISBLANK(dms_E2_Projects_27),"",dms_E2_Projects_27) -> 
B151: =IF(ISBLANK(dms_E2_Projects_28),"",dms_E2_Projects_28) -> 
B152: =IF(ISBLANK(dms_E2_Projects_29),"",dms_E2_Projects_29) -> 
B153: =IF(ISBLANK(dms_E2_Projects_30),"",dms_E2_Projects_30) -> 
B154: =IF(ISBLANK(dms_E2_Projects_31),"",dms_E2_Projects_31) -> 
B155: =IF(ISBLANK(dms_E2_Projects_32),"",dms_E2_Projects_32) -> 
B156: =IF(ISBLANK(dms_E2_Projects_33),"",dms_E2_Projects_33) -> 
B157: =IF(ISBLANK(dms_E2_Projects_34),"",dms_E2_Projects_34) -> 
B158: =IF(ISBLANK(dms_E2_Projects_35),"",dms_E2_Projects_35) -> 
B159: =IF(ISBLANK(dms_E2_Projects_36),"",dms_E2_Projects_36) -> 
B160: =IF(ISBLANK(dms_E2_Projects_37),"",dms_E2_Projects_37) -> 
B161: =IF(ISBLANK(dms_E2_Projects_38),"",dms_E2_Projects_38) -> 
B162: =IF(ISBLANK(dms_E2_Projects_39),"",dms_E2_Projects_39) -> 
B163: =IF(ISBLANK(dms_E2_Projects_40),"",dms_E2_Projects_40) -> 
B164: =IF(ISBLANK(dms_E2_Projects_41),"",dms_E2_Projects_41) -> 
B165: =IF(ISBLANK(dms_E2_Projects_42),"",dms_E2_Projects_42) -> 
B166: =IF(ISBLANK(dms_E2_Projects_43),"",dms_E2_Projects_43) -> 
B167: =IF(ISBLANK(dms_E2_Projects_44),"",dms_E2_Projects_44) -> 
B168: =IF(ISBLANK(dms_E2_Projects_45),"",dms_E2_Projects_45) -> 
B169: =IF(ISBLANK(dms_E2_Projects_46),"",dms_E2_Projects_46) -> 
B170: =IF(ISBLANK(dms_E2_Projects_47),"",dms_E2_Projects_47) -> 
B171: =IF(ISBLANK(dms_E2_Projects_48),"",dms_E2_Projects_48) -> 
B172: =IF(ISBLANK(dms_E2_Projects_49),"",dms_E2_Projects_49) -> 
B173: =IF(ISBLANK(dms_E2_Projects_50),"",dms_E2_Projects_50) -> 
B174: Other projects with expenditure of less than $500,000
C175: Total | D175: =SUM(D124:D174) -> 0 | E175: =SUM(E124:E174) -> 0 | F175: 0 | G175: 0 | H175: 0 | I175: 0 | J175: 0
B177: C. OTHER INTERNAL DIRECT EXPENDITURE
D178: EXPENDITURE
D179: =CONCATENATE("$0's, real ",dms_DollarReal) -> $0's, real June 2021
D180: =CRCP_y4 -> 2019-20 | E180: =CRCP_y5 -> 2020-21 | F180: =FRCP_y1 -> 2021-22 | G180: =FRCP_y2 -> 2022-23 | H180: =FRCP_y3 -> 2023-24 | I180: =FRCP_y4 -> 2024-25 | J180: =FRCP_y5 -> 2025-26
B181: =IF(ISBLANK(dms_E2_Projects_01),"",dms_E2_Projects_01) -> 20006843 - Yarralumla Secondary Relocation | D181: - | E181: - | F181: - | G181: - | H181: - | I181: - | J181: -
B182: =IF(ISBLANK(dms_E2_Projects_02),"",dms_E2_Projects_02) -> 20003149 - Inlet Piping - Woden Westfield | D182: - | E182: - | F182: - | G182: - | H182: - | I182: - | J182: -
B183: =IF(ISBLANK(dms_E2_Projects_03),"",dms_E2_Projects_03) -> 20003150 - Inlet Piping Retification - Belconnen Westfield | D183: - | E183: - | F183: - | G183: - | H183: - | I183: - | J183: -
B184: =IF(ISBLANK(dms_E2_Projects_04),"",dms_E2_Projects_04) -> 20003151 - Inlet Piping - Tuggeranong | D184: - | E184: - | F184: - | G184: - | H184: - | I184: - | J184: -
B185: =IF(ISBLANK(dms_E2_Projects_05),"",dms_E2_Projects_05) -> 
B186: =IF(ISBLANK(dms_E2_Projects_06),"",dms_E2_Projects_06) -> 
B187: =IF(ISBLANK(dms_E2_Projects_07),"",dms_E2_Projects_07) -> 
B188: =IF(ISBLANK(dms_E2_Projects_08),"",dms_E2_Projects_08) -> 
B189: =IF(ISBLANK(dms_E2_Projects_09),"",dms_E2_Projects_09) -> 
B190: =IF(ISBLANK(dms_E2_Projects_10),"",dms_E2_Projects_10) -> 
B191: =IF(ISBLANK(dms_E2_Projects_11),"",dms_E2_Projects_11) -> 
B192: =IF(ISBLANK(dms_E2_Projects_12),"",dms_E2_Projects_12) -> 
B193: =IF(ISBLANK(dms_E2_Projects_13),"",dms_E2_Projects_13) -> 
B194: =IF(ISBLANK(dms_E2_Projects_14),"",dms_E2_Projects_14) -> 
B195: =IF(ISBLANK(dms_E2_Projects_15),"",dms_E2_Projects_15) -> 
B196: =IF(ISBLANK(dms_E2_Projects_16),"",dms_E2_Projects_16) -> 
B197: =IF(ISBLANK(dms_E2_Projects_17),"",dms_E2_Projects_17) -> 
B198: =IF(ISBLANK(dms_E2_Projects_18),"",dms_E2_Projects_18) -> 
B199: =IF(ISBLANK(dms_E2_Projects_18),"",dms_E2_Projects_18) -> 
B200: =IF(ISBLANK(dms_E2_Projects_19),"",dms_E2_Projects_19) -> 
B201: =IF(ISBLANK(dms_E2_Projects_20),"",dms_E2_Projects_20) -> 
B202: =IF(ISBLANK(dms_E2_Projects_21),"",dms_E2_Projects_21) -> 
B203: =IF(ISBLANK(dms_E2_Projects_22),"",dms_E2_Projects_22) -> 
B204: =IF(ISBLANK(dms_E2_Projects_23),"",dms_E2_Projects_23) -> 
B205: =IF(ISBLANK(dms_E2_Projects_24),"",dms_E2_Projects_24) -> 
B206: =IF(ISBLANK(dms_E2_Projects_25),"",dms_E2_Projects_26) -> 
B207: =IF(ISBLANK(dms_E2_Projects_27),"",dms_E2_Projects_27) -> 
B208: =IF(ISBLANK(dms_E2_Projects_28),"",dms_E2_Projects_28) -> 
B209: =IF(ISBLANK(dms_E2_Projects_29),"",dms_E2_Projects_29) -> 
B210: =IF(ISBLANK(dms_E2_Projects_30),"",dms_E2_Projects_30) -> 
B211: =IF(ISBLANK(dms_E2_Projects_31),"",dms_E2_Projects_31) -> 
B212: =IF(ISBLANK(dms_E2_Projects_32),"",dms_E2_Projects_32) -> 
B213: =IF(ISBLANK(dms_E2_Projects_33),"",dms_E2_Projects_33) -> 
B214: =IF(ISBLANK(dms_E2_Projects_34),"",dms_E2_Projects_34) -> 
B215: =IF(ISBLANK(dms_E2_Projects_35),"",dms_E2_Projects_35) -> 
B216: =IF(ISBLANK(dms_E2_Projects_36),"",dms_E2_Projects_36) -> 
B217: =IF(ISBLANK(dms_E2_Projects_37),"",dms_E2_Projects_37) -> 
B218: =IF(ISBLANK(dms_E2_Projects_38),"",dms_E2_Projects_38) -> 
B219: =IF(ISBLANK(dms_E2_Projects_39),"",dms_E2_Projects_39) -> 
B220: =IF(ISBLANK(dms_E2_Projects_40),"",dms_E2_Projects_40) -> 
B221: =IF(ISBLANK(dms_E2_Projects_41),"",dms_E2_Projects_41) -> 
B222: =IF(ISBLANK(dms_E2_Projects_42),"",dms_E2_Projects_42) -> 
B223: =IF(ISBLANK(dms_E2_Projects_43),"",dms_E2_Projects_43) -> 
B224: =IF(ISBLANK(dms_E2_Projects_44),"",dms_E2_Projects_44) -> 
B225: =IF(ISBLANK(dms_E2_Projects_45),"",dms_E2_Projects_45) -> 
B226: =IF(ISBLANK(dms_E2_Projects_46),"",dms_E2_Projects_46) -> 
B227: =IF(ISBLANK(dms_E2_Projects_47),"",dms_E2_Projects_47) -> 
B228: =IF(ISBLANK(dms_E2_Projects_48),"",dms_E2_Projects_48) -> 
B229: =IF(ISBLANK(dms_E2_Projects_49),"",dms_E2_Projects_49) -> 
B230: =IF(ISBLANK(dms_E2_Projects_50),"",dms_E2_Projects_50) -> 
B231: Other projects with expenditure of less than $500,000 | D231: - | E231: - | F231: - | G231: - | H231: - | I231: - | J231: -
C232: Total | D232: =SUM(D181:D231) -> 0 | E232: =SUM(E181:E231) -> 0 | F232: 0 | G232: 0 | H232: 0 | I232: 0 | J232: 0
B234: D. TOTAL OVERHEAD EXPENDITURE
D235: EXPENDITURE
D236: =CONCATENATE("$0's, real ",dms_DollarReal) -> $0's, real June 2021
D237: =CRCP_y4 -> 2019-20 | E237: =CRCP_y5 -> 2020-21 | F237: =FRCP_y1 -> 2021-22 | G237: =FRCP_y2 -> 2022-23 | H237: =FRCP_y3 -> 2023-24 | I237: =FRCP_y4 -> 2024-25 | J237: =FRCP_y5 -> 2025-26
B238: =IF(ISBLANK(dms_E2_Projects_01),"",dms_E2_Projects_01) -> 20006843 - Yarralumla Secondary Relocation | D238: 3675 | E238: 63895 | F238: 591 | G238: - | H238: - | I238: - | J238: -
B239: =IF(ISBLANK(dms_E2_Projects_02),"",dms_E2_Projects_02) -> 20003149 - Inlet Piping - Woden Westfield | D239: - | E239: - | F239: 3164 | G239: 31727 | H239: 34240 | I239: - | J239: -
B240: =IF(ISBLANK(dms_E2_Projects_03),"",dms_E2_Projects_03) -> 20003150 - Inlet Piping Retification - Belconnen Westfield | D240: 3399 | E240: 34499 | F240: 591 | G240: - | H240: - | I240: - | J240: -
B241: =IF(ISBLANK(dms_E2_Projects_04),"",dms_E2_Projects_04) -> 20003151 - Inlet Piping - Tuggeranong | D241: - | E241: 3145 | F241: 103637 | G241: 23206 | H241: - | I241: - | J241: -
B242: =IF(ISBLANK(dms_E2_Projects_05),"",dms_E2_Projects_05) -> 
B243: =IF(ISBLANK(dms_E2_Projects_06),"",dms_E2_Projects_06) -> 
B244: =IF(ISBLANK(dms_E2_Projects_07),"",dms_E2_Projects_07) -> 
B245: =IF(ISBLANK(dms_E2_Projects_08),"",dms_E2_Projects_08) -> 
B246: =IF(ISBLANK(dms_E2_Projects_09),"",dms_E2_Projects_09) -> 
B247: =IF(ISBLANK(dms_E2_Projects_10),"",dms_E2_Projects_10) -> 
B248: =IF(ISBLANK(dms_E2_Projects_11),"",dms_E2_Projects_11) -> 
B249: =IF(ISBLANK(dms_E2_Projects_12),"",dms_E2_Projects_12) -> 
B250: =IF(ISBLANK(dms_E2_Projects_13),"",dms_E2_Projects_13) -> 
B251: =IF(ISBLANK(dms_E2_Projects_14),"",dms_E2_Projects_14) -> 
B252: =IF(ISBLANK(dms_E2_Projects_15),"",dms_E2_Projects_15) -> 
B253: =IF(ISBLANK(dms_E2_Projects_16),"",dms_E2_Projects_16) -> 
B254: =IF(ISBLANK(dms_E2_Projects_17),"",dms_E2_Projects_17) -> 
... 527 more rows

Sheet E3. Mains Augex
B1: =INDEX(dms_Worksheet_List,MATCH(dms_Model,dms_Model_List)) -> REGULATORY REPORTING STATEMENT
B2: =INDEX(dms_TradingNameFull_List,MATCH(dms_TradingName,dms_TradingName_List)) -> Evoenergy Gas
B3: =dms_Header_Span -> 2019-20 - 2025-26
B4: E3. MAINS AUGMENTATION
B7: Please list all projects here:
B8: 20004277 - Molonglo Secondary Stage 3A and 3B
B60: E3.1 - CAPEX BY PROJECT
B61: A. DIRECT INTERNAL LABOUR EXPENDITURE
C62: EXPENDITURE
C63: =CONCATENATE("$0's, real ",dms_DollarReal) -> $0's, real June 2021
C64: =CRCP_y4 -> 2019-20 | D64: =CRCP_y5 -> 2020-21 | E64: =FRCP_y1 -> 2021-22 | F64: =FRCP_y2 -> 2022-23 | G64: =FRCP_y3 -> 2023-24 | H64: =FRCP_y4 -> 2024-25 | I64: =FRCP_y5 -> 2025-26
B65: =IF(ISBLANK(dms_E3_Projects_01),"",dms_E3_Projects_01) -> 20004277 - Molonglo Secondary Stage 3A and 3B | C65: - | D65: - | E65: - | F65: - | G65: - | H65: - | I65: -
B66: =IF(ISBLANK(dms_E3_Projects_02),"",dms_E3_Projects_02) -> 
B67: =IF(ISBLANK(dms_E3_Projects_03),"",dms_E3_Projects_03) -> 
B68: =IF(ISBLANK(dms_E3_Projects_04),"",dms_E3_Projects_04) -> 
B69: =IF(ISBLANK(dms_E3_Projects_05),"",dms_E3_Projects_05) -> 
B70: =IF(ISBLANK(dms_E3_Projects_06),"",dms_E3_Projects_06) -> 
B71: =IF(ISBLANK(dms_E3_Projects_07),"",dms_E3_Projects_07) -> 
B72: =IF(ISBLANK(dms_E3_Projects_08),"",dms_E3_Projects_08) -> 
B73: =IF(ISBLANK(dms_E3_Projects_09),"",dms_E3_Projects_09) -> 
B74: =IF(ISBLANK(dms_E3_Projects_10),"",dms_E3_Projects_10) -> 
B75: =IF(ISBLANK(dms_E3_Projects_11),"",dms_E3_Projects_11) -> 
B76: =IF(ISBLANK(dms_E3_Projects_12),"",dms_E3_Projects_12) -> 
B77: =IF(ISBLANK(dms_E3_Projects_13),"",dms_E3_Projects_13) -> 
B78: =IF(ISBLANK(dms_E3_Projects_14),"",dms_E3_Projects_14) -> 
B79: =IF(ISBLANK(dms_E3_Projects_15),"",dms_E3_Projects_15) -> 
B80: =IF(ISBLANK(dms_E3_Projects_16),"",dms_E3_Projects_16) -> 
B81: =IF(ISBLANK(dms_E3_Projects_17),"",dms_E3_Projects_17) -> 
B82: =IF(ISBLANK(dms_E3_Projects_18),"",dms_E3_Projects_18) -> 
B83: =IF(ISBLANK(dms_E3_Projects_18),"",dms_E3_Projects_18) -> 
B84: =IF(ISBLANK(dms_E3_Projects_19),"",dms_E3_Projects_19) -> 
B85: =IF(ISBLANK(dms_E3_Projects_20),"",dms_E3_Projects_20) -> 
B86: =IF(ISBLANK(dms_E3_Projects_21),"",dms_E3_Projects_21) -> 
B87: =IF(ISBLANK(dms_E3_Projects_22),"",dms_E3_Projects_22) -> 
B88: =IF(ISBLANK(dms_E3_Projects_23),"",dms_E3_Projects_23) -> 
B89: =IF(ISBLANK(dms_E3_Projects_24),"",dms_E3_Projects_24) -> 
B90: =IF(ISBLANK(dms_E3_Projects_25),"",dms_E3_Projects_26) -> 
B91: =IF(ISBLANK(dms_E3_Projects_27),"",dms_E3_Projects_27) -> 
B92: =IF(ISBLANK(dms_E3_Projects_28),"",dms_E3_Projects_28) -> 
B93: =IF(ISBLANK(dms_E3_Projects_29),"",dms_E3_Projects_29) -> 
B94: =IF(ISBLANK(dms_E3_Projects_30),"",dms_E3_Projects_30) -> 
B95: =IF(ISBLANK(dms_E3_Projects_31),"",dms_E3_Projects_31) -> 
B96: =IF(ISBLANK(dms_E3_Projects_32),"",dms_E3_Projects_32) -> 
B97: =IF(ISBLANK(dms_E3_Projects_33),"",dms_E3_Projects_33) -> 
B98: =IF(ISBLANK(dms_E3_Projects_34),"",dms_E3_Projects_34) -> 
B99: =IF(ISBLANK(dms_E3_Projects_35),"",dms_E3_Projects_35) -> 
B100: =IF(ISBLANK(dms_E3_Projects_36),"",dms_E3_Projects_36) -> 
B101: =IF(ISBLANK(dms_E3_Projects_37),"",dms_E3_Projects_37) -> 
B102: =IF(ISBLANK(dms_E3_Projects_38),"",dms_E3_Projects_38) -> 
B103: =IF(ISBLANK(dms_E3_Projects_39),"",dms_E3_Projects_39) -> 
B104: =IF(ISBLANK(dms_E3_Projects_40),"",dms_E3_Projects_40) -> 
B105: =IF(ISBLANK(dms_E3_Projects_41),"",dms_E3_Projects_41) -> 
B106: =IF(ISBLANK(dms_E3_Projects_42),"",dms_E3_Projects_42) -> 
B107: =IF(ISBLANK(dms_E3_Projects_43),"",dms_E3_Projects_43) -> 
B108: =IF(ISBLANK(dms_E3_Projects_44),"",dms_E3_Projects_44) -> 
B109: =IF(ISBLANK(dms_E3_Projects_45),"",dms_E3_Projects_45) -> 
B110: =IF(ISBLANK(dms_E3_Projects_46),"",dms_E3_Projects_46) -> 
B111: =IF(ISBLANK(dms_E3_Projects_47),"",dms_E3_Projects_47) -> 
B112: =IF(ISBLANK(dms_E3_Projects_48),"",dms_E3_Projects_48) -> 
B113: =IF(ISBLANK(dms_E3_Projects_49),"",dms_E3_Projects_49) -> 
B114: =IF(ISBLANK(dms_E3_Projects_50),"",dms_E3_Projects_50) -> 
B115: Aggregate of other projects with total expenditure of less than $500,000
B116: Total | C116: =SUM(C65:C115) -> 0 | D116: =SUM(D65:D115) -> 0 | E116: 0 | F116: 0 | G116: 0 | H116: 0 | I116: 0
B118: B. DIRECT CONTRACTOR EXPENDITURE
C119: EXPENDITURE
C120: =CONCATENATE("$0's, real ",dms_DollarReal) -> $0's, real June 2021
C121: =CRCP_y4 -> 2019-20 | D121: =CRCP_y5 -> 2020-21 | E121: =FRCP_y1 -> 2021-22 | F121: =FRCP_y2 -> 2022-23 | G121: =FRCP_y3 -> 2023-24 | H121: =FRCP_y4 -> 2024-25 | I121: =FRCP_y5 -> 2025-26
B122: =IF(ISBLANK(dms_E3_Projects_01),"",dms_E3_Projects_01) -> 20004277 - Molonglo Secondary Stage 3A and 3B
B123: =IF(ISBLANK(dms_E3_Projects_02),"",dms_E3_Projects_02) -> 
B124: =IF(ISBLANK(dms_E3_Projects_03),"",dms_E3_Projects_03) -> 
B125: =IF(ISBLANK(dms_E3_Projects_04),"",dms_E3_Projects_04) -> 
B126: =IF(ISBLANK(dms_E3_Projects_05),"",dms_E3_Projects_05) -> 
B127: =IF(ISBLANK(dms_E3_Projects_06),"",dms_E3_Projects_06) -> 
B128: =IF(ISBLANK(dms_E3_Projects_07),"",dms_E3_Projects_07) -> 
B129: =IF(ISBLANK(dms_E3_Projects_08),"",dms_E3_Projects_08) -> 
B130: =IF(ISBLANK(dms_E3_Projects_09),"",dms_E3_Projects_09) -> 
B131: =IF(ISBLANK(dms_E3_Projects_10),"",dms_E3_Projects_10) -> 
B132: =IF(ISBLANK(dms_E3_Projects_11),"",dms_E3_Projects_11) -> 
B133: =IF(ISBLANK(dms_E3_Projects_12),"",dms_E3_Projects_12) -> 
B134: =IF(ISBLANK(dms_E3_Projects_13),"",dms_E3_Projects_13) -> 
B135: =IF(ISBLANK(dms_E3_Projects_14),"",dms_E3_Projects_14) -> 
B136: =IF(ISBLANK(dms_E3_Projects_15),"",dms_E3_Projects_15) -> 
B137: =IF(ISBLANK(dms_E3_Projects_16),"",dms_E3_Projects_16) -> 
B138: =IF(ISBLANK(dms_E3_Projects_17),"",dms_E3_Projects_17) -> 
B139: =IF(ISBLANK(dms_E3_Projects_18),"",dms_E3_Projects_18) -> 
B140: =IF(ISBLANK(dms_E3_Projects_18),"",dms_E3_Projects_18) -> 
B141: =IF(ISBLANK(dms_E3_Projects_19),"",dms_E3_Projects_19) -> 
B142: =IF(ISBLANK(dms_E3_Projects_20),"",dms_E3_Projects_20) -> 
B143: =IF(ISBLANK(dms_E3_Projects_21),"",dms_E3_Projects_21) -> 
B144: =IF(ISBLANK(dms_E3_Projects_22),"",dms_E3_Projects_22) -> 
B145: =IF(ISBLANK(dms_E3_Projects_23),"",dms_E3_Projects_23) -> 
B146: =IF(ISBLANK(dms_E3_Projects_24),"",dms_E3_Projects_24) -> 
B147: =IF(ISBLANK(dms_E3_Projects_25),"",dms_E3_Projects_26) -> 
B148: =IF(ISBLANK(dms_E3_Projects_27),"",dms_E3_Projects_27) -> 
B149: =IF(ISBLANK(dms_E3_Projects_28),"",dms_E3_Projects_28) -> 
B150: =IF(ISBLANK(dms_E3_Projects_29),"",dms_E3_Projects_29) -> 
B151: =IF(ISBLANK(dms_E3_Projects_30),"",dms_E3_Projects_30) -> 
B152: =IF(ISBLANK(dms_E3_Projects_31),"",dms_E3_Projects_31) -> 
B153: =IF(ISBLANK(dms_E3_Projects_32),"",dms_E3_Projects_32) -> 
B154: =IF(ISBLANK(dms_E3_Projects_33),"",dms_E3_Projects_33) -> 
B155: =IF(ISBLANK(dms_E3_Projects_34),"",dms_E3_Projects_34) -> 
B156: =IF(ISBLANK(dms_E3_Projects_35),"",dms_E3_Projects_35) -> 
B157: =IF(ISBLANK(dms_E3_Projects_36),"",dms_E3_Projects_36) -> 
B158: =IF(ISBLANK(dms_E3_Projects_37),"",dms_E3_Projects_37) -> 
B159: =IF(ISBLANK(dms_E3_Projects_38),"",dms_E3_Projects_38) -> 
B160: =IF(ISBLANK(dms_E3_Projects_39),"",dms_E3_Projects_39) -> 
B161: =IF(ISBLANK(dms_E3_Projects_40),"",dms_E3_Projects_40) -> 
B162: =IF(ISBLANK(dms_E3_Projects_41),"",dms_E3_Projects_41) -> 
B163: =IF(ISBLANK(dms_E3_Projects_42),"",dms_E3_Projects_42) -> 
B164: =IF(ISBLANK(dms_E3_Projects_43),"",dms_E3_Projects_43) -> 
B165: =IF(ISBLANK(dms_E3_Projects_44),"",dms_E3_Projects_44) -> 
B166: =IF(ISBLANK(dms_E3_Projects_45),"",dms_E3_Projects_45) -> 
B167: =IF(ISBLANK(dms_E3_Projects_46),"",dms_E3_Projects_46) -> 
B168: =IF(ISBLANK(dms_E3_Projects_47),"",dms_E3_Projects_47) -> 
B169: =IF(ISBLANK(dms_E3_Projects_48),"",dms_E3_Projects_48) -> 
B170: =IF(ISBLANK(dms_E3_Projects_49),"",dms_E3_Projects_49) -> 
B171: =IF(ISBLANK(dms_E3_Projects_50),"",dms_E3_Projects_50) -> 
B172: Aggregate of other projects with total expenditure of less than $500,000
B173: Total | C173: =SUM(C122:C172) -> 0 | D173: =SUM(D122:D172) -> 0 | E173: 0 | F173: 0 | G173: 0 | H173: 0 | I173: 0
B175: C. OTHER INTERNAL DIRECT EXPENDITURE
C176: EXPENDITURE
C177: =CONCATENATE("$0's, real ",dms_DollarReal) -> $0's, real June 2021
C178: =CRCP_y4 -> 2019-20 | D178: =CRCP_y5 -> 2020-21 | E178: =FRCP_y1 -> 2021-22 | F178: =FRCP_y2 -> 2022-23 | G178: =FRCP_y3 -> 2023-24 | H178: =FRCP_y4 -> 2024-25 | I178: =FRCP_y5 -> 2025-26
B179: =IF(ISBLANK(dms_E3_Projects_01),"",dms_E3_Projects_01) -> 20004277 - Molonglo Secondary Stage 3A and 3B | C179: 0 | D179: 0 | E179: - | F179: - | G179: - | H179: - | I179: -
B180: =IF(ISBLANK(dms_E3_Projects_02),"",dms_E3_Projects_02) -> 
B181: =IF(ISBLANK(dms_E3_Projects_03),"",dms_E3_Projects_03) -> 
B182: =IF(ISBLANK(dms_E3_Projects_04),"",dms_E3_Projects_04) -> 
B183: =IF(ISBLANK(dms_E3_Projects_05),"",dms_E3_Projects_05) -> 
B184: =IF(ISBLANK(dms_E3_Projects_06),"",dms_E3_Projects_06) -> 
B185: =IF(ISBLANK(dms_E3_Projects_07),"",dms_E3_Projects_07) -> 
B186: =IF(ISBLANK(dms_E3_Projects_08),"",dms_E3_Projects_08) -> 
B187: =IF(ISBLANK(dms_E3_Projects_09),"",dms_E3_Projects_09) -> 
B188: =IF(ISBLANK(dms_E3_Projects_10),"",dms_E3_Projects_10) -> 
B189: =IF(ISBLANK(dms_E3_Projects_11),"",dms_E3_Projects_11) -> 
B190: =IF(ISBLANK(dms_E3_Projects_12),"",dms_E3_Projects_12) -> 
B191: =IF(ISBLANK(dms_E3_Projects_13),"",dms_E3_Projects_13) -> 
B192: =IF(ISBLANK(dms_E3_Projects_14),"",dms_E3_Projects_14) -> 
B193: =IF(ISBLANK(dms_E3_Projects_15),"",dms_E3_Projects_15) -> 
B194: =IF(ISBLANK(dms_E3_Projects_16),"",dms_E3_Projects_16) -> 
B195: =IF(ISBLANK(dms_E3_Projects_17),"",dms_E3_Projects_17) -> 
B196: =IF(ISBLANK(dms_E3_Projects_18),"",dms_E3_Projects_18) -> 
B197: =IF(ISBLANK(dms_E3_Projects_18),"",dms_E3_Projects_18) -> 
B198: =IF(ISBLANK(dms_E3_Projects_19),"",dms_E3_Projects_19) -> 
B199: =IF(ISBLANK(dms_E3_Projects_20),"",dms_E3_Projects_20) -> 
B200: =IF(ISBLANK(dms_E3_Projects_21),"",dms_E3_Projects_21) -> 
B201: =IF(ISBLANK(dms_E3_Projects_22),"",dms_E3_Projects_22) -> 
B202: =IF(ISBLANK(dms_E3_Projects_23),"",dms_E3_Projects_23) -> 
B203: =IF(ISBLANK(dms_E3_Projects_24),"",dms_E3_Projects_24) -> 
B204: =IF(ISBLANK(dms_E3_Projects_25),"",dms_E3_Projects_26) -> 
B205: =IF(ISBLANK(dms_E3_Projects_27),"",dms_E3_Projects_27) -> 
B206: =IF(ISBLANK(dms_E3_Projects_28),"",dms_E3_Projects_28) -> 
B207: =IF(ISBLANK(dms_E3_Projects_29),"",dms_E3_Projects_29) -> 
B208: =IF(ISBLANK(dms_E3_Projects_30),"",dms_E3_Projects_30) -> 
B209: =IF(ISBLANK(dms_E3_Projects_31),"",dms_E3_Projects_31) -> 
B210: =IF(ISBLANK(dms_E3_Projects_32),"",dms_E3_Projects_32) -> 
B211: =IF(ISBLANK(dms_E3_Projects_33),"",dms_E3_Projects_33) -> 
B212: =IF(ISBLANK(dms_E3_Projects_34),"",dms_E3_Projects_34) -> 
B213: =IF(ISBLANK(dms_E3_Projects_35),"",dms_E3_Projects_35) -> 
B214: =IF(ISBLANK(dms_E3_Projects_36),"",dms_E3_Projects_36) -> 
B215: =IF(ISBLANK(dms_E3_Projects_37),"",dms_E3_Projects_37) -> 
B216: =IF(ISBLANK(dms_E3_Projects_38),"",dms_E3_Projects_38) -> 
B217: =IF(ISBLANK(dms_E3_Projects_39),"",dms_E3_Projects_39) -> 
B218: =IF(ISBLANK(dms_E3_Projects_40),"",dms_E3_Projects_40) -> 
B219: =IF(ISBLANK(dms_E3_Projects_41),"",dms_E3_Projects_41) -> 
B220: =IF(ISBLANK(dms_E3_Projects_42),"",dms_E3_Projects_42) -> 
B221: =IF(ISBLANK(dms_E3_Projects_43),"",dms_E3_Projects_43) -> 
B222: =IF(ISBLANK(dms_E3_Projects_44),"",dms_E3_Projects_44) -> 
B223: =IF(ISBLANK(dms_E3_Projects_45),"",dms_E3_Projects_45) -> 
B224: =IF(ISBLANK(dms_E3_Projects_46),"",dms_E3_Projects_46) -> 
B225: =IF(ISBLANK(dms_E3_Projects_47),"",dms_E3_Projects_47) -> 
B226: =IF(ISBLANK(dms_E3_Projects_48),"",dms_E3_Projects_48) -> 
B227: =IF(ISBLANK(dms_E3_Projects_49),"",dms_E3_Projects_49) -> 
B228: =IF(ISBLANK(dms_E3_Projects_50),"",dms_E3_Projects_50) -> 
B229: Aggregate of other projects with total expenditure of less than $500,000 | C229: 0 | D229: 0 | E229: 0 | F229: 0 | G229: 0 | H229: 0 | I229: 0
B230: Total | C230: =SUM(C179:C229) -> 0 | D230: =SUM(D179:D229) -> 0 | E230: 0 | F230: 0 | G230: 0 | H230: 0 | I230: 0
B232: D. TOTAL OVERHEAD EXPENDITURE
C233: EXPENDITURE
C234: =CONCATENATE("$0's, real ",dms_DollarReal) -> $0's, real June 2021
C235: =CRCP_y4 -> 2019-20 | D235: =CRCP_y5 -> 2020-21 | E235: =FRCP_y1 -> 2021-22 | F235: =FRCP_y2 -> 2022-23 | G235: =FRCP_y3 -> 2023-24 | H235: =FRCP_y4 -> 2024-25 | I235: =FRCP_y5 -> 2025-26
B236: =IF(ISBLANK(dms_E3_Projects_01),"",dms_E3_Projects_01) -> 20004277 - Molonglo Secondary Stage 3A and 3B | C236: 106126 | D236: 1283 | E236: - | F236: - | G236: - | H236: - | I236: -
B237: =IF(ISBLANK(dms_E3_Projects_02),"",dms_E3_Projects_02) -> 
B238: =IF(ISBLANK(dms_E3_Projects_03),"",dms_E3_Projects_03) -> 
B239: =IF(ISBLANK(dms_E3_Projects_04),"",dms_E3_Projects_04) -> 
B240: =IF(ISBLANK(dms_E3_Projects_05),"",dms_E3_Projects_05) -> 
B241: =IF(ISBLANK(dms_E3_Projects_06),"",dms_E3_Projects_06) -> 
B242: =IF(ISBLANK(dms_E3_Projects_07),"",dms_E3_Projects_07) -> 
B243: =IF(ISBLANK(dms_E3_Projects_08),"",dms_E3_Projects_08) -> 
B244: =IF(ISBLANK(dms_E3_Projects_09),"",dms_E3_Projects_09) -> 
B245: =IF(ISBLANK(dms_E3_Projects_10),"",dms_E3_Projects_10) -> 
B246: =IF(ISBLANK(dms_E3_Projects_11),"",dms_E3_Projects_11) -> 
B247: =IF(ISBLANK(dms_E3_Projects_12),"",dms_E3_Projects_12) -> 
B248: =IF(ISBLANK(dms_E3_Projects_13),"",dms_E3_Projects_13) -> 
B249: =IF(ISBLANK(dms_E3_Projects_14),"",dms_E3_Projects_14) -> 
B250: =IF(ISBLANK(dms_E3_Projects_15),"",dms_E3_Projects_15) -> 
B251: =IF(ISBLANK(dms_E3_Projects_16),"",dms_E3_Projects_16) -> 
B252: =IF(ISBLANK(dms_E3_Projects_17),"",dms_E3_Projects_17) -> 
B253: =IF(ISBLANK(dms_E3_Projects_18),"",dms_E3_Projects_18) -> 
B254: =IF(ISBLANK(dms_E3_Projects_18),"",dms_E3_Projects_18) -> 
B255: =IF(ISBLANK(dms_E3_Projects_19),"",dms_E3_Projects_19) -> 
B256: =IF(ISBLANK(dms_E3_Projects_20),"",dms_E3_Projects_20) -> 
... 480 more rows

Sheet E4. Meter replacement
B1: =INDEX(dms_Worksheet_List,MATCH(dms_Model,dms_Model_List)) -> REGULATORY REPORTING STATEMENT
B2: =INDEX(dms_TradingNameFull_List,MATCH(dms_TradingName,dms_TradingName_List)) -> Evoenergy Gas
B3: =dms_Header_Span -> 2019-20 - 2025-26
B4: E4. METER REPLACEMENT
B6: E4.1 - CAPEX
B7: E4.1.1 - NEW METERS ACQUIRED
C8: EXPENDITURE
C9: =CONCATENATE("$0's, real ",dms_DollarReal) -> $0's, real June 2021
C10: =CRCP_y4 -> 2019-20 | D10: =CRCP_y5 -> 2020-21 | E10: =FRCP_y1 -> 2021-22 | F10: =FRCP_y2 -> 2022-23 | G10: =FRCP_y3 -> 2023-24 | H10: =FRCP_y4 -> 2024-25 | I10: =FRCP_y5 -> 2025-26
B11: A. DIRECT INTERNAL LABOUR EXPENDITURE
B12: Residential
B13: Industrial and Commercial
B14: Other
B15: Total | C15: =SUM(C12:C14) -> 0 | D15: =SUM(D12:D14) -> 0 | E15: 0 | F15: 0 | G15: 0 | H15: 0 | I15: 0
B16: B. DIRECT CONTRACTOR EXPENDITURE
B17: Residential
B18: Industrial and Commercial
B19: Other
B20: Total | C20: =SUM(C17:C19) -> 0 | D20: =SUM(D17:D19) -> 0 | E20: 0 | F20: 0 | G20: 0 | H20: 0 | I20: 0
B21: C. OTHER INTERNAL DIRECT EXPENDITURE
B22: Residential
B23: Industrial and Commercial
B24: Other
B25: Total | C25: =SUM(C22:C24) -> 0 | D25: =SUM(D22:D24) -> 0 | E25: 0 | F25: 0 | G25: 0 | H25: 0 | I25: 0
B26: D. TOTAL OVERHEAD EXPENDITURE
B27: Residential
B28: Industrial and Commercial
B29: Other
B30: Total | C30: =SUM(C27:C29) -> 0 | D30: =SUM(D27:D29) -> 0 | E30: 0 | F30: 0 | G30: 0 | H30: 0 | I30: 0
B31: E. RELATED PARTY MARGIN EXPENDITURE
B32: Residential
B33: Industrial and Commercial
B34: Other
B35: Total | C35: =SUM(C32:C34) -> 0 | D35: =SUM(D32:D34) -> 0 | E35: 0 | F35: 0 | G35: 0 | H35: 0 | I35: 0
B36: F. CAPITAL CONTRIBUTIONS included in the above
B37: Residential
B38: Industrial and Commercial
B39: Other
B40: Total | C40: =SUM(C37:C39) -> 0 | D40: =SUM(D37:D39) -> 0 | E40: 0 | F40: 0 | G40: 0 | H40: 0 | I40: 0
B41: TOTAL | C41: =SUM(C15,C20,C25,C30,C35,C40) -> 0 | D41: =SUM(D15,D20,D25,D30,D35,D40) -> 0 | E41: 0 | F41: 0 | G41: 0 | H41: 0 | I41: 0
B43: E4.1.2 - METER REFURBISHMENT
C44: EXPENDITURE
C45: =CONCATENATE("$0's, real ",dms_DollarReal) -> $0's, real June 2021
C46: =CRCP_y4 -> 2019-20 | D46: =CRCP_y5 -> 2020-21 | E46: =FRCP_y1 -> 2021-22 | F46: =FRCP_y2 -> 2022-23 | G46: =FRCP_y3 -> 2023-24 | H46: =FRCP_y4 -> 2024-25 | I46: =FRCP_y5 -> 2025-26
B47: A. DIRECT INTERNAL LABOUR EXPENDITURE
B48: Residential
B49: Industrial and Commercial
B50: Other
B51: Total | C51: =SUM(C48:C50) -> 0 | D51: =SUM(D48:D50) -> 0 | E51: 0 | F51: 0 | G51: 0 | H51: 0 | I51: 0
B52: B. DIRECT CONTRACTOR EXPENDITURE
B53: Residential
B54: Industrial and Commercial
B55: Other
B56: Total | C56: =SUM(C53:C55) -> 0 | D56: =SUM(D53:D55) -> 0 | E56: 0 | F56: 0 | G56: 0 | H56: 0 | I56: 0
B57: C. OTHER INTERNAL DIRECT EXPENDITURE
B58: Residential
B59: Industrial and Commercial
B60: Other
B61: Total | C61: =SUM(C58:C60) -> 0 | D61: =SUM(D58:D60) -> 0 | E61: 0 | F61: 0 | G61: 0 | H61: 0 | I61: 0
B62: D. TOTAL OVERHEAD EXPENDITURE
B63: Residential
B64: Industrial and Commercial
B65: Other
B66: Total | C66: =SUM(C63:C65) -> 0 | D66: =SUM(D63:D65) -> 0 | E66: 0 | F66: 0 | G66: 0 | H66: 0 | I66: 0
B67: E. RELATED PARTY MARGIN EXPENDITURE
B68: Residential
B69: Industrial and Commercial
B70: Other
B71: Total | C71: =SUM(C68:C70) -> 0 | D71: =SUM(D68:D70) -> 0 | E71: 0 | F71: 0 | G71: 0 | H71: 0 | I71: 0
B72: F. CAPITAL CONTRIBUTIONS included in the above
B73: Residential
B74: Industrial and Commercial
B75: Other
B76: Total | C76: =SUM(C73:C75) -> 0 | D76: =SUM(D73:D75) -> 0 | E76: 0 | F76: 0 | G76: 0 | H76: 0 | I76: 0
B77: TOTAL | C77: =SUM(C51,C56,C61,C66,C71,C76) -> 0 | D77: =SUM(D51,D56,D61,D66,D71,D76) -> 0 | E77: 0 | F77: 0 | G77: 0 | H77: 0 | I77: 0
B79: E4.1.3 - METER INSTALLATION
C80: EXPENDITURE
C81: =CONCATENATE("$0's, real ",dms_DollarReal) -> $0's, real June 2021
C82: =CRCP_y4 -> 2019-20 | D82: =CRCP_y5 -> 2020-21 | E82: =FRCP_y1 -> 2021-22 | F82: =FRCP_y2 -> 2022-23 | G82: =FRCP_y3 -> 2023-24 | H82: =FRCP_y4 -> 2024-25 | I82: =FRCP_y5 -> 2025-26
B83: A. DIRECT INTERNAL LABOUR EXPENDITURE
B84: Residential
B85: Industrial and Commercial
B86: Other
B87: Total | C87: =SUM(C84:C86) -> 0 | D87: =SUM(D84:D86) -> 0 | E87: 0 | F87: 0 | G87: 0 | H87: 0 | I87: 0
B88: B. DIRECT CONTRACTOR EXPENDITURE
B89: Residential
B90: Industrial and Commercial
B91: Other
B92: Total | C92: =SUM(C89:C91) -> 0 | D92: =SUM(D89:D91) -> 0 | E92: 0 | F92: 0 | G92: 0 | H92: 0 | I92: 0
B93: C. OTHER INTERNAL DIRECT EXPENDITURE
B94: Residential
B95: Industrial and Commercial
B96: Other
B97: Total | C97: =SUM(C94:C96) -> 0 | D97: =SUM(D94:D96) -> 0 | E97: 0 | F97: 0 | G97: 0 | H97: 0 | I97: 0
B98: D. TOTAL OVERHEAD EXPENDITURE
B99: Residential | C99: 208823 | D99: 198197 | E99: 286641 | F99: 221617 | G99: 218024 | H99: 142583 | I99: 179549
B100: Industrial and Commercial | C100: 54880 | D100: 26176 | E100: 54078 | F100: 34706 | G100: 62140 | H100: 62483 | I100: 71583
B101: Other | C101: - | D101: - | E101: - | F101: - | G101: - | H101: - | I101: -
B102: Total | C102: =SUM(C99:C101) -> 263703 | D102: =SUM(D99:D101) -> 224373 | E102: 340719 | F102: 256323 | G102: 280164 | H102: 205066 | I102: 251132
B103: E. RELATED PARTY MARGIN EXPENDITURE
B104: Residential
B105: Industrial and Commercial
B106: Other
B107: Total | C107: =SUM(C104:C106) -> 0 | D107: =SUM(D104:D106) -> 0 | E107: 0 | F107: 0 | G107: 0 | H107: 0 | I107: 0
B108: F. CAPITAL CONTRIBUTIONS included in the above
B109: Residential
B110: Industrial and Commercial
B111: Other
B112: Total | C112: =SUM(C109:C111) -> 0 | D112: =SUM(D109:D111) -> 0 | E112: 0 | F112: 0 | G112: 0 | H112: 0 | I112: 0
B113: TOTAL | C113: =SUM(C87,C92,C97,C102,C107,C112) -> 263703 | D113: =SUM(D87,D92,D97,D102,D107,D112) -> 224373 | E113: 340719 | F113: 256323 | G113: 280164 | H113: 205066 | I113: 251132
B115: E4.1.4 - OTHER METER REPLACEMENT CAPEX
C116: EXPENDITURE
C117: =CONCATENATE("$0's, real ",dms_DollarReal) -> $0's, real June 2021
C118: =CRCP_y4 -> 2019-20 | D118: =CRCP_y5 -> 2020-21 | E118: =FRCP_y1 -> 2021-22 | F118: =FRCP_y2 -> 2022-23 | G118: =FRCP_y3 -> 2023-24 | H118: =FRCP_y4 -> 2024-25 | I118: =FRCP_y5 -> 2025-26
B119: A. DIRECT INTERNAL LABOUR EXPENDITURE
B120: Residential
B121: Industrial and Commercial
B122: Other
B123: Total | C123: =SUM(C120:C122) -> 0 | D123: =SUM(D120:D122) -> 0 | E123: 0 | F123: 0 | G123: 0 | H123: 0 | I123: 0
B124: B. DIRECT CONTRACTOR EXPENDITURE
B125: Residential
B126: Industrial and Commercial
B127: Other
B128: Total | C128: =SUM(C125:C127) -> 0 | D128: =SUM(D125:D127) -> 0 | E128: 0 | F128: 0 | G128: 0 | H128: 0 | I128: 0
B129: C. OTHER INTERNAL DIRECT EXPENDITURE
B130: Residential
B131: Industrial and Commercial
B132: Other
B133: Total | C133: =SUM(C130:C132) -> 0 | D133: =SUM(D130:D132) -> 0 | E133: 0 | F133: 0 | G133: 0 | H133: 0 | I133: 0
B134: D. TOTAL OVERHEAD EXPENDITURE
B135: Residential
B136: Industrial and Commercial
B137: Other
B138: Total | C138: =SUM(C135:C137) -> 0 | D138: =SUM(D135:D137) -> 0 | E138: 0 | F138: 0 | G138: 0 | H138: 0 | I138: 0
B139: E. RELATED PARTY MARGIN EXPENDITURE
B140: Residential
B141: Industrial and Commercial
B142: Other
B143: Total | C143: =SUM(C140:C142) -> 0 | D143: =SUM(D140:D142) -> 0 | E143: 0 | F143: 0 | G143: 0 | H143: 0 | I143: 0
B144: F. CAPITAL CONTRIBUTIONS included in the above
B145: Residential
B146: Industrial and Commercial
B147: Other
B148: Total | C148: =SUM(C145:C147) -> 0 | D148: =SUM(D145:D147) -> 0 | E148: 0 | F148: 0 | G148: 0 | H148: 0 | I148: 0
B149: TOTAL | C149: =SUM(C123,C128,C133,C138,C143,C148) -> 0 | D149: =SUM(D123,D128,D133,D138,D143,D148) -> 0 | E149: 0 | F149: 0 | G149: 0 | H149: 0 | I149: 0
B152: E4.2 - VOLUMES
B153: E4.2.1 - NUMBER OF NEW METERS ACQUIRED
C154: VOLUMES
C155: 0s
C156: =CRCP_y4 -> 2019-20 | D156: =CRCP_y5 -> 2020-21 | E156: =FRCP_y1 -> 2021-22 | F156: =FRCP_y2 -> 2022-23 | G156: =FRCP_y3 -> 2023-24 | H156: =FRCP_y4 -> 2024-25 | I156: =FRCP_y5 -> 2025-26
B157: Residential | C157: 8255.666667 | D157: 6582.666667 | E157: 11838.66667 | F157: 6581.666667 | G157: 6746.666667 | H157: 4369.666667 | I157: 7466.666667
B158: Industrial and commercial | C158: 137.223301 | D158: 72.2038835 | E158: 112.0776699 | F158: 108.4854369 | G158: 159.4951456 | H158: 158.0582524 | I158: 146.2038835
B159: Other meters | C159: 0 | D159: 0 | E159: 0 | F159: 0 | G159: 0 | H159: 0 | I159: 0
B160: Total | C160: =SUM(C157:C159) -> 8392.889968 | D160: =SUM(D157:D159) -> 6654.87055 | E160: 11950.74434 | F160: 6690.152104 | G160: 6906.161812 | H160: 4527.724919 | I160: 7612.87055
B163: E4.2.2 - NUMBER OF METERS REFURBISHED
C164: VOLUMES
C165: 0s
C166: =CRCP_y4 -> 2019-20 | D166: =CRCP_y5 -> 2020-21 | E166: =FRCP_y1 -> 2021-22 | F166: =FRCP_y2 -> 2022-23 | G166: =FRCP_y3 -> 2023-24 | H166: =FRCP_y4 -> 2024-25 | I166: =FRCP_y5 -> 2025-26
B167: A. REFURBISHABLE METERS REMOVED
B168: Residential | C168: 0 | D168: 0 | E168: 0 | F168: 0 | G168: 0 | H168: 0 | I168: 0
B169: Industrial and commercial | C169: 244.776699 | D169: 128.7961165 | E169: 199.9223301 | F169: 193.5145631 | G169: 284.5048544 | H169: 281.9417476 | I169: 260.7961165
B170: Other meters | C170: 0 | D170: 0 | E170: 0 | F170: 0 | G170: 0 | H170: 0 | I170: 0
B171: Total | C171: =SUM(C168:C170) -> 244.776699 | D171: 128.7961165 | E171: 199.9223301 | F171: 193.5145631 | G171: 284.5048544 | H171: 281.9417476 | I171: 260.7961165
B172: B. METERS DECOMMISSIONED
B173: Residential | C173: 8255.666667 | D173: 6582.666667 | E173: 11838.66667 | F173: 6581.666667 | G173: 6746.666667 | H173: 4369.666667 | I173: 7466.666667
B174: Industrial and commercial | C174: 137.223301 | D174: 72.2038835 | E174: 112.0776699 | F174: 108.4854369 | G174: 159.4951456 | H174: 158.0582524 | I174: 146.2038835
B175: Other meters | C175: 0 | D175: 0 | E175: 0 | F175: 0 | G175: 0 | H175: 0 | I175: 0
B176: Total | C176: =SUM(C173:C175) -> 8392.889968 | D176: 6654.87055 | E176: 11950.74434 | F176: 6690.152104 | G176: 6906.161812 | H176: 4527.724919 | I176: 7612.87055
B177: TOTAL | C177: =SUM(C171,C176) -> 8637.666667 | D177: =SUM(D171,D176) -> 6783.666667 | E177: 12150.66667 | F177: 6883.666667 | G177: 7190.666667 | H177: 4809.666667 | I177: 7873.666667
B180: E4.2.3 - NUMBER OF METERS INSTALLED
C181: VOLUMES
C182: 0s
C183: =CRCP_y4 -> 2019-20 | D183: =CRCP_y5 -> 2020-21 | E183: =FRCP_y1 -> 2021-22 | F183: =FRCP_y2 -> 2022-23 | G183: =FRCP_y3 -> 2023-24 | H183: =FRCP_y4 -> 2024-25 | I183: =FRCP_y5 -> 2025-26
B184: Residential | C184: 8255.666667 | D184: 6582.666667 | E184: 11838.66667 | F184: 6581.666667 | G184: 6746.666667 | H184: 4369.666667 | I184: 7466.666667
B185: Industrial and commercial | C185: 382 | D185: 201 | E185: 312 | F185: 302 | G185: 444 | H185: 440 | I185: 407
B186: Other meters | C186: 0 | D186: 0 | E186: 0 | F186: 0 | G186: 0 | H186: 0 | I186: 0
B187: Total | C187: =SUM(C184:C186) -> 8637.666667 | D187: =SUM(D184:D186) -> 6783.666667 | E187: 12150.66667 | F187: 6883.666667 | G187: 7190.666667 | H187: 4809.666667 | I187: 7873.666667
B190: E4.2.4 - NUMBER OF METERS REMOVED / DECOMMISSIONED
C191: VOLUMES
C192: 0s
C193: =CRCP_y4 -> 2019-20 | D193: =CRCP_y5 -> 2020-21 | E193: =FRCP_y1 -> 2021-22 | F193: =FRCP_y2 -> 2022-23 | G193: =FRCP_y3 -> 2023-24 | H193: =FRCP_y4 -> 2024-25 | I193: =FRCP_y5 -> 2025-26
B194: Residential | C194: 8255.666667 | D194: 6582.666667 | E194: 11838.66667 | F194: 6581.666667 | G194: 6746.666667 | H194: 4369.666667 | I194: 7466.666667
B195: Industrial and commercial | C195: 382 | D195: 201 | E195: 312 | F195: 302 | G195: 444 | H195: 440 | I195: 407
B196: Other meters | C196: 0 | D196: 0 | E196: 0 | F196: 0 | G196: 0 | H196: 0 | I196: 0
B197: Total | C197: =SUM(C194:C196) -> 8637.666667 | D197: =SUM(D194:D196) -> 6783.666667 | E197: 12150.66667 | F197: 6883.666667 | G197: 7190.666667 | H197: 4809.666667 | I197: 7873.666667
B200: E4.2.5 - OTHER METER REPLACEMENT VOLUMES
C201: VOLUMES
C202: 0s
C203: =CRCP_y4 -> 2019-20 | D203: =CRCP_y5 -> 2020-21 | E203: =FRCP_y1 -> 2021-22 | F203: =FRCP_y2 -> 2022-23 | G203: =FRCP_y3 -> 2023-24 | H203: =FRCP_y4 -> 2024-25 | I203: =FRCP_y5 -> 2025-26
B204: Residential | C204: 0 | D204: 0 | E204: 0 | F204: 0 | G204: 0 | H204: 0 | I204: 0
B205: Industrial and commercial | C205: 0 | D205: 0 | E205: 0 | F205: 0 | G205: 0 | H205: 0 | I205: 0
B206: Other meters | C206: 0 | D206: 0 | E206: 0 | F206: 0 | G206: 0 | H206: 0 | I206: 0
B207: Total | C207: =SUM(C204:C206) -> 0 | D207: =SUM(D204:D206) -> 0 | E207: 0 | F207: 0 | G207: 0 | H207: 0 | I207: 0

Sheet E5. New Connections
B1: =INDEX(dms_Worksheet_List,MATCH(dms_Model,dms_Model_List)) -> REGULATORY REPORTING STATEMENT
B2: =INDEX(dms_TradingNameFull_List,MATCH(dms_TradingName,dms_TradingName_List)) -> Evoenergy Gas
B3: =dms_Header_Span -> 2019-20 - 2025-26
B4: E5. NEW CONNECTIONS
B6: E5.1 - EXPENDITURE
B7: E5.1.1 - CAPEX - BY CONNECTION TYPE
B8: A. DIRECT INTERNAL LABOUR EXPENDITURE
D9: EXPENDITURE
D10: =CONCATENATE("$0's, real ",dms_DollarReal) -> $0's, real June 2021
D11: =CRCP_y4 -> 2019-20 | E11: =CRCP_y5 -> 2020-21 | F11: =FRCP_y1 -> 2021-22 | G11: =FRCP_y2 -> 2022-23 | H11: =FRCP_y3 -> 2023-24 | I11: =FRCP_y4 -> 2024-25 | J11: =FRCP_y5 -> 2025-26
B12: (i) ELECTRICITY TO GAS
B13: Distribution Mains
B14: Inlet service pipes
B15: Meters
C16: Total | D16: =SUM(D13:D15) -> 0 | E16: =SUM(E13:E15) -> 0 | F16: 0 | G16: 0 | H16: 0 | I16: 0 | J16: 0
B17: (ii) NEW HOMES
B18: Distribution Mains
B19: Inlet service pipes
B20: Meters
C21: Total | D21: =SUM(D18:D20) -> 0 | E21: =SUM(E18:E20) -> 0 | F21: =SUM(F18:F20) -> 0 | G21: =SUM(G18:G20) -> 0 | H21: =SUM(H18:H20) -> 0 | I21: =SUM(I18:I20) -> 0 | J21: =SUM(J18:J20) -> 0
B22: (iii) NEW MEDIUM DENSITY / HIGH RISE
B23: Distribution Mains
B24: Inlet service pipes
B25: Meters
C26: Total | D26: =SUM(D23:D25) -> 0 | E26: =SUM(E23:E25) -> 0 | F26: =SUM(F23:F25) -> 0 | G26: =SUM(G23:G25) -> 0 | H26: =SUM(H23:H25) -> 0 | I26: =SUM(I23:I25) -> 0 | J26: =SUM(J23:J25) -> 0
B27: (iv) INDUSTRIAL & COMMERCIAL TARIFF
B28: Distribution Mains
B29: Inlet service pipes
B30: Meters
C31: Total | D31: =SUM(D28:D30) -> 0 | E31: =SUM(E28:E30) -> 0 | F31: =SUM(F28:F30) -> 0 | G31: =SUM(G28:G30) -> 0 | H31: =SUM(H28:H30) -> 0 | I31: =SUM(I28:I30) -> 0 | J31: =SUM(J28:J30) -> 0
B32: (v) INDUSTRIAL & COMMERCIAL CONTRACT
B33: Distribution Mains
B34: Inlet service pipes
B35: Meters
C36: Total | D36: =SUM(D33:D35) -> 0 | E36: =SUM(E33:E35) -> 0 | F36: =SUM(F33:F35) -> 0 | G36: =SUM(G33:G35) -> 0 | H36: =SUM(H33:H35) -> 0 | I36: =SUM(I33:I35) -> 0 | J36: =SUM(J33:J35) -> 0
C37: TOTAL | D37: =SUM(D36,D31,D26,D21,D16) -> 0 | E37: =SUM(E36,E31,E26,E21,E16) -> 0 | F37: 0 | G37: 0 | H37: 0 | I37: 0 | J37: 0
B39: B. DIRECT CONTRACTOR EXPENDITURE
D40: EXPENDITURE
D41: =CONCATENATE("$0's, real ",dms_DollarReal) -> $0's, real June 2021
D42: =CRCP_y4 -> 2019-20 | E42: =CRCP_y5 -> 2020-21 | F42: =FRCP_y1 -> 2021-22 | G42: =FRCP_y2 -> 2022-23 | H42: =FRCP_y3 -> 2023-24 | I42: =FRCP_y4 -> 2024-25 | J42: =FRCP_y5 -> 2025-26
B43: (i) ELECTRICITY TO GAS
B44: Distribution Mains
B45: Inlet service pipes
B46: Meters
C47: Total | D47: =SUM(D44:D46) -> 0 | E47: =SUM(E44:E46) -> 0 | F47: =SUM(F44:F46) -> 0 | G47: =SUM(G44:G46) -> 0 | H47: =SUM(H44:H46) -> 0 | I47: =SUM(I44:I46) -> 0 | J47: =SUM(J44:J46) -> 0
B48: (ii) NEW HOMES
B49: Distribution Mains
B50: Inlet service pipes
B51: Meters
C52: Total | D52: =SUM(D49:D51) -> 0 | E52: =SUM(E49:E51) -> 0 | F52: =SUM(F49:F51) -> 0 | G52: =SUM(G49:G51) -> 0 | H52: =SUM(H49:H51) -> 0 | I52: =SUM(I49:I51) -> 0 | J52: =SUM(J49:J51) -> 0
B53: (iii) NEW MEDIUM DENSITY / HIGH RISE
B54: Distribution Mains
B55: Inlet service pipes
B56: Meters
C57: Total | D57: =SUM(D54:D56) -> 0 | E57: =SUM(E54:E56) -> 0 | F57: =SUM(F54:F56) -> 0 | G57: =SUM(G54:G56) -> 0 | H57: =SUM(H54:H56) -> 0 | I57: =SUM(I54:I56) -> 0 | J57: =SUM(J54:J56) -> 0
B58: (iv) INDUSTRIAL & COMMERCIAL TARIFF
B59: Distribution Mains
B60: Inlet service pipes
B61: Meters
C62: Total | D62: =SUM(D59:D61) -> 0 | E62: =SUM(E59:E61) -> 0 | F62: =SUM(F59:F61) -> 0 | G62: =SUM(G59:G61) -> 0 | H62: =SUM(H59:H61) -> 0 | I62: =SUM(I59:I61) -> 0 | J62: =SUM(J59:J61) -> 0
B63: (v) INDUSTRIAL & COMMERCIAL CONTRACT
B64: Distribution Mains
B65: Inlet service pipes
B66: Meters
C67: Total | D67: =SUM(D64:D66) -> 0 | E67: =SUM(E64:E66) -> 0 | F67: =SUM(F64:F66) -> 0 | G67: =SUM(G64:G66) -> 0 | H67: =SUM(H64:H66) -> 0 | I67: =SUM(I64:I66) -> 0 | J67: =SUM(J64:J66) -> 0
C68: TOTAL | D68: =SUM(D67,D62,D57,D52,D47) -> 0 | E68: =SUM(E67,E62,E57,E52,E47) -> 0 | F68: =SUM(F67,F62,F57,F52,F47) -> 0 | G68: =SUM(G67,G62,G57,G52,G47) -> 0 | H68: =SUM(H67,H62,H57,H52,H47) -> 0 | I68: =SUM(I67,I62,I57,I52,I47) -> 0 | J68: =SUM(J67,J62,J57,J52,J47) -> 0
B70: C. OTHER INTERNAL DIRECT EXPENDITURE
D71: EXPENDITURE
D72: =CONCATENATE("$0's, real ",dms_DollarReal) -> $0's, real June 2021
D73: =CRCP_y4 -> 2019-20 | E73: =CRCP_y5 -> 2020-21 | F73: =FRCP_y1 -> 2021-22 | G73: =FRCP_y2 -> 2022-23 | H73: =FRCP_y3 -> 2023-24 | I73: =FRCP_y4 -> 2024-25 | J73: =FRCP_y5 -> 2025-26
B74: (i) ELECTRICITY TO GAS
B75: Distribution Mains
B76: Inlet service pipes
B77: Meters
C78: Total | D78: =SUM(D75:D77) -> 0 | E78: =SUM(E75:E77) -> 0 | F78: =SUM(F75:F77) -> 0 | G78: =SUM(G75:G77) -> 0 | H78: =SUM(H75:H77) -> 0 | I78: =SUM(I75:I77) -> 0 | J78: =SUM(J75:J77) -> 0
B79: (ii) NEW HOMES
B80: Distribution Mains
B81: Inlet service pipes
B82: Meters
C83: Total | D83: =SUM(D80:D82) -> 0 | E83: =SUM(E80:E82) -> 0 | F83: =SUM(F80:F82) -> 0 | G83: =SUM(G80:G82) -> 0 | H83: =SUM(H80:H82) -> 0 | I83: =SUM(I80:I82) -> 0 | J83: =SUM(J80:J82) -> 0
B84: (iii) NEW MEDIUM DENSITY / HIGH RISE
B85: Distribution Mains
B86: Inlet service pipes
B87: Meters
C88: Total | D88: =SUM(D85:D87) -> 0 | E88: =SUM(E85:E87) -> 0 | F88: =SUM(F85:F87) -> 0 | G88: =SUM(G85:G87) -> 0 | H88: =SUM(H85:H87) -> 0 | I88: =SUM(I85:I87) -> 0 | J88: =SUM(J85:J87) -> 0
B89: (iv) INDUSTRIAL & COMMERCIAL TARIFF
B90: Distribution Mains
B91: Inlet service pipes
B92: Meters
C93: Total | D93: =SUM(D90:D92) -> 0 | E93: =SUM(E90:E92) -> 0 | F93: =SUM(F90:F92) -> 0 | G93: =SUM(G90:G92) -> 0 | H93: =SUM(H90:H92) -> 0 | I93: =SUM(I90:I92) -> 0 | J93: =SUM(J90:J92) -> 0
B94: (v) INDUSTRIAL & COMMERCIAL CONTRACT
B95: Distribution Mains
B96: Inlet service pipes
B97: Meters
C98: Total | D98: =SUM(D95:D97) -> 0 | E98: =SUM(E95:E97) -> 0 | F98: =SUM(F95:F97) -> 0 | G98: =SUM(G95:G97) -> 0 | H98: =SUM(H95:H97) -> 0 | I98: =SUM(I95:I97) -> 0 | J98: =SUM(J95:J97) -> 0
C99: TOTAL | D99: =SUM(D98,D93,D88,D83,D78) -> 0 | E99: =SUM(E98,E93,E88,E83,E78) -> 0 | F99: =SUM(F98,F93,F88,F83,F78) -> 0 | G99: =SUM(G98,G93,G88,G83,G78) -> 0 | H99: =SUM(H98,H93,H88,H83,H78) -> 0 | I99: =SUM(I98,I93,I88,I83,I78) -> 0 | J99: =SUM(J98,J93,J88,J83,J78) -> 0
B101: D. TOTAL OVERHEAD EXPENDITURE
D102: EXPENDITURE
D103: =CONCATENATE("$0's, real ",dms_DollarReal) -> $0's, real June 2021
D104: =CRCP_y4 -> 2019-20 | E104: =CRCP_y5 -> 2020-21 | F104: =FRCP_y1 -> 2021-22 | G104: =FRCP_y2 -> 2022-23 | H104: =FRCP_y3 -> 2023-24 | I104: =FRCP_y4 -> 2024-25 | J104: =FRCP_y5 -> 2025-26
B105: (i) ELECTRICITY TO GAS
B106: Distribution Mains | D106: 3582 | E106: 2550 | F106: 1852 | G106: 1413 | H106: 1026 | I106: 828 | J106: 651
B107: Inlet service pipes | D107: 14842 | E107: 10567 | F107: 7675 | G107: 5855 | H107: 4250 | I107: 3430 | J107: 2698
B108: Meters | D108: 1453 | E108: 1034 | F108: 751 | G108: 573 | H108: 416 | I108: 336 | J108: 264
C109: Total | D109: =SUM(D106:D108) -> 19877 | E109: =SUM(E106:E108) -> 14151 | F109: =SUM(F106:F108) -> 10278 | G109: =SUM(G106:G108) -> 7841 | H109: =SUM(H106:H108) -> 5692 | I109: =SUM(I106:I108) -> 4594 | J109: =SUM(J106:J108) -> 3613
B110: (ii) NEW HOMES
B111: Distribution Mains | D111: 66393 | E111: 50310 | F111: 29295 | G111: 30985 | H111: 30348 | I111: 33172 | J111: 33259
B112: Inlet service pipes | D112: 111807 | E112: 84723 | F112: 49334 | G112: 52179 | H112: 51108 | I112: 55862 | J112: 56009
B113: Meters | D113: 25863 | E113: 19598 | F113: 11412 | G113: 12070 | H113: 11822 | I113: 12922 | J113: 12956
C114: Total | D114: =SUM(D111:D113) -> 204063 | E114: =SUM(E111:E113) -> 154631 | F114: =SUM(F111:F113) -> 90041 | G114: =SUM(G111:G113) -> 95234 | H114: =SUM(H111:H113) -> 93278 | I114: =SUM(I111:I113) -> 101956 | J114: =SUM(J111:J113) -> 102224
B115: (iii) NEW MEDIUM DENSITY / HIGH RISE
B116: Distribution Mains | D116: 10263 | E116: 13134 | F116: 5827 | G116: 6528 | H116: 6045 | I116: 6613 | J116: 6853
B117: Inlet service pipes | D117: 47383 | E117: 60638 | F117: 26902 | G117: 30137 | H117: 27911 | I117: 30532 | J117: 31638
B118: Meters | D118: 47767 | E118: 61129 | F118: 27120 | G118: 30381 | H118: 28137 | I118: 30779 | J118: 31894
C119: Total | D119: =SUM(D116:D118) -> 105413 | E119: =SUM(E116:E118) -> 134901 | F119: =SUM(F116:F118) -> 59849 | G119: =SUM(G116:G118) -> 67046 | H119: =SUM(H116:H118) -> 62093 | I119: =SUM(I116:I118) -> 67924 | J119: =SUM(J116:J118) -> 70385
B120: (iv) INDUSTRIAL & COMMERCIAL TARIFF
B121: Distribution Mains | D121: 17723 | E121: 18613 | F121: 17326 | G121: 18701 | H121: 18610 | I121: 19831 | J121: 19752
B122: Inlet service pipes | D122: 28516 | E122: 29805 | F122: 28908 | G122: 31033 | H122: 30718 | I122: 32564 | J122: 32269
B123: Meters | D123: 25521 | E123: 26616 | F123: 26285 | G123: 28151 | H123: 27802 | I123: 29406 | J123: 29075
C124: Total | D124: =SUM(D121:D123) -> 71760 | E124: =SUM(E121:E123) -> 75034 | F124: =SUM(F121:F123) -> 72519 | G124: =SUM(G121:G123) -> 77885 | H124: =SUM(H121:H123) -> 77130 | I124: =SUM(I121:I123) -> 81801 | J124: =SUM(J121:J123) -> 81096
B125: (v) INDUSTRIAL & COMMERCIAL CONTRACT
B126: Distribution Mains | D126: 25639 | E126: 26573 | F126: 27594 | G126: 29368 | H126: 28823 | I126: 30298 | J126: 29773
B127: Inlet service pipes | D127: 15702 | E127: 16275 | F127: 16900 | G127: 17986 | H127: 17652 | I127: 18556 | J127: 18234
B128: Meters | D128: 3796 | E128: 3934 | F128: 4086 | G128: 4348 | H128: 4268 | I128: 4486 | J128: 4408
C129: Total | D129: =SUM(D126:D128) -> 45137 | E129: =SUM(E126:E128) -> 46782 | F129: =SUM(F126:F128) -> 48580 | G129: =SUM(G126:G128) -> 51702 | H129: =SUM(H126:H128) -> 50743 | I129: =SUM(I126:I128) -> 53340 | J129: =SUM(J126:J128) -> 52415
C130: TOTAL | D130: =SUM(D129,D124,D119,D114,D109) -> 446250 | E130: =SUM(E129,E124,E119,E114,E109) -> 425499 | F130: =SUM(F129,F124,F119,F114,F109) -> 281267 | G130: =SUM(G129,G124,G119,G114,G109) -> 299708 | H130: =SUM(H129,H124,H119,H114,H109) -> 288936 | I130: =SUM(I129,I124,I119,I114,I109) -> 309615 | J130: =SUM(J129,J124,J119,J114,J109) -> 309733
B132: E. RELATED PARTY MARGIN EXPENDITURE
D133: EXPENDITURE
D134: =CONCATENATE("$0's, real ",dms_DollarReal) -> $0's, real June 2021
D135: =CRCP_y4 -> 2019-20 | E135: =CRCP_y5 -> 2020-21 | F135: =FRCP_y1 -> 2021-22 | G135: =FRCP_y2 -> 2022-23 | H135: =FRCP_y3 -> 2023-24 | I135: =FRCP_y4 -> 2024-25 | J135: =FRCP_y5 -> 2025-26
B136: (i) ELECTRICITY TO GAS
B137: Distribution Mains
B138: Inlet service pipes
B139: Meters
C140: Total | D140: =SUM(D137:D139) -> 0 | E140: =SUM(E137:E139) -> 0 | F140: =SUM(F137:F139) -> 0 | G140: =SUM(G137:G139) -> 0 | H140: =SUM(H137:H139) -> 0 | I140: =SUM(I137:I139) -> 0 | J140: =SUM(J137:J139) -> 0
B141: (ii) NEW HOMES
B142: Distribution Mains
B143: Inlet service pipes
B144: Meters
C145: Total | D145: =SUM(D142:D144) -> 0 | E145: =SUM(E142:E144) -> 0 | F145: =SUM(F142:F144) -> 0 | G145: =SUM(G142:G144) -> 0 | H145: =SUM(H142:H144) -> 0 | I145: =SUM(I142:I144) -> 0 | J145: =SUM(J142:J144) -> 0
B146: (iii) NEW MEDIUM DENSITY / HIGH RISE
B147: Distribution Mains
B148: Inlet service pipes
B149: Meters
C150: Total | D150: =SUM(D147:D149) -> 0 | E150: =SUM(E147:E149) -> 0 | F150: =SUM(F147:F149) -> 0 | G150: =SUM(G147:G149) -> 0 | H150: =SUM(H147:H149) -> 0 | I150: =SUM(I147:I149) -> 0 | J150: =SUM(J147:J149) -> 0
B151: (iv) INDUSTRIAL & COMMERCIAL TARIFF
B152: Distribution Mains
B153: Inlet service pipes
B154: Meters
C155: Total | D155: =SUM(D152:D154) -> 0 | E155: =SUM(E152:E154) -> 0 | F155: =SUM(F152:F154) -> 0 | G155: =SUM(G152:G154) -> 0 | H155: =SUM(H152:H154) -> 0 | I155: =SUM(I152:I154) -> 0 | J155: =SUM(J152:J154) -> 0
B156: (v) INDUSTRIAL & COMMERCIAL CONTRACT
B157: Distribution Mains
B158: Inlet service pipes
B159: Meters
C160: Total | D160: =SUM(D157:D159) -> 0 | E160: =SUM(E157:E159) -> 0 | F160: =SUM(F157:F159) -> 0 | G160: =SUM(G157:G159) -> 0 | H160: =SUM(H157:H159) -> 0 | I160: =SUM(I157:I159) -> 0 | J160: =SUM(J157:J159) -> 0
C161: TOTAL | D161: =SUM(D160,D155,D150,D145,D140) -> 0 | E161: =SUM(E160,E155,E150,E145,E140) -> 0 | F161: =SUM(F160,F155,F150,F145,F140) -> 0 | G161: =SUM(G160,G155,G150,G145,G140) -> 0 | H161: =SUM(H160,H155,H150,H145,H140) -> 0 | I161: =SUM(I160,I155,I150,I145,I140) -> 0 | J161: =SUM(J160,J155,J150,J145,J140) -> 0
B163: F. CAPITAL CONTRIBUTIONS included in the above
D164: EXPENDITURE
D165: =CONCATENATE("$0's, real ",dms_DollarReal) -> $0's, real June 2021
D166: =CRCP_y4 -> 2019-20 | E166: =CRCP_y5 -> 2020-21 | F166: =FRCP_y1 -> 2021-22 | G166: =FRCP_y2 -> 2022-23 | H166: =FRCP_y3 -> 2023-24 | I166: =FRCP_y4 -> 2024-25 | J166: =FRCP_y5 -> 2025-26
B167: (i) ELECTRICITY TO GAS
B168: Distribution Mains | D168: 734 | E168: 523 | F168: 380 | G168: 290 | H168: 210 | I168: 170 | J168: 133
B169: Inlet service pipes | D169: 3042 | E169: 2165 | F169: 1573 | G169: 1200 | H169: 871 | I169: 703 | J169: 553
B170: Meters
C171: Total | D171: =SUM(D168:D170) -> 3776 | E171: =SUM(E168:E170) -> 2688 | F171: =SUM(F168:F170) -> 1953 | G171: =SUM(G168:G170) -> 1490 | H171: =SUM(H168:H170) -> 1081 | I171: =SUM(I168:I170) -> 873 | J171: =SUM(J168:J170) -> 686
B172: (ii) NEW HOMES
B173: Distribution Mains | D173: 6334 | E173: 4800 | F173: 2795 | G173: 2956 | H173: 2895 | I173: 3165 | J173: 3173
B174: Inlet service pipes | D174: 10666 | E174: 8083 | F174: 4706 | G174: 4978 | H174: 4876 | I174: 5329 | J174: 5343
B175: Meters
C176: Total | D176: =SUM(D173:D175) -> 17000 | E176: =SUM(E173:E175) -> 12883 | F176: =SUM(F173:F175) -> 7501 | G176: =SUM(G173:G175) -> 7934 | H176: =SUM(H173:H175) -> 7771 | I176: =SUM(I173:I175) -> 8494 | J176: =SUM(J173:J175) -> 8516
B177: (iii) NEW MEDIUM DENSITY / HIGH RISE
B178: Distribution Mains | D178: 3826 | E178: 4896 | F178: 2172 | G178: 2433 | H178: 2254 | I178: 2465 | J178: 2555
B179: Inlet service pipes | D179: 17663 | E179: 22604 | F179: 10028 | G179: 11234 | H179: 10404 | I179: 11381 | J179: 11794
B180: Meters
C181: Total | D181: =SUM(D178:D180) -> 21489 | E181: =SUM(E178:E180) -> 27500 | F181: =SUM(F178:F180) -> 12200 | G181: =SUM(G178:G180) -> 13667 | H181: =SUM(H178:H180) -> 12658 | I181: =SUM(I178:I180) -> 13846 | J181: =SUM(J178:J180) -> 14349
B182: (iv) INDUSTRIAL & COMMERCIAL TARIFF
B183: Distribution Mains | D183: 26645 | E183: 27984 | F183: 26049 | G183: 28115 | H183: 27978 | I183: 29815 | J183: 29695
B184: Inlet service pipes | D184: 42873 | E184: 44810 | F184: 43462 | G184: 46656 | H184: 46182 | I184: 48958 | J184: 48515
B185: Meters
C186: Total | D186: =SUM(D183:D185) -> 69518 | E186: =SUM(E183:E185) -> 72794 | F186: =SUM(F183:F185) -> 69511 | G186: =SUM(G183:G185) -> 74771 | H186: =SUM(H183:H185) -> 74160 | I186: =SUM(I183:I185) -> 78773 | J186: =SUM(J183:J185) -> 78210
B187: (v) INDUSTRIAL & COMMERCIAL CONTRACT
B188: Distribution Mains
B189: Inlet service pipes
B190: Meters
C191: Total | D191: =SUM(D188:D190) -> 0 | E191: =SUM(E188:E190) -> 0 | F191: =SUM(F188:F190) -> 0 | G191: =SUM(G188:G190) -> 0 | H191: =SUM(H188:H190) -> 0 | I191: =SUM(I188:I190) -> 0 | J191: =SUM(J188:J190) -> 0
C192: TOTAL | D192: =SUM(D191,D186,D181,D176,D171) -> 111783 | E192: =SUM(E191,E186,E181,E176,E171) -> 115865 | F192: =SUM(F191,F186,F181,F176,F171) -> 91165 | G192: =SUM(G191,G186,G181,G176,G171) -> 97862 | H192: =SUM(H191,H186,H181,H176,H171) -> 95670 | I192: =SUM(I191,I186,I181,I176,I171) -> 101986 | J192: =SUM(J191,J186,J181,J176,J171) -> 101761
B195: E5.2 - UNIT RATES
B196: E5.2.1 - UNIT RATES - PER CONNECTION - BY CONNECTION TYPE
D197: RATES PER CONNECTION
D198: =CONCATENATE("$0's, real ",dms_DollarReal) -> $0's, real June 2021
C199: Units | D199: =CRCP_y4 -> 2019-20 | E199: =CRCP_y5 -> 2020-21 | F199: =FRCP_y1 -> 2021-22 | G199: =FRCP_y2 -> 2022-23 | H199: =FRCP_y3 -> 2023-24 | I199: =FRCP_y4 -> 2024-25 | J199: =FRCP_y5 -> 2025-26
B200: A. ELECTRICITY TO GAS
B201: Distribution mains | C201: per metre per connection
B202: Inlet service pipes | C202: per service per connection
B203: Meters | C203: number per connection
B204: B. NEW HOMES
B205: Distribution mains | C205: per metre per connection
B206: Inlet service pipes | C206: per service per connection
B207: Meters | C207: number per connection
B208: C. NEW MEDIUM DENSITY / HIGH RISE
... 67 more rows

Sheet E6. Non-network
B1: =INDEX(dms_Worksheet_List,MATCH(dms_Model,dms_Model_List)) -> REGULATORY REPORTING STATEMENT
B2: =INDEX(dms_TradingNameFull_List,MATCH(dms_TradingName,dms_TradingName_List)) -> Evoenergy Gas
B3: =dms_Header_Span -> 2019-20 - 2025-26
B4: E6. NON-NETWORK EXPENDITURE
B6: E6.5 - TELEMETRY
B8: Please list all projects here:
B9: Project 1
B26: E6.5.1 - CAPEX - BY PROJECT
B27: A. DIRECT INTERNAL LABOUR EXPENDITURE
C28: EXPENDITURE
C29: =CONCATENATE("$0's, real ",dms_DollarReal) -> $0's, real June 2021
C30: =CRCP_y4 -> 2019-20 | D30: =CRCP_y5 -> 2020-21 | E30: =FRCP_y1 -> 2021-22 | F30: =FRCP_y2 -> 2022-23 | G30: =FRCP_y3 -> 2023-24 | H30: =FRCP_y4 -> 2024-25 | I30: =FRCP_y5 -> 2025-26
B31: =IF(ISBLANK(dms_E65_Projects_01),"",dms_E65_Projects_01) -> Project 1
B32: =IF(ISBLANK(dms_E65_Projects_02),"",dms_E65_Projects_02) -> 
B33: =IF(ISBLANK(dms_E65_Projects_03),"",dms_E65_Projects_03) -> 
B34: =IF(ISBLANK(dms_E65_Projects_04),"",dms_E65_Projects_04) -> 
B35: =IF(ISBLANK(dms_E65_Projects_05),"",dms_E65_Projects_05) -> 
B36: =IF(ISBLANK(dms_E65_Projects_06),"",dms_E65_Projects_06) -> 
B37: =IF(ISBLANK(dms_E65_Projects_07),"",dms_E65_Projects_07) -> 
B38: =IF(ISBLANK(dms_E65_Projects_08),"",dms_E65_Projects_08) -> 
B39: =IF(ISBLANK(dms_E65_Projects_09),"",dms_E65_Projects_09) -> 
B40: =IF(ISBLANK(dms_E65_Projects_10),"",dms_E65_Projects_10) -> 
B41: =IF(ISBLANK(dms_E65_Projects_11),"",dms_E65_Projects_11) -> 
B42: =IF(ISBLANK(dms_E65_Projects_12),"",dms_E65_Projects_12) -> 
B43: =IF(ISBLANK(dms_E65_Projects_13),"",dms_E65_Projects_13) -> 
B44: =IF(ISBLANK(dms_E65_Projects_14),"",dms_E65_Projects_14) -> 
B45: =IF(ISBLANK(dms_E65_Projects_15),"",dms_E65_Projects_15) -> 
B46: Aggregate of other projects with total expenditure of less than $500,000
B47: Total | C47: =SUM(C31:C46) -> 0 | D47: =SUM(D31:D46) -> 0 | E47: 0 | F47: 0 | G47: 0 | H47: 0 | I47: 0
B49: B. DIRECT CONTRACTOR EXPENDITURE
B50: =IF(ISBLANK(dms_E65_Projects_01),"",dms_E65_Projects_01) -> Project 1
B51: =IF(ISBLANK(dms_E65_Projects_02),"",dms_E65_Projects_02) -> 
B52: =IF(ISBLANK(dms_E65_Projects_03),"",dms_E65_Projects_03) -> 
B53: =IF(ISBLANK(dms_E65_Projects_04),"",dms_E65_Projects_04) -> 
B54: =IF(ISBLANK(dms_E65_Projects_05),"",dms_E65_Projects_05) -> 
B55: =IF(ISBLANK(dms_E65_Projects_06),"",dms_E65_Projects_06) -> 
B56: =IF(ISBLANK(dms_E65_Projects_07),"",dms_E65_Projects_07) -> 
B57: =IF(ISBLANK(dms_E65_Projects_08),"",dms_E65_Projects_08) -> 
B58: =IF(ISBLANK(dms_E65_Projects_09),"",dms_E65_Projects_09) -> 
B59: =IF(ISBLANK(dms_E65_Projects_10),"",dms_E65_Projects_10) -> 
B60: =IF(ISBLANK(dms_E65_Projects_11),"",dms_E65_Projects_11) -> 
B61: =IF(ISBLANK(dms_E65_Projects_12),"",dms_E65_Projects_12) -> 
B62: =IF(ISBLANK(dms_E65_Projects_13),"",dms_E65_Projects_13) -> 
B63: =IF(ISBLANK(dms_E65_Projects_14),"",dms_E65_Projects_14) -> 
B64: =IF(ISBLANK(dms_E65_Projects_15),"",dms_E65_Projects_15) -> 
B65: Aggregate of other projects with total expenditure of less than $500,000
B66: Total | C66: =SUM(C50:C65) -> 0 | D66: =SUM(D50:D65) -> 0 | E66: =SUM(E50:E65) -> 0 | F66: =SUM(F50:F65) -> 0 | G66: =SUM(G50:G65) -> 0 | H66: =SUM(H50:H65) -> 0 | I66: =SUM(I50:I65) -> 0
B68: C. OTHER INTERNAL DIRECT EXPENDITURE
B69: =IF(ISBLANK(dms_E65_Projects_01),"",dms_E65_Projects_01) -> Project 1
B70: =IF(ISBLANK(dms_E65_Projects_02),"",dms_E65_Projects_02) -> 
B71: =IF(ISBLANK(dms_E65_Projects_03),"",dms_E65_Projects_03) -> 
B72: =IF(ISBLANK(dms_E65_Projects_04),"",dms_E65_Projects_04) -> 
B73: =IF(ISBLANK(dms_E65_Projects_05),"",dms_E65_Projects_05) -> 
B74: =IF(ISBLANK(dms_E65_Projects_06),"",dms_E65_Projects_06) -> 
B75: =IF(ISBLANK(dms_E65_Projects_07),"",dms_E65_Projects_07) -> 
B76: =IF(ISBLANK(dms_E65_Projects_08),"",dms_E65_Projects_08) -> 
B77: =IF(ISBLANK(dms_E65_Projects_09),"",dms_E65_Projects_09) -> 
B78: =IF(ISBLANK(dms_E65_Projects_10),"",dms_E65_Projects_10) -> 
B79: =IF(ISBLANK(dms_E65_Projects_11),"",dms_E65_Projects_11) -> 
B80: =IF(ISBLANK(dms_E65_Projects_12),"",dms_E65_Projects_12) -> 
B81: =IF(ISBLANK(dms_E65_Projects_13),"",dms_E65_Projects_13) -> 
B82: =IF(ISBLANK(dms_E65_Projects_14),"",dms_E65_Projects_14) -> 
B83: =IF(ISBLANK(dms_E65_Projects_15),"",dms_E65_Projects_15) -> 
B84: Aggregate of other projects with total expenditure of less than $500,000
B85: Total | C85: =SUM(C69:C84) -> 0 | D85: =SUM(D69:D84) -> 0 | E85: 0 | F85: 0 | G85: 0 | H85: 0 | I85: 0
B87: D. TOTAL OVERHEAD EXPENDITURE
B88: =IF(ISBLANK(dms_E65_Projects_01),"",dms_E65_Projects_01) -> Project 1
B89: =IF(ISBLANK(dms_E65_Projects_02),"",dms_E65_Projects_02) -> 
B90: =IF(ISBLANK(dms_E65_Projects_03),"",dms_E65_Projects_03) -> 
B91: =IF(ISBLANK(dms_E65_Projects_04),"",dms_E65_Projects_04) -> 
B92: =IF(ISBLANK(dms_E65_Projects_05),"",dms_E65_Projects_05) -> 
B93: =IF(ISBLANK(dms_E65_Projects_06),"",dms_E65_Projects_06) -> 
B94: =IF(ISBLANK(dms_E65_Projects_07),"",dms_E65_Projects_07) -> 
B95: =IF(ISBLANK(dms_E65_Projects_08),"",dms_E65_Projects_08) -> 
B96: =IF(ISBLANK(dms_E65_Projects_09),"",dms_E65_Projects_09) -> 
B97: =IF(ISBLANK(dms_E65_Projects_10),"",dms_E65_Projects_10) -> 
B98: =IF(ISBLANK(dms_E65_Projects_11),"",dms_E65_Projects_11) -> 
B99: =IF(ISBLANK(dms_E65_Projects_12),"",dms_E65_Projects_12) -> 
B100: =IF(ISBLANK(dms_E65_Projects_13),"",dms_E65_Projects_13) -> 
B101: =IF(ISBLANK(dms_E65_Projects_14),"",dms_E65_Projects_14) -> 
B102: =IF(ISBLANK(dms_E65_Projects_15),"",dms_E65_Projects_15) -> 
B103: Aggregate of other projects with total expenditure of less than $500,000 | C103: 0 | D103: 0 | E103: 0 | F103: - | G103: 0 | H103: 0 | I103: -
B104: Total | C104: =SUM(C88:C103) -> 0 | D104: =SUM(D88:D103) -> 0 | E104: =SUM(E88:E103) -> 0 | F104: =SUM(F88:F103) -> 0 | G104: =SUM(G88:G103) -> 0 | H104: =SUM(H88:H103) -> 0 | I104: =SUM(I88:I103) -> 0
B106: E. RELATED PARTY MARGIN EXPENDITURE
B107: =IF(ISBLANK(dms_E65_Projects_01),"",dms_E65_Projects_01) -> Project 1
B108: =IF(ISBLANK(dms_E65_Projects_02),"",dms_E65_Projects_02) -> 
B109: =IF(ISBLANK(dms_E65_Projects_03),"",dms_E65_Projects_03) -> 
B110: =IF(ISBLANK(dms_E65_Projects_04),"",dms_E65_Projects_04) -> 
B111: =IF(ISBLANK(dms_E65_Projects_05),"",dms_E65_Projects_05) -> 
B112: =IF(ISBLANK(dms_E65_Projects_06),"",dms_E65_Projects_06) -> 
B113: =IF(ISBLANK(dms_E65_Projects_07),"",dms_E65_Projects_07) -> 
B114: =IF(ISBLANK(dms_E65_Projects_08),"",dms_E65_Projects_08) -> 
B115: =IF(ISBLANK(dms_E65_Projects_09),"",dms_E65_Projects_09) -> 
B116: =IF(ISBLANK(dms_E65_Projects_10),"",dms_E65_Projects_10) -> 
B117: =IF(ISBLANK(dms_E65_Projects_11),"",dms_E65_Projects_11) -> 
B118: =IF(ISBLANK(dms_E65_Projects_12),"",dms_E65_Projects_12) -> 
B119: =IF(ISBLANK(dms_E65_Projects_13),"",dms_E65_Projects_13) -> 
B120: =IF(ISBLANK(dms_E65_Projects_14),"",dms_E65_Projects_14) -> 
B121: =IF(ISBLANK(dms_E65_Projects_15),"",dms_E65_Projects_15) -> 
B122: Aggregate of other projects with total expenditure of less than $500,000
B123: Total | C123: =SUM(C107:C122) -> 0 | D123: =SUM(D107:D122) -> 0 | E123: =SUM(E107:E122) -> 0 | F123: =SUM(F107:F122) -> 0 | G123: =SUM(G107:G122) -> 0 | H123: =SUM(H107:H122) -> 0 | I123: =SUM(I107:I122) -> 0
B125: F. CAPITAL CONTRIBUTIONS included in the above
B126: =IF(ISBLANK(dms_E65_Projects_01),"",dms_E65_Projects_01) -> Project 1
B127: =IF(ISBLANK(dms_E65_Projects_02),"",dms_E65_Projects_02) -> 
B128: =IF(ISBLANK(dms_E65_Projects_03),"",dms_E65_Projects_03) -> 
B129: =IF(ISBLANK(dms_E65_Projects_04),"",dms_E65_Projects_04) -> 
B130: =IF(ISBLANK(dms_E65_Projects_05),"",dms_E65_Projects_05) -> 
B131: =IF(ISBLANK(dms_E65_Projects_06),"",dms_E65_Projects_06) -> 
B132: =IF(ISBLANK(dms_E65_Projects_07),"",dms_E65_Projects_07) -> 
B133: =IF(ISBLANK(dms_E65_Projects_08),"",dms_E65_Projects_08) -> 
B134: =IF(ISBLANK(dms_E65_Projects_09),"",dms_E65_Projects_09) -> 
B135: =IF(ISBLANK(dms_E65_Projects_10),"",dms_E65_Projects_10) -> 
B136: =IF(ISBLANK(dms_E65_Projects_11),"",dms_E65_Projects_11) -> 
B137: =IF(ISBLANK(dms_E65_Projects_12),"",dms_E65_Projects_12) -> 
B138: =IF(ISBLANK(dms_E65_Projects_13),"",dms_E65_Projects_13) -> 
B139: =IF(ISBLANK(dms_E65_Projects_14),"",dms_E65_Projects_14) -> 
B140: =IF(ISBLANK(dms_E65_Projects_15),"",dms_E65_Projects_15) -> 
B141: Aggregate of other projects with total expenditure of less than $500,000
B142: Total | C142: =SUM(C126:C141) -> 0 | D142: =SUM(D126:D141) -> 0 | E142: =SUM(E126:E141) -> 0 | F142: =SUM(F126:F141) -> 0 | G142: =SUM(G126:G141) -> 0 | H142: =SUM(H126:H141) -> 0 | I142: =SUM(I126:I141) -> 0

Sheet E10. Overheads
B1: =INDEX(dms_Worksheet_List,MATCH(dms_Model,dms_Model_List)) -> REGULATORY REPORTING STATEMENT
B2: =INDEX(dms_TradingNameFull_List,MATCH(dms_TradingName,dms_TradingName_List)) -> Evoenergy Gas
B3: =dms_Header_Span -> 2019-20 - 2025-26
B4: E10. OVERHEADS EXPENDITURE
B6: E10.1 - NETWORK
C7: EXPENDITURE
C8: =CONCATENATE("$0's, real ",dms_DollarReal) -> $0's, real June 2021
C9: =CRCP_y4 -> 2019-20 | D9: =CRCP_y5 -> 2020-21 | E9: =FRCP_y1 -> 2021-22 | F9: =FRCP_y2 -> 2022-23 | G9: =FRCP_y3 -> 2023-24 | H9: =FRCP_y4 -> 2024-25 | I9: =FRCP_y5 -> 2025-26
B10: E10.1.1 - OPEX
B11: Reference services
B12: Non-reference services
B13: Total | C13: =SUM(C11:C12) -> 0 | D13: =SUM(D11:D12) -> 0 | E13: 0 | F13: 0 | G13: 0 | H13: 0 | I13: 0
B14: E10.1.2 - CAPEX
B15: Reference services
B16: Non-reference services
B17: Total | C17: =SUM(C15:C16) -> 0 | D17: =SUM(D15:D16) -> 0 | E17: 0 | F17: 0 | G17: 0 | H17: 0 | I17: 0
B21: E10.2 - CORPORATE
C22: EXPENDITURE
C23: =CONCATENATE("$0's, real ",dms_DollarReal) -> $0's, real June 2021
C24: =CRCP_y4 -> 2019-20 | D24: =CRCP_y5 -> 2020-21 | E24: =FRCP_y1 -> 2021-22 | F24: =FRCP_y2 -> 2022-23 | G24: =FRCP_y3 -> 2023-24 | H24: =FRCP_y4 -> 2024-25 | I24: =FRCP_y5 -> 2025-26
B25: E10.2.1 - OPEX
B26: Reference services | C26: 3099999 | D26: 3103903 | E26: 3126151 | F26: 3140849 | G26: 3158627 | H26: 3177042 | I26: 3192911
B27: Non-reference services
B28: Total | C28: =SUM(C26:C27) -> 3099999 | D28: 3103903 | E28: 3126151 | F28: 3140849 | G28: 3158627 | H28: 3177042 | I28: 3192911
B29: E10.2.2 - CAPEX
B30: Reference services | C30: 853761 | D30: 837257 | E30: 858115 | F30: 841095 | G30: 690984 | H30: 624602 | I30: 593877
B31: Non-reference services
B32: Total | C32: =SUM(C30:C31) -> 853761 | D32: 837257 | E32: 858115 | F32: 841095 | G32: 690984 | H32: 624602 | I32: 593877

Sheet E12. ICT
B1: =INDEX(dms_Worksheet_List,MATCH(dms_Model,dms_Model_List)) -> REGULATORY REPORTING STATEMENT
B2: =INDEX(dms_TradingNameFull_List,MATCH(dms_TradingName,dms_TradingName_List)) -> Evoenergy Gas
B3: =dms_Header_Span -> 2019-20 - 2025-26
B4: E12. INFORMATION AND COMMUNICATION TECHNOLOGY
B6: Please list all projects here:
B7: Project 1
B23: E12.1 - CAPEX - BY PROJECT
B24: A. DIRECT INTERNAL LABOUR EXPENDITURE
C25: EXPENDITURE
C26: =CONCATENATE("$0's, real ",dms_DollarReal) -> $0's, real June 2021
C27: =CRCP_y4 -> 2019-20 | D27: =CRCP_y5 -> 2020-21 | E27: =FRCP_y1 -> 2021-22 | F27: =FRCP_y2 -> 2022-23 | G27: =FRCP_y3 -> 2023-24 | H27: =FRCP_y4 -> 2024-25 | I27: =FRCP_y5 -> 2025-26
B28: =IF(ISBLANK(dms_E12_Projects_01),"",dms_E12_Projects_01) -> Project 1
B29: =IF(ISBLANK(dms_E12_Projects_02),"",dms_E12_Projects_02) -> 
B30: =IF(ISBLANK(dms_E12_Projects_03),"",dms_E12_Projects_03) -> 
B31: =IF(ISBLANK(dms_E12_Projects_04),"",dms_E12_Projects_04) -> 
B32: =IF(ISBLANK(dms_E12_Projects_05),"",dms_E12_Projects_05) -> 
B33: =IF(ISBLANK(dms_E12_Projects_06),"",dms_E12_Projects_06) -> 
B34: =IF(ISBLANK(dms_E12_Projects_07),"",dms_E12_Projects_07) -> 
B35: =IF(ISBLANK(dms_E12_Projects_08),"",dms_E12_Projects_08) -> 
B36: =IF(ISBLANK(dms_E12_Projects_09),"",dms_E12_Projects_09) -> 
B37: =IF(ISBLANK(dms_E12_Projects_10),"",dms_E12_Projects_10) -> 
B38: =IF(ISBLANK(dms_E12_Projects_11),"",dms_E12_Projects_11) -> 
B39: =IF(ISBLANK(dms_E12_Projects_12),"",dms_E12_Projects_12) -> 
B40: =IF(ISBLANK(dms_E12_Projects_13),"",dms_E12_Projects_13) -> 
B41: =IF(ISBLANK(dms_E12_Projects_14),"",dms_E12_Projects_14) -> 
B42: =IF(ISBLANK(dms_E12_Projects_15),"",dms_E12_Projects_15) -> 
B43: Aggregate of other projects with total expenditure of less than $500,000
B44: Total | C44: =SUM(C28:C43) -> 0 | D44: =SUM(D28:D43) -> 0 | E44: 0 | F44: 0 | G44: 0 | H44: 0 | I44: 0
B46: B. DIRECT CONTRACTOR EXPENDITURE
B47: =IF(ISBLANK(dms_E12_Projects_01),"",dms_E12_Projects_01) -> Project 1
B48: =IF(ISBLANK(dms_E12_Projects_02),"",dms_E12_Projects_02) -> 
B49: =IF(ISBLANK(dms_E12_Projects_03),"",dms_E12_Projects_03) -> 
B50: =IF(ISBLANK(dms_E12_Projects_04),"",dms_E12_Projects_04) -> 
B51: =IF(ISBLANK(dms_E12_Projects_05),"",dms_E12_Projects_05) -> 
B52: =IF(ISBLANK(dms_E12_Projects_06),"",dms_E12_Projects_06) -> 
B53: =IF(ISBLANK(dms_E12_Projects_07),"",dms_E12_Projects_07) -> 
B54: =IF(ISBLANK(dms_E12_Projects_08),"",dms_E12_Projects_08) -> 
B55: =IF(ISBLANK(dms_E12_Projects_09),"",dms_E12_Projects_09) -> 
B56: =IF(ISBLANK(dms_E12_Projects_10),"",dms_E12_Projects_10) -> 
B57: =IF(ISBLANK(dms_E12_Projects_11),"",dms_E12_Projects_11) -> 
B58: =IF(ISBLANK(dms_E12_Projects_12),"",dms_E12_Projects_12) -> 
B59: =IF(ISBLANK(dms_E12_Projects_13),"",dms_E12_Projects_13) -> 
B60: =IF(ISBLANK(dms_E12_Projects_14),"",dms_E12_Projects_14) -> 
B61: =IF(ISBLANK(dms_E12_Projects_15),"",dms_E12_Projects_15) -> 
B62: Aggregate of other projects with total expenditure of less than $500,000
B63: Total | C63: =SUM(C47:C62) -> 0 | D63: =SUM(D47:D62) -> 0 | E63: =SUM(E47:E62) -> 0 | F63: =SUM(F47:F62) -> 0 | G63: =SUM(G47:G62) -> 0 | H63: =SUM(H47:H62) -> 0 | I63: =SUM(I47:I62) -> 0
B65: C. OTHER INTERNAL DIRECT EXPENDITURE
B66: =IF(ISBLANK(dms_E12_Projects_01),"",dms_E12_Projects_01) -> Project 1
B67: =IF(ISBLANK(dms_E12_Projects_02),"",dms_E12_Projects_02) -> 
B68: =IF(ISBLANK(dms_E12_Projects_03),"",dms_E12_Projects_03) -> 
B69: =IF(ISBLANK(dms_E12_Projects_04),"",dms_E12_Projects_04) -> 
B70: =IF(ISBLANK(dms_E12_Projects_05),"",dms_E12_Projects_05) -> 
B71: =IF(ISBLANK(dms_E12_Projects_06),"",dms_E12_Projects_06) -> 
B72: =IF(ISBLANK(dms_E12_Projects_07),"",dms_E12_Projects_07) -> 
B73: =IF(ISBLANK(dms_E12_Projects_08),"",dms_E12_Projects_08) -> 
B74: =IF(ISBLANK(dms_E12_Projects_09),"",dms_E12_Projects_09) -> 
B75: =IF(ISBLANK(dms_E12_Projects_10),"",dms_E12_Projects_10) -> 
B76: =IF(ISBLANK(dms_E12_Projects_11),"",dms_E12_Projects_11) -> 
B77: =IF(ISBLANK(dms_E12_Projects_12),"",dms_E12_Projects_12) -> 
B78: =IF(ISBLANK(dms_E12_Projects_13),"",dms_E12_Projects_13) -> 
B79: =IF(ISBLANK(dms_E12_Projects_14),"",dms_E12_Projects_14) -> 
B80: =IF(ISBLANK(dms_E12_Projects_15),"",dms_E12_Projects_15) -> 
B81: Aggregate of other projects with total expenditure of less than $500,000
B82: Total | C82: =SUM(C66:C81) -> 0 | D82: =SUM(D66:D81) -> 0 | E82: =SUM(E66:E81) -> 0 | F82: =SUM(F66:F81) -> 0 | G82: =SUM(G66:G81) -> 0 | H82: =SUM(H66:H81) -> 0 | I82: =SUM(I66:I81) -> 0
B84: D. TOTAL OVERHEAD EXPENDITURE
B85: =IF(ISBLANK(dms_E12_Projects_01),"",dms_E12_Projects_01) -> Project 1
B86: =IF(ISBLANK(dms_E12_Projects_02),"",dms_E12_Projects_02) -> 
B87: =IF(ISBLANK(dms_E12_Projects_03),"",dms_E12_Projects_03) -> 
B88: =IF(ISBLANK(dms_E12_Projects_04),"",dms_E12_Projects_04) -> 
B89: =IF(ISBLANK(dms_E12_Projects_05),"",dms_E12_Projects_05) -> 
B90: =IF(ISBLANK(dms_E12_Projects_06),"",dms_E12_Projects_06) -> 
B91: =IF(ISBLANK(dms_E12_Projects_07),"",dms_E12_Projects_07) -> 
B92: =IF(ISBLANK(dms_E12_Projects_08),"",dms_E12_Projects_08) -> 
B93: =IF(ISBLANK(dms_E12_Projects_09),"",dms_E12_Projects_09) -> 
B94: =IF(ISBLANK(dms_E12_Projects_10),"",dms_E12_Projects_10) -> 
B95: =IF(ISBLANK(dms_E12_Projects_11),"",dms_E12_Projects_11) -> 
B96: =IF(ISBLANK(dms_E12_Projects_12),"",dms_E12_Projects_12) -> 
B97: =IF(ISBLANK(dms_E12_Projects_13),"",dms_E12_Projects_13) -> 
B98: =IF(ISBLANK(dms_E12_Projects_14),"",dms_E12_Projects_14) -> 
B99: =IF(ISBLANK(dms_E12_Projects_15),"",dms_E12_Projects_15) -> 
B100: Aggregate of other projects with total expenditure of less than $500,000
B101: Total | C101: =SUM(C85:C100) -> 0 | D101: =SUM(D85:D100) -> 0 | E101: =SUM(E85:E100) -> 0 | F101: =SUM(F85:F100) -> 0 | G101: =SUM(G85:G100) -> 0 | H101: =SUM(H85:H100) -> 0 | I101: =SUM(I85:I100) -> 0
B103: E. RELATED PARTY MARGIN EXPENDITURE
B104: =IF(ISBLANK(dms_E12_Projects_01),"",dms_E12_Projects_01) -> Project 1
B105: =IF(ISBLANK(dms_E12_Projects_02),"",dms_E12_Projects_02) -> 
B106: =IF(ISBLANK(dms_E12_Projects_03),"",dms_E12_Projects_03) -> 
B107: =IF(ISBLANK(dms_E12_Projects_04),"",dms_E12_Projects_04) -> 
B108: =IF(ISBLANK(dms_E12_Projects_05),"",dms_E12_Projects_05) -> 
B109: =IF(ISBLANK(dms_E12_Projects_06),"",dms_E12_Projects_06) -> 
B110: =IF(ISBLANK(dms_E12_Projects_07),"",dms_E12_Projects_07) -> 
B111: =IF(ISBLANK(dms_E12_Projects_08),"",dms_E12_Projects_08) -> 
B112: =IF(ISBLANK(dms_E12_Projects_09),"",dms_E12_Projects_09) -> 
B113: =IF(ISBLANK(dms_E12_Projects_10),"",dms_E12_Projects_10) -> 
B114: =IF(ISBLANK(dms_E12_Projects_11),"",dms_E12_Projects_11) -> 
B115: =IF(ISBLANK(dms_E12_Projects_12),"",dms_E12_Projects_12) -> 
B116: =IF(ISBLANK(dms_E12_Projects_13),"",dms_E12_Projects_13) -> 
B117: =IF(ISBLANK(dms_E12_Projects_14),"",dms_E12_Projects_14) -> 
B118: =IF(ISBLANK(dms_E12_Projects_15),"",dms_E12_Projects_15) -> 
B119: Aggregate of other projects with total expenditure of less than $500,000
B120: Total | C120: =SUM(C104:C119) -> 0 | D120: =SUM(D104:D119) -> 0 | E120: =SUM(E104:E119) -> 0 | F120: =SUM(F104:F119) -> 0 | G120: =SUM(G104:G119) -> 0 | H120: =SUM(H104:H119) -> 0 | I120: =SUM(I104:I119) -> 0
B122: F. CAPITAL CONTRIBUTIONS included in the above
B123: =IF(ISBLANK(dms_E12_Projects_01),"",dms_E12_Projects_01) -> Project 1
B124: =IF(ISBLANK(dms_E12_Projects_02),"",dms_E12_Projects_02) -> 
B125: =IF(ISBLANK(dms_E12_Projects_03),"",dms_E12_Projects_03) -> 
B126: =IF(ISBLANK(dms_E12_Projects_04),"",dms_E12_Projects_04) -> 
B127: =IF(ISBLANK(dms_E12_Projects_05),"",dms_E12_Projects_05) -> 
B128: =IF(ISBLANK(dms_E12_Projects_06),"",dms_E12_Projects_06) -> 
B129: =IF(ISBLANK(dms_E12_Projects_07),"",dms_E12_Projects_07) -> 
B130: =IF(ISBLANK(dms_E12_Projects_08),"",dms_E12_Projects_08) -> 
B131: =IF(ISBLANK(dms_E12_Projects_09),"",dms_E12_Projects_09) -> 
B132: =IF(ISBLANK(dms_E12_Projects_10),"",dms_E12_Projects_10) -> 
B133: =IF(ISBLANK(dms_E12_Projects_11),"",dms_E12_Projects_11) -> 
B134: =IF(ISBLANK(dms_E12_Projects_12),"",dms_E12_Projects_12) -> 
B135: =IF(ISBLANK(dms_E12_Projects_13),"",dms_E12_Projects_13) -> 
B136: =IF(ISBLANK(dms_E12_Projects_14),"",dms_E12_Projects_14) -> 
B137: =IF(ISBLANK(dms_E12_Projects_15),"",dms_E12_Projects_15) -> 
B138: Aggregate of other projects with total expenditure of less than $500,000
B139: Total | C139: =SUM(C123:C138) -> 0 | D139: =SUM(D123:D138) -> 0 | E139: =SUM(E123:E138) -> 0 | F139: =SUM(F123:F138) -> 0 | G139: =SUM(G123:G138) -> 0 | H139: =SUM(H123:H138) -> 0 | I139: =SUM(I123:I138) -> 0

Sheet E17. Step changes
B1: =INDEX(dms_Worksheet_List,MATCH(dms_Model,dms_Model_List)) -> REGULATORY REPORTING STATEMENT
B2: =INDEX(dms_TradingNameFull_List,MATCH(dms_TradingName,dms_TradingName_List)) -> Evoenergy Gas
B3: =dms_Header_Span -> 2019-20 - 2025-26
B4: E17. STEP CHANGES
B6: E17.1 - STEP CHANGES FOR REFERENCE SERVICES
B7: E17.1.1 - FORECAST OPEX
D8: EXPENDITURE
D9: =CONCATENATE("$0's, real ",dms_DollarReal) -> $0's, real June 2021
B10: Step change | C10: Description | D10: =CRCP_y4 -> 2019-20 | E10: =CRCP_y5 -> 2020-21 | F10: =FRCP_y1 -> 2021-22 | G10: =FRCP_y2 -> 2022-23 | H10: =FRCP_y3 -> 2023-24 | I10: =FRCP_y4 -> 2024-25 | J10: =FRCP_y5 -> 2025-26
B11: Expensing of pigging costs | C11: Treating this cost as an operating expense more accurately reflects the nature of these activities. This will be offset by a corresponding reduction to our capital investment program. | F11: 453917.7388 | G11: 939892.6939 | H11: 0 | I11: 50315.00704 | J11: 815262.266
B21: Total | D21: =SUM(D11:D20) -> 0 | E21: 0 | F21: 453917.7388 | G21: 939892.6939 | H21: 0 | I21: 50315.00704 | J21: 815262.266
B23: E17.1.2 - FORECAST CAPEX
D24: EXPENDITURE
D25: =CONCATENATE("$0's, real ", dms_DollarReal) -> $0's, real June 2021
B26: Step change | C26: Description | D26: =CRCP_y4 -> 2019-20 | E26: =CRCP_y5 -> 2020-21 | F26: =FRCP_y1 -> 2021-22 | G26: =FRCP_y2 -> 2022-23 | H26: =FRCP_y3 -> 2023-24 | I26: =FRCP_y4 -> 2024-25 | J26: =FRCP_y5 -> 2025-26
B37: Total | D37: =SUM(D27:D36) -> 0 | E37: 0 | F37: 0 | G37: 0 | H37: 0 | I37: 0 | J37: 0
B41: E17.2 - CATEGORY SPECIFIC FORECASTS
D42: EXPENDITURE
D43: =CONCATENATE("$0's, real ",dms_DollarReal) -> $0's, real June 2021
B44: Category desription | D44: =CRCP_y4 -> 2019-20 | E44: =CRCP_y5 -> 2020-21 | F44: =FRCP_y1 -> 2021-22 | G44: =FRCP_y2 -> 2022-23 | H44: =FRCP_y3 -> 2023-24 | I44: =FRCP_y4 -> 2024-25 | J44: =FRCP_y5 -> 2025-26
B45: Utilities Network Facilities Tax | D45: 8156161 | E45: 7960741 | F45: 8539677 | G45: 8794197 | H45: 9054057 | I45: 9320515 | J45: 9588752
B46: Energy Industry Levy | D46: 481187 | E46: 469658 | F46: 695867 | G46: 670546 | H46: 639836 | I46: 610945 | J46: 584475
B47: Unaccounted for gas | D47: 1649981 | E47: 1610447 | F47: 1939754 | G47: 1745169 | H47: 1734801 | I47: 1675351 | J47: 1731747
B48: IT asset utilisation fee | D48: 830576 | E48: 810675 | F48: - | G48: - | H48: - | I48: 288150 | J48: 281520
B70: Total | D70: =SUM(D45:D69) -> 11117905 | E70: 10851521 | F70: 11175298 | G70: 11209912 | H70: 11428694 | I70: 11894961 | J70: 12186494

Sheet E20. Opex
B1: =INDEX(dms_Worksheet_List,MATCH(dms_Model,dms_Model_List)) -> REGULATORY REPORTING STATEMENT
B2: =INDEX(dms_TradingNameFull_List,MATCH(dms_TradingName,dms_TradingName_List)) -> Evoenergy Gas
B3: =dms_Header_Span -> 2019-20 - 2025-26
B4: E20. OPERATING EXPENDITURE
B7: IMPORTANT!
B8: =CONCATENATE("Has ",dms_TradingName," used a base-step-trend model to derive its opex forecast? ") -> Has Evoenergy Gas used a base-step-trend model to derive its opex forecast? | D8: Yes
B9: Yes / No
B10: Please nominate the base year | D10: 2019-20
E11: 2015-16 | F11: 2016-17 | G11: 2017-18 | H11: 2018-19 | I11: 2019-20
B12: E20.1 - OPEX - BY DRIVER
B13: E20.1.1 - REFERENCE SERVICES
C14: EXPENDITURE
C15: =CONCATENATE("$0's, real ",dms_DollarReal) -> $0's, real June 2021
C16: =CRCP_y1 -> 2016-17 | D16: =CRCP_y2 -> 2017-18 | E16: =CRCP_y3 -> 2018-19 | F16: =CRCP_y4 -> 2019-20 | G16: =CRCP_y5 -> 2020-21 | H16: =FRCP_y1 -> 2021-22 | I16: =FRCP_y2 -> 2022-23 | J16: =FRCP_y3 -> 2023-24 | K16: =FRCP_y4 -> 2024-25 | L16: =FRCP_y5 -> 2025-26
B17: Base year total opex, excluding category specific | D17: 20425132.86 | E17: 20366728.41 | F17: 22310367.38 | G17: 22576749.85 | H17: 22595882.47 | I17: 22595882.47 | J17: 22595882.47 | K17: 22595882.47 | L17: 22595882.47
B18: Increment from base year to final year | G18: 19132.61505
B19: Price growth | H19: 96496.5475 | I19: 191466.7929 | J19: 316066.6838 | K19: 449416.0423 | L19: 565759.9709
B20: Output growth | H20: 179828.0182 | I20: 307869.6406 | J20: 430709.1378 | K20: 551434.9008 | L20: 672117.1356
B21: Productivity growth | H21: -114361.0352 | I21: -230374.8085 | J21: -348392.0928 | K21: -468406.9418 | L21: -589915.2672
B22: Step changes | H22: 453917.7388 | I22: 939892.6939 | J22: 0 | K22: 50315.00704 | L22: 815262.266
B23: Category specific | F23: =IF(ISBLANK('E17. Step changes'!D70),"",'E17. Step changes'!D70) -> 11117905 | G23: =IF(ISBLANK('E17. Step changes'!E70),"",'E17. Step changes'!E70) -> 10851521 | H23: =IF(ISBLANK('E17. Step changes'!F70),"",'E17. Step changes'!F70) -> 11175298 | I23: =IF(ISBLANK('E17. Step changes'!G70),"",'E17. Step changes'!G70) -> 11209912 | J23: =IF(ISBLANK('E17. Step changes'!H70),"",'E17. Step changes'!H70) -> 11428694 | K23: =IF(ISBLANK('E17. Step changes'!I70),"",'E17. Step changes'!I70) -> 11894961 | L23: =IF(ISBLANK('E17. Step changes'!J70),"",'E17. Step changes'!J70) -> 12186494
B25: E20.1.2 - NON-REFERENCE SERVICES
C26: EXPENDITURE
C27: =CONCATENATE("$0's, real ",dms_DollarReal) -> $0's, real June 2021
C28: =CRCP_y1 -> 2016-17 | D28: =CRCP_y2 -> 2017-18 | E28: =CRCP_y3 -> 2018-19 | F28: =CRCP_y4 -> 2019-20 | G28: =CRCP_y5 -> 2020-21 | H28: =FRCP_y1 -> 2021-22 | I28: =FRCP_y2 -> 2022-23 | J28: =FRCP_y3 -> 2023-24 | K28: =FRCP_y4 -> 2024-25 | L28: =FRCP_y5 -> 2025-26
B29: Base year total opex, excluding category specific
B30: Increment from base year to final year
B31: Price growth
B32: Output growth
B33: Productivity growth
B34: Step changes
B35: Category specific
B39: E20.2 - OPEX - BY CATEGORY
B40: E20.2.1 - REFERENCE SERVICES
C41: EXPENDITURE
C42: =CONCATENATE("$0's, real ",dms_DollarReal) -> $0's, real June 2021
C43: =CRCP_y1 -> 2016-17 | D43: =CRCP_y2 -> 2017-18 | E43: =CRCP_y3 -> 2018-19 | F43: =CRCP_y4 -> 2019-20 | G43: =CRCP_y5 -> 2020-21 | H43: =FRCP_y1 -> 2021-22 | I43: =FRCP_y2 -> 2022-23 | J43: =FRCP_y3 -> 2023-24 | K43: =FRCP_y4 -> 2024-25 | L43: =FRCP_y5 -> 2025-26
B44: repairs and maintenance | F44: 15195501 | G44: 15214633 | H44: 15323689.15 | I44: 15395735 | J44: 15482880 | K44: 15573147 | L44: 15650930
B45: marketing and retail incentives | F45: 1140732 | G45: 1140732 | H45: 1140732 | I45: 1140732 | J45: 1140732 | K45: 1140732 | L45: 1140732
B46: debt raising | H46: 194062 | I46: 193910 | J46: 193196 | K46: 190710 | L46: 187291
B47: equity raising
B48: unaccounted for gas | F48: 1649981 | G48: 1610447 | H48: 1939754 | I48: 1745169 | J48: 1734801 | K48: 1675351 | L48: 1731747
B49: jurisdictional charges | F49: 8637348 | G49: 8430399 | H49: 9235543 | I49: 9464742 | J49: 9693893 | K49: 9931460 | L49: 10173227
B50: GSL payments | F50: -
B51: other opex | F51: 6804710.25 | G51: 7051192.31 | H51: 6747342.31 | I51: 7268269.63 | J51: 6370654.41 | K51: 6752912.01 | L51: 7548964.73
B52: TOTAL | F52: =SUM(F44:F51) -> 33428272.25 | G52: 33447403.31 | H52: 34581122.46 | I52: 35208557.63 | J52: 34616156.41 | K52: 35264312.01 | L52: 36432891.73
B54: E20.2.2 - NON-REFERENCE SERVICES
C55: EXPENDITURE
C56: =CONCATENATE("$0's, real ",dms_DollarReal) -> $0's, real June 2021
C57: =CRCP_y1 -> 2016-17 | D57: =CRCP_y2 -> 2017-18 | E57: =CRCP_y3 -> 2018-19 | F57: =CRCP_y4 -> 2019-20 | G57: =CRCP_y5 -> 2020-21 | H57: =FRCP_y1 -> 2021-22 | I57: =FRCP_y2 -> 2022-23 | J57: =FRCP_y3 -> 2023-24 | K57: =FRCP_y4 -> 2024-25 | L57: =FRCP_y5 -> 2025-26
B83: TOTAL | F83: =SUM(F58:F82) -> 0 | G83: =SUM(G58:G82) -> 0 | H83: 0 | I83: 0 | J83: 0 | K83: 0 | L83: 0
B87: E20.3 - OPEX - BY CATEGORY - RELATED PARTY MARGIN EXPENDITURE
B88: 20.3.1 - REFERENCE SERVICES
C89: EXPENDITURE
C90: =CONCATENATE("$0's, real ",dms_DollarReal) -> $0's, real June 2021
C91: =CRCP_y1 -> 2016-17 | D91: =CRCP_y2 -> 2017-18 | E91: =CRCP_y3 -> 2018-19 | F91: =CRCP_y4 -> 2019-20 | G91: =CRCP_y5 -> 2020-21 | H91: =FRCP_y1 -> 2021-22 | I91: =FRCP_y2 -> 2022-23 | J91: =FRCP_y3 -> 2023-24 | K91: =FRCP_y4 -> 2024-25 | L91: =FRCP_y5 -> 2025-26
B92: repairs and maintenance
B93: marketing and retail incentives
B94: debt raising
B95: equity raising
B96: unaccounted for gas
B97: jurisdictional charges
B98: GSL payments
B99: other opex
B100: TOTAL | F100: =SUM(F92:F99) -> 0 | G100: 0 | H100: 0 | I100: 0 | J100: 0 | K100: 0 | L100: 0
B102: 20.3.2 - NON-REFERENCE SERVICES
C103: EXPENDITURE
C104: =CONCATENATE("$0's, real ",dms_DollarReal) -> $0's, real June 2021
C105: =CRCP_y1 -> 2016-17 | D105: =CRCP_y2 -> 2017-18 | E105: =CRCP_y3 -> 2018-19 | F105: =CRCP_y4 -> 2019-20 | G105: =CRCP_y5 -> 2020-21 | H105: =FRCP_y1 -> 2021-22 | I105: =FRCP_y2 -> 2022-23 | J105: =FRCP_y3 -> 2023-24 | K105: =FRCP_y4 -> 2024-25 | L105: =FRCP_y5 -> 2025-26
B106: =IF(ISBLANK(B58),"",B58) -> 
B131: TOTAL | F131: =SUM(F106:F130) -> 0 | G131: =SUM(G106:G130) -> 0 | H131: 0 | I131: 0 | J131: 0 | K131: 0 | L131: 0

Sheet E13. Other capex
B1: =INDEX(dms_Worksheet_List,MATCH(dms_Model,dms_Model_List)) -> REGULATORY REPORTING STATEMENT
B2: =INDEX(dms_TradingNameFull_List,MATCH(dms_TradingName,dms_TradingName_List)) -> Evoenergy Gas
B3: =dms_Header_Span -> 2019-20 - 2025-26
B4: E13. OTHER CAPITAL EXPENDITURE
B6: Please list all projects here:
B7: 10047363 - Installation of Contingency Valves
B8: 10022570 - Flow Measurement at Fyshwick TRS
B9: 10022721 - Watson Pressure Limiting Station
B10: C425-81 - Flow Measurement at Phillip PRS
B11: C425-82 - Flow Measurement at Gungahlin PRS
B12: C462-156 - Hume Primary Main Extension (PME) Pigging Facilities
B13: C426-157 - SDRS Integrity and Safety Replacement
B23: E13.1 - CAPEX - BY PROJECT
C24: EXPENDITURE
C25: =CONCATENATE("$0's, real ",dms_DollarReal) -> $0's, real June 2021
C26: =CRCP_y4 -> 2019-20 | D26: =CRCP_y5 -> 2020-21 | E26: =FRCP_y1 -> 2021-22 | F26: =FRCP_y2 -> 2022-23 | G26: =FRCP_y3 -> 2023-24 | H26: =FRCP_y4 -> 2024-25 | I26: =FRCP_y5 -> 2025-26
B27: A. DIRECT INTERNAL LABOUR EXPENDITURE
B28: =IF(ISBLANK(dms_E13_Projects_01),"",dms_E13_Projects_01) -> 10047363 - Installation of Contingency Valves
B29: =IF(ISBLANK(dms_E13_Projects_02),"",dms_E13_Projects_02) -> 10022570 - Flow Measurement at Fyshwick TRS
B30: =IF(ISBLANK(dms_E13_Projects_03),"",dms_E13_Projects_03) -> 10022721 - Watson Pressure Limiting Station
B31: =IF(ISBLANK(dms_E13_Projects_04),"",dms_E13_Projects_04) -> C425-81 - Flow Measurement at Phillip PRS
B32: =IF(ISBLANK(dms_E13_Projects_05),"",dms_E13_Projects_05) -> C425-82 - Flow Measurement at Gungahlin PRS
B33: =IF(ISBLANK(dms_E13_Projects_06),"",dms_E13_Projects_06) -> C462-156 - Hume Primary Main Extension (PME) Pigging Facilities
B34: =IF(ISBLANK(dms_E13_Projects_07),"",dms_E13_Projects_07) -> C426-157 - SDRS Integrity and Safety Replacement
B35: =IF(ISBLANK(dms_E13_Projects_08),"",dms_E13_Projects_08) -> 
B36: =IF(ISBLANK(dms_E13_Projects_09),"",dms_E13_Projects_09) -> 
B37: =IF(ISBLANK(dms_E13_Projects_10),"",dms_E13_Projects_10) -> 
B38: =IF(ISBLANK(dms_E13_Projects_11),"",dms_E13_Projects_11) -> 
B39: =IF(ISBLANK(dms_E13_Projects_12),"",dms_E13_Projects_12) -> 
B40: =IF(ISBLANK(dms_E13_Projects_13),"",dms_E13_Projects_13) -> 
B41: =IF(ISBLANK(dms_E13_Projects_14),"",dms_E13_Projects_14) -> 
B42: =IF(ISBLANK(dms_E13_Projects_15),"",dms_E13_Projects_15) -> 
B43: Aggregate of other projects with total expenditure of less than $500,000
B44: Total | C44: =SUM(C28:C43) -> 0 | D44: =SUM(D28:D43) -> 0 | E44: 0 | F44: 0 | G44: 0 | H44: 0 | I44: 0
B46: B. DIRECT CONTRACTOR EXPENDITURE
B47: =IF(ISBLANK(dms_E13_Projects_01),"",dms_E13_Projects_01) -> 10047363 - Installation of Contingency Valves
B48: =IF(ISBLANK(dms_E13_Projects_02),"",dms_E13_Projects_02) -> 10022570 - Flow Measurement at Fyshwick TRS
B49: =IF(ISBLANK(dms_E13_Projects_03),"",dms_E13_Projects_03) -> 10022721 - Watson Pressure Limiting Station
B50: =IF(ISBLANK(dms_E13_Projects_04),"",dms_E13_Projects_04) -> C425-81 - Flow Measurement at Phillip PRS
B51: =IF(ISBLANK(dms_E13_Projects_05),"",dms_E13_Projects_05) -> C425-82 - Flow Measurement at Gungahlin PRS
B52: =IF(ISBLANK(dms_E13_Projects_06),"",dms_E13_Projects_06) -> C462-156 - Hume Primary Main Extension (PME) Pigging Facilities
B53: =IF(ISBLANK(dms_E13_Projects_07),"",dms_E13_Projects_07) -> C426-157 - SDRS Integrity and Safety Replacement
B54: =IF(ISBLANK(dms_E13_Projects_08),"",dms_E13_Projects_08) -> 
B55: =IF(ISBLANK(dms_E13_Projects_09),"",dms_E13_Projects_09) -> 
B56: =IF(ISBLANK(dms_E13_Projects_10),"",dms_E13_Projects_10) -> 
B57: =IF(ISBLANK(dms_E13_Projects_11),"",dms_E13_Projects_11) -> 
B58: =IF(ISBLANK(dms_E13_Projects_12),"",dms_E13_Projects_12) -> 
B59: =IF(ISBLANK(dms_E13_Projects_13),"",dms_E13_Projects_13) -> 
B60: =IF(ISBLANK(dms_E13_Projects_14),"",dms_E13_Projects_14) -> 
B61: =IF(ISBLANK(dms_E13_Projects_15),"",dms_E13_Projects_15) -> 
B62: Aggregate of other projects with total expenditure of less than $500,000
B63: Total | C63: =SUM(C47:C62) -> 0 | D63: =SUM(D47:D62) -> 0 | E63: 0 | F63: 0 | G63: 0 | H63: 0 | I63: 0
B65: C. OTHER INTERNAL DIRECT EXPENDITURE
B66: =IF(ISBLANK(dms_E13_Projects_01),"",dms_E13_Projects_01) -> 10047363 - Installation of Contingency Valves
B67: =IF(ISBLANK(dms_E13_Projects_02),"",dms_E13_Projects_02) -> 10022570 - Flow Measurement at Fyshwick TRS
B68: =IF(ISBLANK(dms_E13_Projects_03),"",dms_E13_Projects_03) -> 10022721 - Watson Pressure Limiting Station
B69: =IF(ISBLANK(dms_E13_Projects_04),"",dms_E13_Projects_04) -> C425-81 - Flow Measurement at Phillip PRS
B70: =IF(ISBLANK(dms_E13_Projects_05),"",dms_E13_Projects_05) -> C425-82 - Flow Measurement at Gungahlin PRS
B71: =IF(ISBLANK(dms_E13_Projects_06),"",dms_E13_Projects_06) -> C462-156 - Hume Primary Main Extension (PME) Pigging Facilities
B72: =IF(ISBLANK(dms_E13_Projects_07),"",dms_E13_Projects_07) -> C426-157 - SDRS Integrity and Safety Replacement
B73: =IF(ISBLANK(dms_E13_Projects_08),"",dms_E13_Projects_08) -> 
B74: =IF(ISBLANK(dms_E13_Projects_09),"",dms_E13_Projects_09) -> 
B75: =IF(ISBLANK(dms_E13_Projects_10),"",dms_E13_Projects_10) -> 
B76: =IF(ISBLANK(dms_E13_Projects_11),"",dms_E13_Projects_11) -> 
B77: =IF(ISBLANK(dms_E13_Projects_12),"",dms_E13_Projects_12) -> 
B78: =IF(ISBLANK(dms_E13_Projects_13),"",dms_E13_Projects_13) -> 
B79: =IF(ISBLANK(dms_E13_Projects_14),"",dms_E13_Projects_14) -> 
B80: =IF(ISBLANK(dms_E13_Projects_15),"",dms_E13_Projects_15) -> 
B81: Aggregate of other projects with total expenditure of less than $500,000
B82: Total | C82: =SUM(C66:C81) -> 0 | D82: =SUM(D66:D81) -> 0 | E82: 0 | F82: 0 | G82: 0 | H82: 0 | I82: 0
B84: D. TOTAL OVERHEAD EXPENDITURE
B85: =IF(ISBLANK(dms_E13_Projects_01),"",dms_E13_Projects_01) -> 10047363 - Installation of Contingency Valves | C85: - | D85: 5191 | E85: 29859 | F85: - | G85: - | H85: - | I85: -
B86: =IF(ISBLANK(dms_E13_Projects_02),"",dms_E13_Projects_02) -> 10022570 - Flow Measurement at Fyshwick TRS | C86: - | D86: 372 | E86: 1082 | F86: 35515 | G86: - | H86: - | I86: -
B87: =IF(ISBLANK(dms_E13_Projects_03),"",dms_E13_Projects_03) -> 10022721 - Watson Pressure Limiting Station | C87: - | D87: - | E87: 9773 | F87: 146725 | G87: 23580 | H87: - | I87: -
B88: =IF(ISBLANK(dms_E13_Projects_04),"",dms_E13_Projects_04) -> C425-81 - Flow Measurement at Phillip PRS | C88: - | D88: 1078 | E88: 34773 | F88: 1012 | G88: - | H88: - | I88: -
B89: =IF(ISBLANK(dms_E13_Projects_05),"",dms_E13_Projects_05) -> C425-82 - Flow Measurement at Gungahlin PRS | C89: 1075 | D89: 34669 | E89: 1009 | F89: - | G89: - | H89: - | I89: -
B90: =IF(ISBLANK(dms_E13_Projects_06),"",dms_E13_Projects_06) -> C462-156 - Hume Primary Main Extension (PME) Pigging Facilities | C90: - | D90: - | E90: - | F90: 7138 | G90: 12207 | H90: 26194 | I90: -
B91: =IF(ISBLANK(dms_E13_Projects_07),"",dms_E13_Projects_07) -> C426-157 - SDRS Integrity and Safety Replacement | C91: - | D91: - | E91: - | F91: 7787 | G91: 18185 | H91: 47531 | I91: -
B92: =IF(ISBLANK(dms_E13_Projects_08),"",dms_E13_Projects_08) -> 
B93: =IF(ISBLANK(dms_E13_Projects_09),"",dms_E13_Projects_09) -> 
B94: =IF(ISBLANK(dms_E13_Projects_10),"",dms_E13_Projects_10) -> 
B95: =IF(ISBLANK(dms_E13_Projects_11),"",dms_E13_Projects_11) -> 
B96: =IF(ISBLANK(dms_E13_Projects_12),"",dms_E13_Projects_12) -> 
B97: =IF(ISBLANK(dms_E13_Projects_13),"",dms_E13_Projects_13) -> 
B98: =IF(ISBLANK(dms_E13_Projects_14),"",dms_E13_Projects_14) -> 
B99: =IF(ISBLANK(dms_E13_Projects_15),"",dms_E13_Projects_15) -> 
B100: Aggregate of other projects with total expenditure of less than $500,000 | C100: 11193 | D100: 24126 | E100: 31671 | F100: 10570 | G100: 12529 | H100: 13793 | I100: 10840
B101: Total | C101: =SUM(C85:C100) -> 12268 | D101: =SUM(D85:D100) -> 65436 | E101: 108167 | F101: 208747 | G101: 66501 | H101: 87518 | I101: 10840
B103: E. RELATED PARTY MARGIN EXPENDITURE
B104: =IF(ISBLANK(dms_E13_Projects_01),"",dms_E13_Projects_01) -> 10047363 - Installation of Contingency Valves
B105: =IF(ISBLANK(dms_E13_Projects_02),"",dms_E13_Projects_02) -> 10022570 - Flow Measurement at Fyshwick TRS
B106: =IF(ISBLANK(dms_E13_Projects_03),"",dms_E13_Projects_03) -> 10022721 - Watson Pressure Limiting Station
B107: =IF(ISBLANK(dms_E13_Projects_04),"",dms_E13_Projects_04) -> C425-81 - Flow Measurement at Phillip PRS
B108: =IF(ISBLANK(dms_E13_Projects_05),"",dms_E13_Projects_05) -> C425-82 - Flow Measurement at Gungahlin PRS
B109: =IF(ISBLANK(dms_E13_Projects_06),"",dms_E13_Projects_06) -> C462-156 - Hume Primary Main Extension (PME) Pigging Facilities
B110: =IF(ISBLANK(dms_E13_Projects_07),"",dms_E13_Projects_07) -> C426-157 - SDRS Integrity and Safety Replacement
B111: =IF(ISBLANK(dms_E13_Projects_08),"",dms_E13_Projects_08) -> 
B112: =IF(ISBLANK(dms_E13_Projects_09),"",dms_E13_Projects_09) -> 
B113: =IF(ISBLANK(dms_E13_Projects_10),"",dms_E13_Projects_10) -> 
B114: =IF(ISBLANK(dms_E13_Projects_11),"",dms_E13_Projects_11) -> 
B115: =IF(ISBLANK(dms_E13_Projects_12),"",dms_E13_Projects_12) -> 
B116: =IF(ISBLANK(dms_E13_Projects_13),"",dms_E13_Projects_13) -> 
B117: =IF(ISBLANK(dms_E13_Projects_14),"",dms_E13_Projects_14) -> 
B118: =IF(ISBLANK(dms_E13_Projects_15),"",dms_E13_Projects_15) -> 
B119: Aggregate of other projects with total expenditure of less than $500,000
B120: Total | C120: =SUM(C104:C119) -> 0 | D120: =SUM(D104:D119) -> 0 | E120: 0 | F120: 0 | G120: 0 | H120: 0 | I120: 0
B122: F. CAPITAL CONTRIBUTIONS included in the above
B123: =IF(ISBLANK(dms_E13_Projects_01),"",dms_E13_Projects_01) -> 10047363 - Installation of Contingency Valves
B124: =IF(ISBLANK(dms_E13_Projects_02),"",dms_E13_Projects_02) -> 10022570 - Flow Measurement at Fyshwick TRS
B125: =IF(ISBLANK(dms_E13_Projects_03),"",dms_E13_Projects_03) -> 10022721 - Watson Pressure Limiting Station
B126: =IF(ISBLANK(dms_E13_Projects_04),"",dms_E13_Projects_04) -> C425-81 - Flow Measurement at Phillip PRS
B127: =IF(ISBLANK(dms_E13_Projects_05),"",dms_E13_Projects_05) -> C425-82 - Flow Measurement at Gungahlin PRS
B128: =IF(ISBLANK(dms_E13_Projects_06),"",dms_E13_Projects_06) -> C462-156 - Hume Primary Main Extension (PME) Pigging Facilities
B129: =IF(ISBLANK(dms_E13_Projects_07),"",dms_E13_Projects_07) -> C426-157 - SDRS Integrity and Safety Replacement
B130: =IF(ISBLANK(dms_E13_Projects_08),"",dms_E13_Projects_08) -> 
B131: =IF(ISBLANK(dms_E13_Projects_09),"",dms_E13_Projects_09) -> 
B132: =IF(ISBLANK(dms_E13_Projects_10),"",dms_E13_Projects_10) -> 
B133: =IF(ISBLANK(dms_E13_Projects_11),"",dms_E13_Projects_11) -> 
B134: =IF(ISBLANK(dms_E13_Projects_12),"",dms_E13_Projects_12) -> 
B135: =IF(ISBLANK(dms_E13_Projects_13),"",dms_E13_Projects_13) -> 
B136: =IF(ISBLANK(dms_E13_Projects_14),"",dms_E13_Projects_14) -> 
B137: =IF(ISBLANK(dms_E13_Projects_15),"",dms_E13_Projects_15) -> 
B138: Aggregate of other projects with total expenditure of less than $500,000
B139: Total | C139: =SUM(C123:C138) -> 0 | D139: =SUM(D123:D138) -> 0 | E139: 0 | F139: 0 | G139: 0 | H139: 0 | I139: 0

Sheet E25. Escalators
B1: =INDEX(dms_Worksheet_List,MATCH(dms_Model,dms_Model_List)) -> REGULATORY REPORTING STATEMENT
B2: =INDEX(dms_TradingNameFull_List,MATCH(dms_TradingName,dms_TradingName_List)) -> Evoenergy Gas
B3: =dms_Header_Span -> 2019-20 - 2025-26
B4: E25. ESCALATORS
B6: E25.1 - FORECAST CAPEX AND OPEX PRICE CHANGES
C7: Price changes (% YoY real)
C8: =CRCP_y4 -> 2019-20 | D8: =CRCP_y5 -> 2020-21 | E8: =FRCP_y1 -> 2021-22 | F8: =FRCP_y2 -> 2022-23 | G8: =FRCP_y3 -> 2023-24 | H8: =FRCP_y4 -> 2024-25 | I8: =FRCP_y5 -> 2025-26
B9: E25.1.1 - OPEX
B10: Labour cost escalators - average of DAE and BIS as per opex model | E10: 0.007153327966 | F10: 0.007010245067 | G10: 0.009159030854 | H10: 0.009748876376 | I10: 0.008456429946
B16: E25.1.2 - CAPEX
B17: Labour cost escalators - average of DAE and BIS as per opex model | E17: =E10 -> 0.007153327966 | F17: =F10 -> 0.007010245067 | G17: 0.009159030854 | H17: 0.009748876376 | I17: 0.008456429946

Sheet E21. ARS
B1: =INDEX(dms_Worksheet_List,MATCH(dms_Model,dms_Model_List)) -> REGULATORY REPORTING STATEMENT
B2: =INDEX(dms_TradingNameFull_List,MATCH(dms_TradingName,dms_TradingName_List)) -> Evoenergy Gas
B3: =dms_Header_Span -> 2019-20 - 2025-26
B4: E21. ANCILLARY REFERENCE SERVICES
B6: E21.1 - VOLUMES
C7: VOLUME
C8: 0's
B9: Description | C9: =CRCP_y4 -> 2019-20 | D9: =CRCP_y5 -> 2020-21 | E9: =FRCP_y1 -> 2021-22 | F9: =FRCP_y2 -> 2022-23 | G9: =FRCP_y3 -> 2023-24 | H9: =FRCP_y4 -> 2024-25 | I9: =FRCP_y5 -> 2025-26
B10: Requests For Service | C10: 8 | D10: 8 | E10: 8 | F10: 8 | G10: 8 | H10: 8 | I10: 8
B11: Disconnection <25m3/hr | C11: 1057 | D11: 1289 | E11: 1323 | F11: 1358 | G11: 1393 | H11: 1428 | I11: 1464
B12: Disconnection >25m3/hr | C12: 39 | D12: 118 | E12: 119 | F12: 121 | G12: 122 | H12: 124 | I12: 125
B13: Reconnection <25m3/hr | C13: 607 | D13: 740 | E13: 759 | F13: 779 | G13: 800 | H13: 820 | I13: 840
B14: Reconnection >25m3/hr | C14: 22 | D14: 68 | E14: 68 | F14: 69 | G14: 70 | H14: 71 | I14: 72
B15: Decommissioning and meter removal <25m3/hr | C15: 289.26554 | D15: 388 | E15: 489 | F15: 593 | G15: 700 | H15: 810 | I15: 922
B16: Decommissioning and meter removal >25m3/hr | C16: 30.36886716 | D16: 41 | E16: 51 | F16: 62 | G16: 73 | H16: 84 | I16: 96
A17: Row added | B17: Special Meter Reads | C17: 31492 | D17: 32168 | E17: 32999 | F17: 33876 | G17: 34733 | H17: 35600 | I17: 36501
B18: Total | C18: =SUM(C10:C17) -> 33544.63441 | D18: =SUM(D10:D17) -> 34820 | E18: 35816 | F18: 36866 | G18: 37899 | H18: 38945 | I18: 40028
B20: E21.2 - omitted
B22: E21.3 - EXPENDITURE
C23: EXPENDITURE
C24: =CONCATENATE("$0's, real ",dms_DollarReal) -> $0's, real June 2021
C25: =CRCP_y4 -> 2019-20 | D25: =CRCP_y5 -> 2020-21 | E25: =FRCP_y1 -> 2021-22 | F25: =FRCP_y2 -> 2022-23 | G25: =FRCP_y3 -> 2023-24 | H25: =FRCP_y4 -> 2024-25 | I25: =FRCP_y5 -> 2025-26
B26: =IF(ISBLANK(B10),"",B10) -> Requests For Service | C26: 883 | D26: 905 | E26: 800 | F26: 819.1964659 | G26: 838.8535623 | H26: 858.9823421 | I26: 879.5941237
B27: =IF(ISBLANK(B11),"",B11) -> Disconnection <25m3/hr | C27: 103732 | D27: 129663 | E27: 171990 | F27: 180776.1801 | G27: 189884.9895 | H27: 199326.8525 | I27: 209255.442
B28: =IF(ISBLANK(B12),"",B12) -> Disconnection >25m3/hr | C28: 4759 | D28: 14760 | E28: 21420 | F28: 22302.62379 | G28: 23026.53028 | H28: 23965.60734 | I28: 24738.58473
B29: =IF(ISBLANK(B13),"",B13) -> Reconnection <25m3/hr | C29: 69897 | D29: 87342 | E29: 34155 | F29: 35896.16514 | G29: 37748.4103 | H29: 39620.56053 | I29: 41560.82234
B30: =IF(ISBLANK(B14),"",B14) -> Reconnection >25m3/hr | C30: 2873 | D30: 9101 | E30: 3740 | F30: 3886.063235 | G30: 4036.982768 | H30: 4192.907557 | I30: 4353.990912
B31: =IF(ISBLANK(B15),"",B15) -> Decommissioning and meter removal <25m3/hr | C31: 237978 | D31: 327487 | E31: 327630 | F31: 406843.6849 | G31: 491777.9009 | H31: 582712.1463 | I31: 679200.5925
B32: Decommissioning and meter removal >25m3/hr | C32: 42971 | D32: 60195 | E32: 62730 | F32: 78089.90312 | G32: 94150.8267 | H32: 110937.5695 | I32: 129828.0927
B33: Special Meter Reads | C33: 298530 | D33: 312561 | E33: 329990 | F33: 346888.7435 | G33: 364198.7597 | H33: 382247.1422 | I33: 401325.8139
B34: Total | C34: =SUM(C26:C33) -> 761623 | D34: 942014 | E34: 952455 | F34: 1075502.56 | G34: 1205663.254 | H34: 1343861.768 | I34: 1491142.933

Sheet N1. Demand
B1: =INDEX(dms_Worksheet_List,MATCH(dms_Model,dms_Model_List)) -> REGULATORY REPORTING STATEMENT
B2: =INDEX(dms_TradingNameFull_List,MATCH(dms_TradingName,dms_TradingName_List)) -> Evoenergy Gas
B3: =dms_Header_Span -> 2019-20 - 2025-26
B4: N1. DEMAND
B6: N1.1 - DEMAND - BY CUSTOMER TYPE
C7: VOLUME
C8: GJ
C9: =CRCP_y4 -> 2019-20 | D9: =CRCP_y5 -> 2020-21 | E9: =FRCP_y1 -> 2021-22 | F9: =FRCP_y2 -> 2022-23 | G9: =FRCP_y3 -> 2023-24 | H9: =FRCP_y4 -> 2024-25 | I9: =FRCP_y5 -> 2025-26
B10: Residential | C10: 4914499.32 | D10: 4802986.095 | E10: 4726259.623 | F10: 4594247.454 | G10: 4471356.64 | H10: 4364387.954 | I10: 4234430.785
B11: Commercial | C11: 1573523.211 | D11: 1545858.867 | E11: 1529602.98 | F11: 1497370.002 | G11: 1464486.146 | H11: 1432459.124 | I11: 1391506.461
B12: Industrial | C12: 1243826.915 | D12: 1238963.388 | E12: 1238471.11 | F12: 1237978.833 | G12: 1237486.555 | H12: 1236994.277 | I12: 1236502
B13: Total | C13: =SUM(C10:C12) -> 7731849.446 | D13: 7587808.35 | E13: 7494333.713 | F13: 7329596.289 | G13: 7173329.342 | H13: 7033841.355 | I13: 6862439.245
B17: N1.2 - DEMAND - BY TARIFF
C18: VOLUMES
C19: GJ
B20: Tariff | C20: =CRCP_y4 -> 2019-20 | D20: =CRCP_y5 -> 2020-21 | E20: =FRCP_y1 -> 2021-22 | F20: =FRCP_y2 -> 2022-23 | G20: =FRCP_y3 -> 2023-24 | H20: =FRCP_y4 -> 2024-25 | I20: =FRCP_y5 -> 2025-26
B21: Volume Individual | C21: 6459320.13 | D21: 6318382.63 | E21: 6246756.176 | F21: 6080861.914 | G21: 5923456.644 | H21: 5782836.21 | I21: 5610417.957
B22: Volume Residential Heating | C22: 0 | D22: 0 | E22: 0 | F22: 0 | G22: 0 | H22: 0 | I22: 0
B23: Volume Boundary | C23: 5578.190375 | D23: 7338.120951 | E23: 9106.425812 | F23: 10755.54202 | G23: 12386.14249 | H23: 14010.86784 | I23: 15519.28845
B24: Volume Residential Large Scale Generation | C24: 0 | D24: 0 | E24: 0 | F24: 0 | G24: 0 | H24: 0 | I24: 0
B25: Volume Business Small
B26: Volume Business Medium
B27: Demand Capacity | C27: 1204460.293 | D27: 1199596.766 | E27: 1199104.488 | F27: 1198612.211 | G27: 1198119.933 | H27: 1197627.655 | I27: 1197135.378
B28: Demand Throughput
B29: Demand Large Scale Generation | C29: 0 | D29: 0 | E29: 0 | F29: 0 | G29: 0 | H29: 0 | I29: 0
B96: Total | C96: =SUM(C21:C95) -> 7669358.613 | D96: 7525317.517 | E96: 7454967.091 | F96: 7290229.667 | G96: 7133962.72 | H96: 6994474.733 | I96: 6823072.623

Sheet N2. Network characteristics
B1: =INDEX(dms_Worksheet_List,MATCH(dms_Model,dms_Model_List)) -> REGULATORY REPORTING STATEMENT
B2: =INDEX(dms_TradingNameFull_List,MATCH(dms_TradingName,dms_TradingName_List)) -> Evoenergy Gas
B3: =dms_Header_Span -> 2019-20 - 2025-26
B4: N2. NETWORK CHARACTERISTICS
B6: N2.1 - NETWORK LENGTH - BY PRESSURE AND ASSET TYPE
D7: LENGTH
D8: KM
D9: =CRCP_y4 -> 2019-20 | E9: =CRCP_y5 -> 2020-21 | F9: =FRCP_y1 -> 2021-22 | G9: =FRCP_y2 -> 2022-23 | H9: =FRCP_y3 -> 2023-24 | I9: =FRCP_y4 -> 2024-25 | J9: =FRCP_y5 -> 2025-26
B10: N2.1.1 - LOW PRESSURE
C11: Cast Iron | D11: 0 | E11: 0 | F11: 0 | G11: 0 | H11: 0 | I11: 0 | J11: 0
C12: PVC | D12: 0 | E12: 0 | F12: 0 | G12: 0 | H12: 0 | I12: 0 | J12: 0
C13: Polyamide | D13: 0 | E13: 0 | F13: 0 | G13: 0 | H13: 0 | I13: 0 | J13: 0
C14: High density polyethylene (80) | D14: 0 | E14: 0 | F14: 0 | G14: 0 | H14: 0 | I14: 0 | J14: 0
C15: High density polyethylene (100) | D15: 0 | E15: 0 | F15: 0 | G15: 0 | H15: 0 | I15: 0 | J15: 0
C16: High density polyethylene (250) | D16: 0 | E16: 0 | F16: 0 | G16: 0 | H16: 0 | I16: 0 | J16: 0
C17: High density polyethylene (575) | D17: 0 | E17: 0 | F17: 0 | G17: 0 | H17: 0 | I17: 0 | J17: 0
C18: Medium density polyethylene | D18: 0 | E18: 0 | F18: 0 | G18: 0 | H18: 0 | I18: 0 | J18: 0
C19: Other polyethylene | D19: 0 | E19: 0 | F19: 0 | G19: 0 | H19: 0 | I19: 0 | J19: 0
C20: Unprotected steel | D20: 0 | E20: 0 | F20: 0 | G20: 0 | H20: 0 | I20: 0 | J20: 0
C21: Protected steel | D21: 0 | E21: 0 | F21: 0 | G21: 0 | H21: 0 | I21: 0 | J21: 0
C22: Other | D22: 0 | E22: 0 | F22: 0 | G22: 0 | H22: 0 | I22: 0 | J22: 0
B23: N2.1.2 - MEDIUM PRESSURE
C24: Cast Iron | D24: 0 | E24: 0 | F24: 0 | G24: 0 | H24: 0 | I24: 0 | J24: 0
C25: PVC | D25: 0 | E25: 0 | F25: 0 | G25: 0 | H25: 0 | I25: 0 | J25: 0
C26: Polyamide | D26: 3009.468362 | E26: 3032.404154 | F26: 3045.184244 | G26: 3057.982928 | H26: 3070.665233 | I26: 3083.789626 | J26: 3097.208119
C27: High density polyethylene (80) | D27: 1313.513745 | E27: 1323.327903 | F27: 1328.905078 | G27: 1334.490368 | H27: 1340.024871 | I27: 1345.752298 | J27: 1351.60807
C28: High density polyethylene (100) | D28: 0 | E28: 0 | F28: 0 | G28: 0 | H28: 0 | I28: 0 | J28: 0
C29: High density polyethylene (250) | D29: 0 | E29: 0 | F29: 0 | G29: 0 | H29: 0 | I29: 0 | J29: 0
C30: High density polyethylene (575) | D30: 0 | E30: 0 | F30: 0 | G30: 0 | H30: 0 | I30: 0 | J30: 0
C31: Medium density polyethylene | D31: 0 | E31: 0 | F31: 0 | G31: 0 | H31: 0 | I31: 0 | J31: 0
C32: Other polyethylene | D32: 0 | E32: 0 | F32: 0 | G32: 0 | H32: 0 | I32: 0 | J32: 0
C33: Unprotected steel | D33: 0 | E33: 0 | F33: 0 | G33: 0 | H33: 0 | I33: 0 | J33: 0
C34: Protected steel | D34: 0.28363161 | E34: 0.2857508154 | F34: 0.2869551143 | G34: 0.2881611654 | H34: 0.2893562499 | I34: 0.2905929933 | J34: 0.2918574505
C35: Other | D35: 0.0848131563 | E35: 0.08544685329 | F35: 0.08580696968 | G35: 0.08616761003 | H35: 0.08652497106 | I35: 0.08689478921 | J35: 0.08727289447
B36: N2.1.3 - HIGH PRESSURE
C37: Cast Iron | D37: 0 | E37: 0 | F37: 0 | G37: 0 | H37: 0 | I37: 0 | J37: 0
C38: PVC | D38: 0 | E38: 0 | F38: 0 | G38: 0 | H38: 0 | I38: 0 | J38: 0
C39: Polyamide | D39: 0 | E39: 0 | F39: 0 | G39: 0 | H39: 0 | I39: 0 | J39: 0
C40: High density polyethylene (80) | D40: 0.04712723604 | E40: 0.0474793558 | F40: 0.04767945789 | G40: 0.04787985112 | H40: 0.04807842218 | I40: 0.04828391514 | J40: 0.04849401292
C41: High density polyethylene (100) | D41: 0 | E41: 0 | F41: 0 | G41: 0 | H41: 0 | I41: 0 | J41: 0
C42: High density polyethylene (250) | D42: 0 | E42: 0 | F42: 0 | G42: 0 | H42: 0 | I42: 0 | J42: 0
C43: High density polyethylene (575) | D43: 0 | E43: 0 | F43: 0 | G43: 0 | H43: 0 | I43: 0 | J43: 0
C44: Medium density polyethylene | D44: 0 | E44: 0 | F44: 0 | G44: 0 | H44: 0 | I44: 0 | J44: 0
C45: Other polyethylene | D45: 0 | E45: 0 | F45: 0 | G45: 0 | H45: 0 | I45: 0 | J45: 0
C46: Unprotected steel | D46: 0 | E46: 0 | F46: 0 | G46: 0 | H46: 0 | I46: 0 | J46: 0
C47: Protected steel | D47: 223.4541205 | E47: 226.6236988 | F47: 227.578806 | G47: 228.5353029 | H47: 229.4831023 | I47: 230.4639407 | J47: 231.4667584
C48: Other | D48: 0 | E48: 0 | F48: 0 | G48: 0 | H48: 0 | I48: 0 | J48: 0
B49: N2.1.4 - TRANSMISSION
C50: Protected steel | D50: 53.47545809 | E50: 53.87500974 | F50: 54.10206637 | G50: 54.32945335 | H50: 54.55477269 | I50: 54.78794636 | J50: 55.02634513
C51: Other | D51: 0 | E51: 0 | F51: 0 | G51: 0 | H51: 0 | I51: 0 | J51: 0
C52: Total | D52: =SUM(D11:D51) -> 4600.327257 | E52: 4636.649443 | F52: 4656.190636 | G52: 4675.760261 | H52: 4695.151938 | I52: 4715.219583 | J52: 4735.736916
B56: N2.2 - CITY GATES / REGULATORS
D57: VOLUMES
D58: 0's
D59: =CRCP_y4 -> 2019-20 | E59: =CRCP_y5 -> 2020-21 | F59: =FRCP_y1 -> 2021-22 | G59: =FRCP_y2 -> 2022-23 | H59: =FRCP_y3 -> 2023-24 | I59: =FRCP_y4 -> 2024-25 | J59: =FRCP_y5 -> 2025-26
C60: City Gate | D60: 1 | E60: 1 | F60: 1 | G60: 1 | H60: 1 | I60: 1 | J60: 1
C61: Field Regulator | D61: 6 | E61: 6 | F61: 6 | G61: 7 | H61: 7 | I61: 7 | J61: 7
C62: District Regulator | D62: 95 | E62: 95 | F62: 95 | G62: 95 | H62: 95 | I62: 95 | J62: 95
C63: Total | D63: =SUM(D60:D62) -> 102 | E63: =SUM(E60:E62) -> 102 | F63: =SUM(F60:F62) -> 102 | G63: =SUM(G60:G62) -> 103 | H63: 103 | I63: 103 | J63: 103
B66: N2.5 - NETWORK LENGTH - BY POST CODE
D67: VOLUMES
D68: Metres, 0's
B69: Post Code | C69: Asset Type (drop down) | D69: =CRCP_y4 -> 2019-20 | E69: =CRCP_y5 -> 2020-21 | F69: =FRCP_y1 -> 2021-22 | G69: =FRCP_y2 -> 2022-23 | H69: =FRCP_y3 -> 2023-24 | I69: =FRCP_y4 -> 2024-25 | J69: =FRCP_y5 -> 2025-26
B70: 2600 | C70: High density polyethylene (80) | D70: 71821.62188 | E70: 72358.25025 | F70: 72663.20463 | G70: 72968.6027 | H70: 73271.22378 | I70: 73584.39382 | J70: 73904.58156
B71: 2601 | C71: High density polyethylene (80) | D71: 11281.0143 | E71: 11365.30246 | F71: 11413.20161 | G71: 11461.17045 | H71: 11508.70311 | I71: 11557.8927 | J71: 11608.18455
B72: 2602 | C72: High density polyethylene (80) | D72: 133093.9342 | E72: 134088.3698 | F72: 134653.4863 | G72: 135219.4249 | H72: 135780.2174 | I72: 136360.5584 | J72: 136953.9041
B73: 2603 | C73: High density polyethylene (80) | D73: 73878.28503 | E73: 74430.28014 | F73: 74743.9671 | G73: 75058.11046 | H73: 75369.39731 | I73: 75691.53519 | J73: 76020.89174
B74: 2604 | C74: High density polyethylene (80) | D74: 19626.65514 | E74: 19773.29928 | F74: 19856.63399 | G74: 19940.08996 | H74: 20022.78705 | I74: 20108.36686 | J74: 20195.86439
B75: 2605 | C75: High density polyethylene (80) | D75: 59443.40159 | E75: 59887.54382 | F75: 60139.94032 | G75: 60392.70404 | H75: 60643.16937 | I75: 60902.36558 | J75: 61167.37002
B76: 2606 | C76: High density polyethylene (80) | D76: 9003.639237 | E76: 9070.911572 | F76: 9109.140996 | G76: 9147.426041 | H76: 9185.36296 | I76: 9224.622308 | J76: 9264.761403
B77: 2607 | C77: High density polyethylene (80) | D77: 69222.51065 | E77: 69739.71929 | F77: 70033.63785 | G77: 70327.98404 | H77: 70619.65374 | I77: 70921.49065 | J77: 71230.0913
B78: 2609 | C78: High density polyethylene (80) | D78: 8845.466814 | E78: 8911.557336 | F78: 8949.115159 | G78: 8986.727628 | H78: 9023.998086 | I78: 9062.567741 | J78: 9102.001688
B79: 2611 | C79: High density polyethylene (80) | D79: 169518.3722 | E79: 170784.9597 | F79: 171504.7341 | G79: 172225.5559 | H79: 172939.8231 | I79: 173678.9887 | J79: 174434.7181
B80: 2612 | C80: High density polyethylene (80) | D80: 66541.7441 | E80: 67038.9229 | F80: 67321.45894 | G80: 67604.40605 | H80: 67884.78031 | I80: 68174.92804 | J80: 68471.57757
B81: 2614 | C81: High density polyethylene (80) | D81: 125042.1354 | E81: 125976.4105 | F81: 126507.339 | G81: 127039.04 | H81: 127565.9062 | I81: 128111.1383 | J81: 128668.5882
B82: 2615 | C82: High density polyethylene (80) | D82: 174547.8525 | E82: 176302.0187 | F82: 177045.0448 | G82: 177789.1521 | H82: 178526.4931 | I82: 179289.5368 | J82: 180069.6793
B83: 2617 | C83: High density polyethylene (80) | D83: 38928.76146 | E83: 39219.62481 | F83: 39384.91621 | G83: 39550.4481 | H83: 39714.4748 | I83: 39884.21925 | J83: 40057.76743
B84: 2619 | C84: High density polyethylene (80) | D84: 1615.897117 | E84: 1627.970588 | F84: 1634.831682 | G84: 1641.702758 | H84: 1648.511356 | I84: 1655.557292 | J84: 1662.761118
B85: 2620 | C85: High density polyethylene (80) | D85: 34693.32381 | E85: 34952.54132 | F85: 35099.84906 | G85: 35247.37113 | H85: 35393.55177 | I85: 35544.82808 | J85: 35699.49427
B86: 2621 | C86: High density polyethylene (80) | D86: 34253.19759 | E86: 34509.12662 | F86: 34654.56558 | G86: 34800.21616 | H86: 34944.54233 | I86: 35093.89951 | J86: 35246.60358
B87: 2900 | C87: High density polyethylene (80) | D87: 5262.790746 | E87: 5302.112648 | F87: 5324.458441 | G87: 5346.836746 | H87: 5369.011564 | I87: 5391.959366 | J87: 5415.421397
B88: 2902 | C88: High density polyethylene (80) | D88: 58080.95678 | E88: 58514.91926 | F88: 58761.53082 | G88: 59008.50118 | H88: 59253.22584 | I88: 59506.48126 | J88: 59765.41179
B89: 2903 | C89: High density polyethylene (80) | D89: 7139.529889 | E89: 7192.874191 | F89: 7223.188612 | G89: 7253.547139 | H89: 7283.629615 | I89: 7314.760725 | J89: 7346.589441
B90: 2904 | C90: High density polyethylene (80) | D90: 29171.2647 | E90: 29389.22314 | F90: 29513.08424 | G90: 29637.12555 | H90: 29760.03894 | I90: 29887.23693 | J90: 30017.28526
B91: 2905 | C91: High density polyethylene (80) | D91: 45472.63061 | E91: 45812.38768 | F91: 46005.46432 | G91: 46198.82188 | H91: 46390.42124 | I91: 46588.69949 | J91: 46791.42088
B92: 2906 | C92: High density polyethylene (80) | D92: 2772.813071 | E92: 2793.530651 | F92: 2805.304006 | G92: 2817.094491 | H92: 2828.777765 | I92: 2840.868302 | J92: 2853.229771
B93: 2911 | C93: High density polyethylene (80) | D93: 5808.550924 | E93: 5851.950573 | F93: 5876.613662 | G93: 5901.312634 | H93: 5925.787018 | I93: 5951.114546 | J93: 5977.009628
B94: 2912 | C94: High density polyethylene (80) | D94: 4489.823233 | E94: 4523.369768 | F94: 4542.433543 | G94: 4561.525055 | H94: 4580.442967 | I94: 4600.020332 | J94: 4620.036399
B95: 2913 | C95: High density polyethylene (80) | D95: 31601.11627 | E95: 31837.22978 | F95: 31971.40802 | G95: 32105.78148 | H95: 32238.93308 | I95: 32376.72617 | J95: 32517.607
B96: 2914 | C96: High density polyethylene (80) | D96: 23603.5833 | E96: 23779.94179 | F96: 23880.16253 | G96: 23980.52908 | H96: 24079.983 | I96: 24182.90375 | J96: 24288.13081
B97: 2601 | C97: Other | D97: 0.5053254349 | E97: 0.5091010662 | F97: 0.5112466764 | G97: 0.5133954083 | H97: 0.5155246018 | I97: 0.517728016 | J97: 0.5199808057
B98: 2602 | C98: Other | D98: 20.56736847 | E98: 20.72104133 | F98: 20.80837031 | G98: 20.89582635 | H98: 20.98248715 | I98: 21.07216883 | J98: 21.16386014
B99: 2612 | C99: Other | D99: 42.46866101 | E99: 42.78597337 | F99: 42.96629516 | G99: 43.14687932 | H99: 43.32582143 | I99: 43.51100121 | J99: 43.70033061
B100: 2620 | C100: Other | D100: 21.27180138 | E100: 21.43073754 | F100: 21.52105754 | G100: 21.61150895 | H100: 21.70113788 | I100: 21.79389116 | J100: 21.88872291
B101: 2600 | C101: Polyamide | D101: 14931.29111 | E101: 15042.85297 | F101: 15106.25119 | G101: 15169.74165 | H101: 15232.65478 | I101: 15297.76098 | J101: 15364.32612
B102: 2601 | C102: Polyamide | D102: 6132.002589 | E102: 6177.818967 | F102: 6203.85543 | G102: 6229.929776 | H102: 6255.767026 | I102: 6282.504928 | J102: 6309.841989
B103: 2602 | C103: Polyamide | D103: 146689.9104 | E103: 147785.9308 | F103: 148408.7757 | G103: 149032.5268 | H103: 149650.6061 | I103: 150290.2309 | J103: 150944.1887
B104: 2603 | C104: Polyamide | D104: 25103.35917 | E104: 25290.92351 | F104: 25397.51229 | G104: 25504.25616 | H104: 25610.0294 | I104: 25719.48975 | J104: 25831.40295
B105: 2604 | C105: Polyamide | D105: 49032.70509 | E105: 49399.0619 | F105: 49607.25461 | G105: 49815.75023 | H105: 50022.34999 | I105: 50236.15154 | J105: 50454.74409
B106: 2605 | C106: Polyamide | D106: 53698.58815 | E106: 54099.80696 | F106: 54327.811 | G106: 54556.14677 | H106: 54782.40627 | I106: 55016.55288 | J106: 55255.94638
B107: 2606 | C107: Polyamide | D107: 68915.96596 | E107: 69430.8842 | F107: 69723.50117 | G107: 70016.54388 | H107: 70306.92195 | I107: 70607.42221 | J107: 70914.65625
B108: 2607 | C108: Polyamide | D108: 68878.16878 | E108: 69392.8046 | F108: 69685.26109 | G108: 69978.14308 | H108: 70268.3619 | I108: 70568.69734 | J108: 70875.76288
B109: 2609 | C109: Polyamide | D109: 24502.77298 | E109: 24685.84992 | F109: 24789.88862 | G109: 24894.07868 | H109: 24997.32135 | I109: 25104.16291 | J109: 25213.39864
B110: 2611 | C110: Polyamide | D110: 162803.0922 | E110: 164019.5053 | F110: 164710.7667 | G110: 165403.0338 | H110: 166089.0062 | I110: 166798.8906 | J110: 167524.6826
B111: 2612 | C111: Polyamide | D111: 25576.64365 | E111: 25767.74422 | F111: 25876.34257 | G111: 25985.09892 | H111: 26092.86635 | I111: 26204.3904 | J111: 26318.41355
B112: 2614 | C112: Polyamide | D112: 66802.52006 | E112: 67301.64729 | F112: 67585.29058 | G112: 67869.34655 | H112: 68150.8196 | I112: 68442.10441 | J112: 68739.91651
B113: 2615 | C113: Polyamide | D113: 288978.3028 | E113: 291137.457 | F113: 292364.4579 | G113: 293593.2441 | H113: 294810.8569 | I113: 296070.914 | J113: 297359.2073
B114: 2617 | C114: Polyamide | D114: 235228.5798 | E114: 236986.1331 | F114: 237984.9129 | G114: 238985.1459 | H114: 239976.2837 | I114: 241001.9713 | J114: 242050.643
B115: 2618 | C115: Polyamide | D115: 5744.030483 | E115: 5786.948056 | F115: 5811.337191 | G115: 5835.761811 | H115: 5859.964338 | I115: 5885.010531 | J115: 5910.617975
B116: 2619 | C116: Polyamide | D116: 94126.63213 | E116: 94829.91646 | F116: 95229.57784 | G116: 95629.82071 | H116: 96026.42415 | I116: 96436.85266 | J116: 96856.47829
B117: 2620 | C117: Polyamide | D117: 287435.161 | E117: 289582.7854 | F117: 290803.2341 | G117: 292025.4586 | H117: 293236.5694 | I117: 294489.8978 | J117: 295771.3115
B118: 2621 | C118: Polyamide | D118: 26993.77291 | E118: 27195.46181 | F118: 27310.07729 | G118: 27424.85952 | H118: 27538.59804 | I118: 27656.30132 | J118: 27776.64217
B119: 2900 | C119: Polyamide | D119: 17050.90988 | E119: 17178.30887 | F119: 17250.70697 | G119: 17323.21042 | H119: 17395.05459 | I119: 17469.40315 | J119: 17545.41775
B120: 2902 | C120: Polyamide | D120: 114121.0421 | E120: 114973.7183 | F120: 115458.2759 | G120: 115943.5385 | H120: 116424.3885 | I120: 116922.0004 | J120: 117430.763
B121: 2903 | C121: Polyamide | D121: 98653.66641 | E121: 99390.7753 | F121: 99809.65845 | G121: 100229.1511 | H121: 100644.8292 | I121: 101074.9973 | J121: 101514.8049
B122: 2904 | C122: Polyamide | D122: 108245.7449 | E122: 109054.5227 | F122: 109514.1338 | G122: 109974.4136 | H122: 110430.5081 | I122: 110902.5014 | J122: 111385.0714
B123: 2905 | C123: Polyamide | D123: 242143.8929 | E123: 243953.1153 | F123: 244981.2575 | G123: 246010.8956 | H123: 247031.1711 | I123: 248087.0121 | J123: 249166.513
B124: 2906 | C124: Polyamide | D124: 166855.627 | E124: 168102.3193 | F124: 168810.7878 | G124: 169520.287 | H124: 170223.3348 | I124: 170950.8898 | J124: 171694.7484
B125: 2911 | C125: Polyamide | D125: 36983.5949 | E125: 37259.92459 | F125: 37416.95681 | G125: 37574.21751 | H125: 37730.04824 | I125: 37891.31101 | J125: 38056.18745
B126: 2912 | C126: Polyamide | D126: 45529.34029 | E126: 45869.52107 | F126: 46062.83851 | G126: 46256.43721 | H126: 46448.27551 | I126: 46646.80104 | J126: 46849.77524
B127: 2913 | C127: Polyamide | D127: 295393.6927 | E127: 297600.7806 | F127: 298855.0213 | G127: 300111.0869 | H127: 301355.731 | I127: 302643.7617 | J127: 303960.6553
B128: 2914 | C128: Polyamide | D128: 231717.3513 | E128: 233448.6699 | F128: 234432.541 | G128: 235417.8436 | H128: 236394.1869 | I128: 237404.5641 | J128: 238437.5825
B129: 2602 | C129: Protected steel | D129: 12158.29036 | E129: 12249.13325 | F129: 12300.75731 | G129: 12352.45648 | H129: 12403.68556 | I129: 12456.7004 | J129: 12510.90324
B130: 2606 | C130: Protected steel | D130: 12353.8462 | E130: 12446.15022 | F130: 12498.60461 | G130: 12551.13532 | H130: 12603.18837 | I130: 12657.05592 | J130: 12712.13056
B131: 2609 | C131: Protected steel | D131: 26924.71643 | E131: 27125.88937 | F131: 27240.21163 | G131: 27354.70022 | H131: 27468.14777 | I131: 27585.54994 | J131: 27705.58293
B132: 2615 | C132: Protected steel | D132: 15316.15579 | E132: 15430.59325 | F132: 15495.62559 | G132: 15560.75256 | H132: 15625.28733 | I132: 15692.07169 | J132: 15760.35259
B133: 2617 | C133: Protected steel | D133: 20280.77562 | E133: 20432.30714 | F133: 20518.41925 | G133: 20604.65664 | H133: 20690.10988 | I133: 20778.5419 | J133: 20868.95556
B134: 2620 | C134: Protected steel | D134: 52496.29798 | E134: 52888.53367 | F134: 53111.43278 | G134: 53334.6562 | H134: 53555.84985 | I134: 53784.754 | J134: 54018.78758
B135: 2903 | C135: Protected steel | D135: 6333.672828 | E135: 6380.996021 | F135: 6407.888776 | G135: 6434.820658 | H135: 6461.507648 | I135: 6489.12491 | J135: 6517.361037
B136: 2600 | C136: Protected steel | D136: 20702.14459 | E136: 20856.82445 | F136: 20944.72569 | G136: 21032.75482 | H136: 21119.9835 | I136: 21210.25286 | J136: 21302.54502
B137: 2601 | C137: Protected steel | D137: 10423.19111 | E137: 10501.06989 | F137: 10545.32673 | G137: 10589.64795 | H137: 10633.56617 | I137: 10679.01531 | J137: 10725.48291
B138: 2603 | C138: Protected steel | D138: 4662.969522 | E138: 4697.80975 | F138: 4717.608704 | G138: 4737.436464 | H138: 4757.08393 | I138: 4777.41628 | J138: 4798.204249
B139: 2604 | C139: Protected steel | D139: 7435.119682 | E139: 7490.672538 | F139: 7522.242032 | G139: 7553.857459 | H139: 7585.185405 | I139: 7617.605401 | J139: 7650.751885
B140: 2605 | C140: Protected steel | D140: 3767.033017 | E140: 3795.179093 | F140: 3811.173903 | G140: 3827.191985 | H140: 3843.064414 | I140: 3859.490134 | J140: 3876.283932
B141: 2607 | C141: Protected steel | D141: 2852.315456 | E141: 2873.627052 | F141: 2885.737975 | G141: 2897.866518 | H141: 2909.884776 | I141: 2922.321974 | J141: 2935.037872
B142: 2611 | C142: Protected steel | D142: 12102.52186 | E142: 12192.94806 | F142: 12244.33533 | G142: 12295.79737 | H142: 12346.79146 | I142: 12399.56313 | J142: 12453.51735
B143: 2612 | C143: Protected steel | D143: 9437.642386 | E143: 9508.157455 | F143: 9548.229655 | G143: 9588.360157 | H143: 9628.125752 | I143: 9669.277521 | J143: 9711.351445
B144: 2614 | C144: Protected steel | D144: 5421.916623 | E144: 5462.427464 | F144: 5485.448904 | G144: 5508.50384 | H144: 5531.349137 | I144: 5554.990789 | J144: 5579.162218
B145: 2615 | C145: Protected steel | D145: 0 | E145: 1500 | F145: 1506.321761 | G145: 1512.65272 | H145: 1518.926111 | I145: 1525.418184 | J145: 1532.055736
B146: 2619 | C146: Protected steel | D146: 4308.455146 | E146: 4340.646556 | F146: 4358.940243 | G146: 4377.260546 | H146: 4395.414262 | I146: 4414.200792 | J146: 4433.408302
B147: 2621 | C147: Protected steel | D147: 4692.674557 | E147: 4727.736732 | F147: 4747.661814 | G147: 4767.615885 | H147: 4787.388513 | I147: 4807.850388 | J147: 4828.770786
B148: 2900 | C148: Protected steel | D148: 5832.92391 | E148: 5876.505667 | F148: 5901.272243 | G148: 5926.074854 | H148: 5950.651934 | I148: 5976.085737 | J148: 6002.089476
B149: 2902 | C149: Protected steel | D149: 5122.171991 | E149: 5160.443235 | F149: 5182.191961 | G149: 5203.97233 | H149: 5225.55465 | I149: 5247.8893 | J149: 5270.724439
B150: 2904 | C150: Protected steel | D150: 4246.969569 | E150: 4278.701578 | F150: 4296.734197 | G150: 4314.793053 | H150: 4332.687699 | I150: 4351.206128 | J150: 4370.13953
B151: 2905 | C151: Protected steel | D151: 5762.451672 | E151: 5805.506883 | F151: 5829.974234 | G151: 5854.477184 | H151: 5878.757329 | I151: 5903.883846 | J151: 5929.573413
B152: 2906 | C152: Protected steel | D152: 4328.178009 | E152: 4360.516782 | F152: 4378.894212 | G152: 4397.29838 | H152: 4415.535199 | I152: 4434.407728 | J152: 4453.703165
B153: 2911 | C153: Protected steel | D153: 4861.246457 | E153: 4897.568148 | F153: 4918.208985 | G153: 4938.879853 | H153: 4959.362761 | I153: 4980.559675 | J153: 5002.231582
B154: 2912 | C154: Protected steel | D154: 6847.611891 | E154: 6898.775074 | F154: 6927.850013 | G154: 6956.967254 | H154: 6985.819731 | I154: 7015.677966 | J154: 7046.205282
B155: 2913 | C155: Protected steel | D155: 6312.849317 | E155: 6360.016924 | F155: 6386.821262 | G155: 6413.664599 | H155: 6440.263849 | I155: 6467.790312 | J155: 6495.933606
B156: 2914 | C156: Protected steel | D156: 2229.068179 | E156: 2245.723069 | F156: 2255.187685 | G156: 2264.666072 | H156: 2274.058272 | I156: 2283.777871 | J156: 2293.715273

Sheet S1.1 Customer numbers
B1: =INDEX(dms_Worksheet_List,MATCH(dms_Model,dms_Model_List)) -> REGULATORY REPORTING STATEMENT
B2: =INDEX(dms_TradingNameFull_List,MATCH(dms_TradingName,dms_TradingName_List)) -> Evoenergy Gas
B3: =dms_Header_Span -> 2019-20 - 2025-26
B4: S1. CUSTOMER NUMBERS
B6: S1.1 - CUSTOMER NUMBERS - BY CUSTOMER TYPE
B7: A. RESIDENTIAL
C8: VOLUMES
C9: 0's
C10: =CRCP_y4 -> 2019-20 | D10: =CRCP_y5 -> 2020-21 | E10: =FRCP_y1 -> 2021-22 | F10: =FRCP_y2 -> 2022-23 | G10: =FRCP_y3 -> 2023-24 | H10: =FRCP_y4 -> 2024-25 | I10: =FRCP_y5 -> 2025-26
B11: Customer numbers as at 1 July | C11: 149456.8823 | D11: 153093.8752 | E11: 156660.5889 | F11: 158043.1771 | G11: 159364.5186 | H11: 160501.1482 | I11: 161594.9729
B12: Customer numbers as at 30 June | C12: 153093.8752 | D12: 156660.5889 | E12: 158043.1771 | F12: 159364.5186 | G12: 160501.1482 | H12: 161594.9729 | I12: 162651.1427
B13: Total customer connections | C13: 3926.2584 | D13: 3954.70179 | E13: 1871.769364 | F13: 1914.113966 | G13: 1836.227962 | H13: 1903.355074 | I13: 1978.032363
B14: Total customer disconnections | C14: 289.26554 | D14: 387.9880798 | E14: 489.1811615 | F14: 592.7724886 | G14: 699.598309 | H14: 809.5304057 | I14: 921.8625811
B17: B. COMMERCIAL
C18: VOLUMES
C19: 0's
C20: =CRCP_y4 -> 2019-20 | D20: =CRCP_y5 -> 2020-21 | E20: =FRCP_y1 -> 2021-22 | F20: =FRCP_y2 -> 2022-23 | G20: =FRCP_y3 -> 2023-24 | H20: =FRCP_y4 -> 2024-25 | I20: =FRCP_y5 -> 2025-26
B21: Customer numbers as at 1 July | C21: 3051.562106 | D21: 3089.082808 | E21: 3116.699128 | F21: 3130.891639 | G21: 3134.692044 | H21: 3127.862629 | I21: 3110.16568
B22: Customer numbers as at 30 June | C22: 3089.082808 | D22: 3116.699128 | E22: 3130.891639 | F22: 3134.692044 | G22: 3127.862629 | H22: 3110.16568 | I22: 3081.363482
B23: Total customer connections | C23: 67.88956907 | D23: 68.25843623 | E23: 65.34558836 | F23: 65.70215995 | G23: 66.05873154 | H23: 66.41530313 | I23: 66.77187472
B24: Total customer disconnections | C24: 30.36886716 | D24: 40.64211539 | E24: 51.153078 | F24: 61.90175502 | G24: 72.88814642 | H24: 84.11225222 | I24: 95.57407242
B27: C. INDUSTRIAL
C28: VOLUMES
C29: 0's
C30: =CRCP_y4 -> 2019-20 | D30: =CRCP_y5 -> 2020-21 | E30: =FRCP_y1 -> 2021-22 | F30: =FRCP_y2 -> 2022-23 | G30: =FRCP_y3 -> 2023-24 | H30: =FRCP_y4 -> 2024-25 | I30: =FRCP_y5 -> 2025-26
B31: Customer numbers as at 1 July | C31: 40.39178082 | D31: 43 | E31: 43 | F31: 43 | G31: 43 | H31: 43 | I31: 43
B32: Customer numbers as at 30 June | C32: 43 | D32: 43 | E32: 43 | F32: 43 | G32: 43 | H32: 43 | I32: 43
B33: Total customer connections | C33: 2.608219178 | D33: 0 | E33: 0 | F33: 0 | G33: 0 | H33: 0 | I33: 0
B34: Total customer disconnections | C34: 0 | D34: 0 | E34: 0 | F34: 0 | G34: 0 | H34: 0 | I34: 0

Sheet S1.2 Customer numbers
B1: =INDEX(dms_Worksheet_List,MATCH(dms_Model,dms_Model_List)) -> REGULATORY REPORTING STATEMENT
B2: =INDEX(dms_TradingNameFull_List,MATCH(dms_TradingName,dms_TradingName_List)) -> Evoenergy Gas
B3: =dms_Header_Span -> 2019-20 - 2025-26
B4: S1. CUSTOMER NUMBERS
B6: S1.2 - CUSTOMER NUMBERS - BY TARIFF
B7: S1.2.1 - CUSTOMER NUMBERS AS AT 1 JULY
C8: VOLUMES
C9: 0's
C10: =CRCP_y4 -> 2019-20 | D10: =CRCP_y5 -> 2020-21 | E10: =FRCP_y1 -> 2021-22 | F10: =FRCP_y2 -> 2022-23 | G10: =FRCP_y3 -> 2023-24 | H10: =FRCP_y4 -> 2024-25 | I10: =FRCP_y5 -> 2025-26
B11: =IF(ISBLANK('N1. Demand'!B21),"",'N1. Demand'!B21) -> Volume Individual | C11: 152501.4444 | D11: =C92 -> 156170.958 | E11: 159762.288 | F11: 161159.0687 | G11: 162481.2106 | H11: 163608.0108 | I11: 164681.1386
B12: =IF(ISBLANK('N1. Demand'!B22),"",'N1. Demand'!B22) -> Volume Residential Heating | C12: 0 | D12: =C93 -> 0 | E12: 0 | F12: 0 | G12: 0 | H12: 0 | I12: 0
B13: =IF(ISBLANK('N1. Demand'!B23),"",'N1. Demand'!B23) -> Volume Boundary | C13: 4 | D13: =C94 -> 9 | E13: 12 | F13: 15 | G13: 18 | H13: 21 | I13: 24
B14: =IF(ISBLANK('N1. Demand'!B24),"",'N1. Demand'!B24) -> Volume Residential Large Scale Generation | C14: 0 | D14: =C95 -> 0 | E14: 0 | F14: 0 | G14: 0 | H14: 0 | I14: 0
B15: =IF(ISBLANK('N1. Demand'!B25),"",'N1. Demand'!B25) -> Volume Business Small | C15: 2 | D15: =C96 -> 2 | E15: 2 | F15: 0 | G15: 0 | H15: 0 | I15: 0
B16: =IF(ISBLANK('N1. Demand'!B26),"",'N1. Demand'!B26) -> Volume Business Medium | C16: 1 | D16: =C97 -> 1 | E16: 1 | F16: 0 | G16: 0 | H16: 0 | I16: 0
B17: =IF(ISBLANK('N1. Demand'!B27),"",'N1. Demand'!B27) -> Demand Capacity | C17: 39 | D17: =C98 -> 42 | E17: 42 | F17: 42 | G17: 42 | H17: 42 | I17: 42
B18: =IF(ISBLANK('N1. Demand'!B28),"",'N1. Demand'!B28) -> Demand Throughput | C18: 1 | D18: =C99 -> 1 | E18: 1 | F18: 1 | G18: 1 | H18: 1 | I18: 1
B19: =IF(ISBLANK('N1. Demand'!B29),"",'N1. Demand'!B29) -> Demand Large Scale Generation | C19: 0 | D19: =C100 -> 0 | E19: 0 | F19: 0 | G19: 0 | H19: 0 | I19: 0
B20: =IF(ISBLANK('N1. Demand'!B30),"",'N1. Demand'!B30) ->  | D20: =C101 -> 0 | E20: 0 | F20: 0 | G20: 0 | H20: 0 | I20: 0
B21: =IF(ISBLANK('N1. Demand'!B31),"",'N1. Demand'!B31) ->  | D21: =C102 -> 0 | E21: 0 | F21: 0 | G21: 0 | H21: 0 | I21: 0
B22: =IF(ISBLANK('N1. Demand'!B32),"",'N1. Demand'!B32) ->  | D22: =C103 -> 0 | E22: 0 | F22: 0 | G22: 0 | H22: 0 | I22: 0
B23: =IF(ISBLANK('N1. Demand'!B33),"",'N1. Demand'!B33) ->  | D23: =C104 -> 0 | E23: 0 | F23: 0 | G23: 0 | H23: 0 | I23: 0
B24: =IF(ISBLANK('N1. Demand'!B34),"",'N1. Demand'!B34) ->  | D24: =C105 -> 0 | E24: 0 | F24: 0 | G24: 0 | H24: 0 | I24: 0
B25: =IF(ISBLANK('N1. Demand'!B35),"",'N1. Demand'!B35) ->  | D25: =C106 -> 0 | E25: 0 | F25: 0 | G25: 0 | H25: 0 | I25: 0
B26: =IF(ISBLANK('N1. Demand'!B36),"",'N1. Demand'!B36) ->  | D26: =C107 -> 0 | E26: 0 | F26: 0 | G26: 0 | H26: 0 | I26: 0
B27: =IF(ISBLANK('N1. Demand'!B37),"",'N1. Demand'!B37) ->  | D27: =C108 -> 0 | E27: 0 | F27: 0 | G27: 0 | H27: 0 | I27: 0
B28: =IF(ISBLANK('N1. Demand'!B38),"",'N1. Demand'!B38) ->  | D28: =C109 -> 0 | E28: 0 | F28: 0 | G28: 0 | H28: 0 | I28: 0
B29: =IF(ISBLANK('N1. Demand'!B39),"",'N1. Demand'!B39) ->  | D29: =C110 -> 0 | E29: 0 | F29: 0 | G29: 0 | H29: 0 | I29: 0
B30: =IF(ISBLANK('N1. Demand'!B40),"",'N1. Demand'!B40) ->  | D30: =C111 -> 0 | E30: 0 | F30: 0 | G30: 0 | H30: 0 | I30: 0
B31: =IF(ISBLANK('N1. Demand'!B41),"",'N1. Demand'!B41) ->  | D31: =C112 -> 0 | E31: 0 | F31: 0 | G31: 0 | H31: 0 | I31: 0
B32: =IF(ISBLANK('N1. Demand'!B42),"",'N1. Demand'!B42) ->  | D32: =C113 -> 0 | E32: 0 | F32: 0 | G32: 0 | H32: 0 | I32: 0
B33: =IF(ISBLANK('N1. Demand'!B43),"",'N1. Demand'!B43) ->  | D33: =C114 -> 0 | E33: 0 | F33: 0 | G33: 0 | H33: 0 | I33: 0
B34: =IF(ISBLANK('N1. Demand'!B44),"",'N1. Demand'!B44) ->  | D34: =C115 -> 0 | E34: 0 | F34: 0 | G34: 0 | H34: 0 | I34: 0
B35: =IF(ISBLANK('N1. Demand'!B45),"",'N1. Demand'!B45) ->  | D35: =C116 -> 0 | E35: 0 | F35: 0 | G35: 0 | H35: 0 | I35: 0
B36: =IF(ISBLANK('N1. Demand'!B46),"",'N1. Demand'!B46) ->  | D36: =C117 -> 0 | E36: 0 | F36: 0 | G36: 0 | H36: 0 | I36: 0
B37: =IF(ISBLANK('N1. Demand'!B47),"",'N1. Demand'!B47) ->  | D37: =C118 -> 0 | E37: 0 | F37: 0 | G37: 0 | H37: 0 | I37: 0
B38: =IF(ISBLANK('N1. Demand'!B48),"",'N1. Demand'!B48) ->  | D38: =C119 -> 0 | E38: 0 | F38: 0 | G38: 0 | H38: 0 | I38: 0
B39: =IF(ISBLANK('N1. Demand'!B49),"",'N1. Demand'!B49) ->  | D39: =C120 -> 0 | E39: 0 | F39: 0 | G39: 0 | H39: 0 | I39: 0
B40: =IF(ISBLANK('N1. Demand'!B50),"",'N1. Demand'!B50) ->  | D40: =C121 -> 0 | E40: 0 | F40: 0 | G40: 0 | H40: 0 | I40: 0
B41: =IF(ISBLANK('N1. Demand'!B51),"",'N1. Demand'!B51) ->  | D41: =C122 -> 0 | E41: 0 | F41: 0 | G41: 0 | H41: 0 | I41: 0
B42: =IF(ISBLANK('N1. Demand'!B52),"",'N1. Demand'!B52) ->  | D42: =C123 -> 0 | E42: 0 | F42: 0 | G42: 0 | H42: 0 | I42: 0
B43: =IF(ISBLANK('N1. Demand'!B53),"",'N1. Demand'!B53) ->  | D43: =C124 -> 0 | E43: 0 | F43: 0 | G43: 0 | H43: 0 | I43: 0
B44: =IF(ISBLANK('N1. Demand'!B54),"",'N1. Demand'!B54) ->  | D44: =C125 -> 0 | E44: 0 | F44: 0 | G44: 0 | H44: 0 | I44: 0
B45: =IF(ISBLANK('N1. Demand'!B55),"",'N1. Demand'!B55) ->  | D45: =C126 -> 0 | E45: 0 | F45: 0 | G45: 0 | H45: 0 | I45: 0
B46: =IF(ISBLANK('N1. Demand'!B56),"",'N1. Demand'!B56) ->  | D46: =C127 -> 0 | E46: 0 | F46: 0 | G46: 0 | H46: 0 | I46: 0
B47: =IF(ISBLANK('N1. Demand'!B57),"",'N1. Demand'!B57) ->  | D47: =C128 -> 0 | E47: 0 | F47: 0 | G47: 0 | H47: 0 | I47: 0
B48: =IF(ISBLANK('N1. Demand'!B58),"",'N1. Demand'!B58) ->  | D48: =C129 -> 0 | E48: 0 | F48: 0 | G48: 0 | H48: 0 | I48: 0
B49: =IF(ISBLANK('N1. Demand'!B59),"",'N1. Demand'!B59) ->  | D49: =C130 -> 0 | E49: 0 | F49: 0 | G49: 0 | H49: 0 | I49: 0
B50: =IF(ISBLANK('N1. Demand'!B60),"",'N1. Demand'!B60) ->  | D50: =C131 -> 0 | E50: =D131 -> 0 | F50: =E131 -> 0 | G50: =F131 -> 0 | H50: =G131 -> 0 | I50: =H131 -> 0
B51: =IF(ISBLANK('N1. Demand'!B61),"",'N1. Demand'!B61) ->  | D51: 0 | E51: 0 | F51: 0 | G51: 0 | H51: 0 | I51: 0
B52: =IF(ISBLANK('N1. Demand'!B62),"",'N1. Demand'!B62) ->  | D52: 0 | E52: 0 | F52: 0 | G52: 0 | H52: 0 | I52: 0
B53: =IF(ISBLANK('N1. Demand'!B63),"",'N1. Demand'!B63) ->  | D53: =C134 -> 0 | E53: 0 | F53: 0 | G53: 0 | H53: 0 | I53: 0
B54: =IF(ISBLANK('N1. Demand'!B64),"",'N1. Demand'!B64) ->  | D54: =C135 -> 0 | E54: 0 | F54: 0 | G54: 0 | H54: 0 | I54: 0
B55: =IF(ISBLANK('N1. Demand'!B65),"",'N1. Demand'!B65) ->  | D55: =C136 -> 0 | E55: 0 | F55: 0 | G55: 0 | H55: 0 | I55: 0
B56: =IF(ISBLANK('N1. Demand'!B66),"",'N1. Demand'!B66) ->  | D56: =C137 -> 0 | E56: 0 | F56: 0 | G56: 0 | H56: 0 | I56: 0
B57: =IF(ISBLANK('N1. Demand'!B67),"",'N1. Demand'!B67) ->  | D57: =C138 -> 0 | E57: 0 | F57: 0 | G57: 0 | H57: 0 | I57: 0
B58: =IF(ISBLANK('N1. Demand'!B68),"",'N1. Demand'!B68) ->  | D58: =C139 -> 0 | E58: =D139 -> 0 | F58: =E139 -> 0 | G58: =F139 -> 0 | H58: =G139 -> 0 | I58: =H139 -> 0
B59: =IF(ISBLANK('N1. Demand'!B69),"",'N1. Demand'!B69) ->  | D59: 0 | E59: 0 | F59: 0 | G59: 0 | H59: 0 | I59: 0
B60: =IF(ISBLANK('N1. Demand'!B70),"",'N1. Demand'!B70) ->  | D60: 0 | E60: 0 | F60: 0 | G60: 0 | H60: 0 | I60: 0
B61: =IF(ISBLANK('N1. Demand'!B71),"",'N1. Demand'!B71) ->  | D61: 0 | E61: 0 | F61: 0 | G61: 0 | H61: 0 | I61: 0
B62: =IF(ISBLANK('N1. Demand'!B72),"",'N1. Demand'!B72) ->  | D62: 0 | E62: 0 | F62: 0 | G62: 0 | H62: 0 | I62: 0
B63: =IF(ISBLANK('N1. Demand'!B73),"",'N1. Demand'!B73) ->  | D63: 0 | E63: 0 | F63: 0 | G63: 0 | H63: 0 | I63: 0
B64: =IF(ISBLANK('N1. Demand'!B74),"",'N1. Demand'!B74) ->  | D64: 0 | E64: 0 | F64: 0 | G64: 0 | H64: 0 | I64: 0
B65: =IF(ISBLANK('N1. Demand'!B75),"",'N1. Demand'!B75) ->  | D65: 0 | E65: 0 | F65: 0 | G65: 0 | H65: 0 | I65: 0
B66: =IF(ISBLANK('N1. Demand'!B76),"",'N1. Demand'!B76) ->  | D66: 0 | E66: 0 | F66: 0 | G66: 0 | H66: 0 | I66: 0
B67: =IF(ISBLANK('N1. Demand'!B77),"",'N1. Demand'!B77) ->  | D67: 0 | E67: 0 | F67: 0 | G67: 0 | H67: 0 | I67: 0
B68: =IF(ISBLANK('N1. Demand'!B78),"",'N1. Demand'!B78) ->  | D68: 0 | E68: 0 | F68: 0 | G68: 0 | H68: 0 | I68: 0
B69: =IF(ISBLANK('N1. Demand'!B79),"",'N1. Demand'!B79) ->  | D69: 0 | E69: 0 | F69: 0 | G69: 0 | H69: 0 | I69: 0
B70: =IF(ISBLANK('N1. Demand'!B80),"",'N1. Demand'!B80) ->  | D70: 0 | E70: 0 | F70: 0 | G70: 0 | H70: 0 | I70: 0
B71: =IF(ISBLANK('N1. Demand'!B81),"",'N1. Demand'!B81) ->  | D71: 0 | E71: 0 | F71: 0 | G71: 0 | H71: 0 | I71: 0
B72: =IF(ISBLANK('N1. Demand'!B82),"",'N1. Demand'!B82) ->  | D72: 0 | E72: 0 | F72: 0 | G72: 0 | H72: 0 | I72: 0
B73: =IF(ISBLANK('N1. Demand'!B83),"",'N1. Demand'!B83) ->  | D73: 0 | E73: 0 | F73: 0 | G73: 0 | H73: 0 | I73: 0
B74: =IF(ISBLANK('N1. Demand'!B84),"",'N1. Demand'!B84) ->  | D74: 0 | E74: 0 | F74: 0 | G74: 0 | H74: 0 | I74: 0
B75: =IF(ISBLANK('N1. Demand'!B85),"",'N1. Demand'!B85) ->  | D75: 0 | E75: 0 | F75: 0 | G75: 0 | H75: 0 | I75: 0
B76: =IF(ISBLANK('N1. Demand'!B86),"",'N1. Demand'!B86) ->  | D76: 0 | E76: 0 | F76: 0 | G76: 0 | H76: 0 | I76: 0
B77: =IF(ISBLANK('N1. Demand'!B87),"",'N1. Demand'!B87) ->  | D77: 0 | E77: 0 | F77: 0 | G77: 0 | H77: 0 | I77: 0
B78: =IF(ISBLANK('N1. Demand'!B88),"",'N1. Demand'!B88) ->  | D78: 0 | E78: 0 | F78: 0 | G78: 0 | H78: 0 | I78: 0
B79: =IF(ISBLANK('N1. Demand'!B89),"",'N1. Demand'!B89) ->  | D79: 0 | E79: 0 | F79: 0 | G79: 0 | H79: 0 | I79: 0
B80: =IF(ISBLANK('N1. Demand'!B90),"",'N1. Demand'!B90) ->  | D80: 0 | E80: 0 | F80: 0 | G80: 0 | H80: 0 | I80: 0
B81: =IF(ISBLANK('N1. Demand'!B91),"",'N1. Demand'!B91) ->  | D81: 0 | E81: 0 | F81: 0 | G81: 0 | H81: 0 | I81: 0
B82: =IF(ISBLANK('N1. Demand'!B92),"",'N1. Demand'!B92) ->  | D82: 0 | E82: 0 | F82: 0 | G82: 0 | H82: 0 | I82: 0
B83: =IF(ISBLANK('N1. Demand'!B93),"",'N1. Demand'!B93) ->  | D83: 0 | E83: 0 | F83: 0 | G83: 0 | H83: 0 | I83: 0
B84: =IF(ISBLANK('N1. Demand'!B94),"",'N1. Demand'!B94) ->  | D84: 0 | E84: 0 | F84: 0 | G84: 0 | H84: 0 | I84: 0
B85: =IF(ISBLANK('N1. Demand'!B95),"",'N1. Demand'!B95) ->  | D85: 0 | E85: 0 | F85: 0 | G85: 0 | H85: 0 | I85: 0
B86: Total | C86: =SUM(C11:C85) -> 152548.4444 | D86: =SUM(D11:D85) -> 156225.958 | E86: 159820.288 | F86: 161217.0687 | G86: 162542.2106 | H86: 163672.0108 | I86: 164748.1386
B88: S1.2.2 - CUSTOMER NUMBERS AS AT 30 JUNE
C89: VOLUMES
C90: 0's
C91: =CRCP_y4 -> 2019-20 | D91: =CRCP_y5 -> 2020-21 | E91: =FRCP_y1 -> 2021-22 | F91: =FRCP_y2 -> 2022-23 | G91: =FRCP_y3 -> 2023-24 | H91: =FRCP_y4 -> 2024-25 | I91: =FRCP_y5 -> 2025-26
B92: =IF(ISBLANK(B11),"",B11) -> Volume Individual | C92: 156170.958 | D92: 159762.288 | E92: 161159.0687 | F92: 162481.2106 | G92: 163608.0108 | H92: 164681.1386 | I92: 165705.5061
B93: Volume Residential Heating | C93: 0 | D93: 0 | E93: 0 | F93: 0 | G93: 0 | H93: 0 | I93: 0
B94: Volume Boundary | C94: 9 | D94: 12 | E94: 15 | F94: 18 | G94: 21 | H94: 24 | I94: 27
B95: Volume Residential Large Scale Generation | C95: 0 | D95: 0 | E95: 0 | F95: 0 | G95: 0 | H95: 0 | I95: 0
B96: Volume Business Small | C96: 2 | D96: 2 | E96: 0 | F96: 0 | G96: 0 | H96: 0 | I96: 0
B97: Volume Business Medium | C97: 1 | D97: 1 | E97: 0 | F97: 0 | G97: 0 | H97: 0 | I97: 0
B98: Demand Capacity | C98: 42 | D98: 42 | E98: 42 | F98: 42 | G98: 42 | H98: 42 | I98: 42
B99: Demand Throughput | C99: 1 | D99: 1 | E99: 1 | F99: 1 | G99: 1 | H99: 1 | I99: 1
B100: Demand Large Scale Generation | C100: 0 | D100: 0 | E100: 0 | F100: 0 | G100: 0 | H100: 0 | I100: 0
B124: =IF(ISBLANK(B43),"",B43) -> 
B141: =IF(ISBLANK(B60),"",B60) -> 
B167: Total | C167: =SUM(C92:C166) -> 156225.958 | D167: =SUM(D92:D166) -> 159820.288 | E167: =SUM(E92:E166) -> 161217.0687 | F167: =SUM(F92:F166) -> 162542.2106 | G167: =SUM(G92:G166) -> 163672.0108 | H167: =SUM(H92:H166) -> 164748.1386 | I167: =SUM(I92:I166) -> 165775.5061
B169: S1.2.3 - TOTAL CUSTOMER CONNECTIONS
C170: VOLUMES
C171: 0's
C172: =CRCP_y4 -> 2019-20 | D172: =CRCP_y5 -> 2020-21 | E172: =FRCP_y1 -> 2021-22 | F172: =FRCP_y2 -> 2022-23 | G172: =FRCP_y3 -> 2023-24 | H172: =FRCP_y4 -> 2024-25 | I172: =FRCP_y5 -> 2025-26
B173: =IF(ISBLANK(B11),"",B11) -> Volume Individual | C173: 3989.147969 | D173: 3989.147969 | E173: 3989.147969 | F173: 3989.147969 | G173: 3989.147969 | H173: 3989.147969 | I173: 3989.147969
B174: Volume Residential Heating | C174: 0 | D174: 0 | E174: 0 | F174: 0 | G174: 0 | H174: 0 | I174: 0
B175: Volume Boundary | C175: 5 | D175: 3 | E175: 3 | F175: 3 | G175: 3 | H175: 3 | I175: 3
B176: Volume Residential Large Scale Generation | C176: 0 | D176: 0 | E176: 0 | F176: 0 | G176: 0 | H176: 0 | I176: 0
B177: Volume Business Small | C177: 0 | D177: 0 | E177: 0 | F177: 0 | G177: 0 | H177: 0 | I177: 0
B178: Volume Business Medium | C178: 0 | D178: 0 | E178: 0 | F178: 0 | G178: 0 | H178: 0 | I178: 0
B179: Demand Capacity | C179: 3 | D179: 0 | E179: 0 | F179: 0 | G179: 0 | H179: 0 | I179: 0
B180: Demand Throughput | C180: 0 | D180: 0 | E180: 0 | F180: 0 | G180: 0 | H180: 0 | I180: 0
B181: Demand Large Scale Generation | C181: 0 | D181: 0 | E181: 0 | F181: 0 | G181: 0 | H181: 0 | I181: 0
B205: =IF(ISBLANK(B43),"",B43) -> 
B222: =IF(ISBLANK(B60),"",B60) -> 
B248: Total | C248: =SUM(C173:C247) -> 3997.147969 | D248: =SUM(D173:D247) -> 3992.147969 | E248: =SUM(E173:E247) -> 3992.147969 | F248: =SUM(F173:F247) -> 3992.147969 | G248: =SUM(G173:G247) -> 3992.147969 | H248: =SUM(H173:H247) -> 3992.147969 | I248: =SUM(I173:I247) -> 3992.147969
B250: S1.2.4 - TOTAL CUSTOMER DISCONNECTIONS
C251: VOLUMES
C252: 0's
C253: =CRCP_y4 -> 2019-20 | D253: =CRCP_y5 -> 2020-21 | E253: =FRCP_y1 -> 2021-22 | F253: =FRCP_y2 -> 2022-23 | G253: =FRCP_y3 -> 2023-24 | H253: =FRCP_y4 -> 2024-25 | I253: =FRCP_y5 -> 2025-26
B254: =IF(ISBLANK(B11),"",B11) -> Volume Individual | C254: 0 | D254: 0 | E254: 0 | F254: 0 | G254: 0 | H254: 0 | I254: 0
B255: Volume Residential Heating | C255: 0 | D255: 0 | E255: 0 | F255: 0 | G255: 0 | H255: 0 | I255: 0
B256: Volume Boundary | C256: 0 | D256: 0 | E256: 0 | F256: 0 | G256: 0 | H256: 0 | I256: 0
B257: Volume Residential Large Scale Generation | C257: 0 | D257: 0 | E257: 0 | F257: 0 | G257: 0 | H257: 0 | I257: 0
B258: Volume Business Small | C258: 0 | D258: 0 | E258: 0 | F258: 0 | G258: 0 | H258: 0 | I258: 0
B259: Volume Business Medium | C259: 0 | D259: 0 | E259: 0 | F259: 0 | G259: 0 | H259: 0 | I259: 0
B260: Demand Capacity | C260: 0 | D260: 0 | E260: 0 | F260: 0 | G260: 0 | H260: 0 | I260: 0
B261: Demand Throughput | C261: 0 | D261: 0 | E261: 0 | F261: 0 | G261: 0 | H261: 0 | I261: 0
B262: Demand Large Scale Generation | C262: 0 | D262: 0 | E262: 0 | F262: 0 | G262: 0 | H262: 0 | I262: 0
B286: =IF(ISBLANK(B43),"",B43) -> 
B303: =IF(ISBLANK(B60),"",B60) -> 
B329: Total | C329: =SUM(C254:C328) -> 0 | D329: =SUM(D254:D328) -> 0 | E329: =SUM(E254:E328) -> 0 | F329: =SUM(F254:F328) -> 0 | G329: =SUM(G254:G328) -> 0 | H329: =SUM(H254:H328) -> 0 | I329: =SUM(I254:I328) -> 0

Sheet S10. Supply Quality
B1: =INDEX(dms_Worksheet_List,MATCH(dms_Model,dms_Model_List)) -> REGULATORY REPORTING STATEMENT
B2: =INDEX(dms_TradingNameFull_List,MATCH(dms_TradingName,dms_TradingName_List)) -> Evoenergy Gas
B3: =dms_Header_Span -> 2019-20 - 2025-26
B4: S10. SUPPLY QUALITY
B6: S10.1 - PRESSURE FAULTS
C7: VOLUMES
C8: 0's
C9: =CRCP_y4 -> 2019-20 | D9: =CRCP_y5 -> 2020-21 | E9: =FRCP_y1 -> 2021-22 | F9: =FRCP_y2 -> 2022-23 | G9: =FRCP_y3 -> 2023-24 | H9: =FRCP_y4 -> 2024-25 | I9: =FRCP_y5 -> 2025-26
B10: Poor Pressure events - mains
B11: Poor Pressure events - services | C11: 5.5 | D11: 6.125 | E11: 5.90625 | F11: 5.8828125 | G11: 5.853515625 | H11: 5.941894531 | I11: 5.896118164
B12: Poor Pressure event - meters | C12: 6.25 | D12: 1.8125 | E12: 2.015625 | F12: 2.51953125 | G12: 3.149414062 | H12: 2.374267578 | I12: 2.514709473
B13: Pressure events impacting 5+ customers | C13: 0 | D13: 0 | E13: 0 | F13: 0 | G13: 0 | H13: 0 | I13: 0
B14: Pressure events with >12 hr resolution | C14: 3.75 | D14: 2.9375 | E14: 2.671875 | F14: 2.83984375 | G14: 3.049804688 | H14: 2.874755859 | I14: 2.859069824

Sheet S11. Network reliability
B1: =INDEX(dms_Worksheet_List,MATCH(dms_Model,dms_Model_List)) -> REGULATORY REPORTING STATEMENT
B2: =INDEX(dms_TradingNameFull_List,MATCH(dms_TradingName,dms_TradingName_List)) -> Evoenergy Gas
B3: =dms_Header_Span -> 2019-20 - 2025-26
B4: S11. NETWORK RELIABILITY
B6: S11.1 - NETWORK OUTAGES
B7: S11.1.1 - PLANNED
C8: VOLUMES
C9: 0's
C10: =CRCP_y4 -> 2019-20 | D10: =CRCP_y5 -> 2020-21 | E10: =FRCP_y1 -> 2021-22 | F10: =FRCP_y2 -> 2022-23 | G10: =FRCP_y3 -> 2023-24 | H10: =FRCP_y4 -> 2024-25 | I10: =FRCP_y5 -> 2025-26
B11: Count of outage events | C11: 6962 | D11: 6085.25 | E11: 5972.8125 | F11: 6028.515625 | G11: 6262.144531 | H11: 6087.180664 | I11: 6087.66333
B12: Outages affecting 5+ customers | C12: 0.5 | D12: 0.625 | E12: 0.28125 | F12: 0.3515625 | G12: 0.439453125 | H12: 0.4243164062 | I12: 0.3741455078
B13: Outages with >12 hr supply interruption | C13: 0 | D13: 0 | E13: 0 | F13: 0 | G13: 0 | H13: 0 | I13: 0
B15: S11.1.2 - UNPLANNED
C16: VOLUMES
C17: 0's
C18: =CRCP_y4 -> 2019-20 | D18: =CRCP_y5 -> 2020-21 | E18: =FRCP_y1 -> 2021-22 | F18: =FRCP_y2 -> 2022-23 | G18: =FRCP_y3 -> 2023-24 | H18: =FRCP_y4 -> 2024-25 | I18: =FRCP_y5 -> 2025-26
B19: Count of outage events | C19: 122.75 | D19: 103.9375 | E19: 96.421875 | F19: 103.5273438 | G19: 106.6591797 | H19: 102.6364746 | I19: 102.3112183
B20: Outages affecting 5+ customers | C20: 1 | D20: 0.75 | E20: 0.6875 | F20: 0.609375 | G20: 0.76171875 | H20: 0.7021484375 | I20: 0.6901855469
B21: Outages with >12 hr supply interruption | C21: 13.5 | D21: 7.625 | E21: 7.28125 | F21: 8.6015625 | G21: 9.251953125 | H21: 8.189941406 | I21: 8.331176758
B25: S11.2 - LEAKS - BY ASSET TYPE AND CAUSE OF LEAK
B26: S11.2.1 - LOW PRESSURE
C27: VOLUMES
C28: Number per KM
C29: =CRCP_y4 -> 2019-20 | D29: =CRCP_y5 -> 2020-21 | E29: =FRCP_y1 -> 2021-22 | F29: =FRCP_y2 -> 2022-23 | G29: =FRCP_y3 -> 2023-24 | H29: =FRCP_y4 -> 2024-25 | I29: =FRCP_y5 -> 2025-26
B30: Cast Iron
B31: Broken pipe - cracked
B32: Broken pipe - full break
B33: Corrosion
B34: Joint leak
B35: 3rd party damage
B36: Identified water in main
B37: Other
B38: PVC
B39: Broken pipe - cracked
B40: Broken pipe - full break
B41: Corrosion
B42: Joint leak
B43: 3rd party damage
B44: Identified water in main
B45: Other
B46: Polyamide
B47: Broken pipe - cracked
B48: Broken pipe - full break
B49: Corrosion
B50: Joint leak
B51: 3rd party damage
B52: Identified water in main
B53: Other
B54: High density polyethylene (80)
B55: Broken pipe - cracked
B56: Broken pipe - full break
B57: Corrosion
B58: Joint leak
B59: 3rd party damage
B60: Identified water in main
B61: Other
B62: High density polyethylene (100)
B63: Broken pipe - cracked
B64: Broken pipe - full break
B65: Corrosion
B66: Joint leak
B67: 3rd party damage
B68: Identified water in main
B69: Other
B70: High density polyethylene (250)
B71: Broken pipe - cracked
B72: Broken pipe - full break
B73: Corrosion
B74: Joint leak
B75: 3rd party damage
B76: Identified water in main
B77: Other
B78: High density polyethylene (575)
B79: Broken pipe - cracked
B80: Broken pipe - full break
B81: Corrosion
B82: Joint leak
B83: 3rd party damage
B84: Identified water in main
B85: Other
B86: Medium density polyethylene
B87: Broken pipe - cracked
B88: Broken pipe - full break
B89: Corrosion
B90: Joint leak
B91: 3rd party damage
B92: Identified water in main
B93: Other
B94: Other polyethylene
B95: Broken pipe - cracked
B96: Broken pipe - full break
B97: Corrosion
B98: Joint leak
B99: 3rd party damage
B100: Identified water in main
B101: Other
B102: Unprotected steel
B103: Broken pipe - cracked
B104: Broken pipe - full break
B105: Corrosion
B106: Joint leak
B107: 3rd party damage
B108: Identified water in main
B109: Other
B110: Protected steel
B111: Broken pipe - cracked
B112: Broken pipe - full break
B113: Corrosion
B114: Joint leak
B115: 3rd party damage
B116: Identified water in main
B117: Other
B119: S11.2.2 - MEDIUM PRESSURE
C120: VOLUMES
C121: Number per KM
C122: =CRCP_y4 -> 2019-20 | D122: =CRCP_y5 -> 2020-21 | E122: =FRCP_y1 -> 2021-22 | F122: =FRCP_y2 -> 2022-23 | G122: =FRCP_y3 -> 2023-24 | H122: =FRCP_y4 -> 2024-25 | I122: =FRCP_y5 -> 2025-26
B123: Cast Iron
B124: Broken pipe - cracked
B125: Broken pipe - full break
B126: Corrosion
B127: Joint leak
B128: 3rd party damage
B129: Identified water in main
B130: Other
B131: PVC
B132: Broken pipe - cracked
B133: Broken pipe - full break
B134: Corrosion
B135: Joint leak
B136: 3rd party damage
B137: Identified water in main
B138: Other
B139: Polyamide
B140: Broken pipe - cracked
B141: Broken pipe - full break
B142: Corrosion
B143: Joint leak
B144: 3rd party damage | C144: 135.75 | D144: 134.1875 | E144: 132.734375 | F144: 131.6679688 | G144: 133.5849609 | H144: 133.0437012 | I144: 132.7577515
B145: Identified water in main
B146: Other | C146: 43.25 | D146: 41.8125 | E146: 39.765625 | F146: 41.45703125 | G146: 41.57128906 | H146: 41.15161133 | I146: 40.98638916
B147: High density polyethylene (80)
B148: Broken pipe - cracked
B149: Broken pipe - full break
B150: Corrosion
B151: Joint leak
B152: 3rd party damage | C152: 56 | D152: 58.5 | E152: 56.375 | F152: 56.96875 | G152: 56.9609375 | H152: 57.20117188 | I152: 56.87646484
B153: Identified water in main
B154: Other | C154: 26.75 | D154: 27.1875 | E154: 27.234375 | F154: 28.29296875 | G154: 27.36621094 | H154: 27.52026367 | I154: 27.60345459
B155: High density polyethylene (100)
B156: Broken pipe - cracked
B157: Broken pipe - full break
B158: Corrosion
B159: Joint leak
B160: 3rd party damage
B161: Identified water in main
B162: Other
B163: High density polyethylene (250)
B164: Broken pipe - cracked
B165: Broken pipe - full break
B166: Corrosion
B167: Joint leak
B168: 3rd party damage
B169: Identified water in main
B170: Other
B171: High density polyethylene (575)
B172: Broken pipe - cracked
B173: Broken pipe - full break
B174: Corrosion
B175: Joint leak
B176: 3rd party damage
B177: Identified water in main
B178: Other
B179: Medium density polyethylene
B180: Broken pipe - cracked
B181: Broken pipe - full break
B182: Corrosion
B183: Joint leak
B184: 3rd party damage
B185: Identified water in main
B186: Other
B187: Other polyethylene
B188: Broken pipe - cracked
B189: Broken pipe - full break
B190: Corrosion
B191: Joint leak
B192: 3rd party damage
B193: Identified water in main
B194: Other
B195: Unprotected steel
B196: Broken pipe - cracked
B197: Broken pipe - full break
B198: Corrosion
B199: Joint leak
B200: 3rd party damage
B201: Identified water in main
B202: Other
B203: Protected steel
B204: Broken pipe - cracked
B205: Broken pipe - full break
B206: Corrosion
... 102 more rows

Sheet F3. Revenue
B1: =INDEX(dms_Worksheet_List,MATCH(dms_Model,dms_Model_List)) -> REGULATORY REPORTING STATEMENT
B2: =INDEX(dms_TradingNameFull_List,MATCH(dms_TradingName,dms_TradingName_List)) -> Evoenergy Gas
B3: =dms_Header_Span -> 2019-20 - 2025-26
B4: F3. REVENUE
B6: F3.1 - REFERENCE SERVICES
B7: F3.1.1 - REVENUE - BY TARIFF
C8: REVENUE
C9: =CONCATENATE("$0's, real ",dms_DollarReal) -> $0's, real June 2021
B10: Tariff | C10: =CRCP_y4 -> 2019-20 | D10: =CRCP_y5 -> 2020-21 | E10: =FRCP_y1 -> 2021-22 | F10: =FRCP_y2 -> 2022-23 | G10: =FRCP_y3 -> 2023-24 | H10: =FRCP_y4 -> 2024-25 | I10: =FRCP_y5 -> 2025-26
B11: =IF(ISBLANK('N1. Demand'!B21),"",'N1. Demand'!B21) -> Volume Individual | C11: 61126276 | D11: 60011539.82 | E11: 58386693.38 | F11: 58688748.28 | G11: 59026848.46 | H11: 59456143.47 | I11: 59623322.48
B12: =IF(ISBLANK('N1. Demand'!B22),"",'N1. Demand'!B22) -> Volume Residential Heating | C12: - | D12: 0 | E12: 0 | F12: 0 | G12: 0 | H12: 0 | I12: 0
B13: =IF(ISBLANK('N1. Demand'!B23),"",'N1. Demand'!B23) -> Volume Boundary | C13: 11599 | D13: 72982.34886 | E13: 88758.09772 | F13: 107555.3238 | G13: 127037.2397 | H13: 147338.1506 | I13: 167444.815
B14: =IF(ISBLANK('N1. Demand'!B24),"",'N1. Demand'!B24) -> Volume Residential Large Scale Generation | C14: - | D14: 0 | E14: 0 | F14: 0 | G14: 0 | H14: 0 | I14: 0
B15: =IF(ISBLANK('N1. Demand'!B25),"",'N1. Demand'!B25) -> Volume Business Small
B16: =IF(ISBLANK('N1. Demand'!B26),"",'N1. Demand'!B26) -> Volume Business Medium
B17: =IF(ISBLANK('N1. Demand'!B27),"",'N1. Demand'!B27) -> Demand Capacity | C17: 2755010 | D17: 2365329.593 | E17: 2322458.355 | F17: 2377337.609 | G17: 2433513.338 | H17: 2491016.164 | I17: 2549558.558
B18: =IF(ISBLANK('N1. Demand'!B28),"",'N1. Demand'!B28) -> Demand Throughput
B19: =IF(ISBLANK('N1. Demand'!B29),"",'N1. Demand'!B29) -> Demand Large Scale Generation | C19: 164865 | D19: 0 | E19: 0 | F19: 0 | G19: 0 | H19: 0 | I19: 0
B20: =IF(ISBLANK('N1. Demand'!B30),"",'N1. Demand'!B30) -> 
B21: =IF(ISBLANK('N1. Demand'!B31),"",'N1. Demand'!B31) -> 
B22: =IF(ISBLANK('N1. Demand'!B32),"",'N1. Demand'!B32) -> 
B23: =IF(ISBLANK('N1. Demand'!B33),"",'N1. Demand'!B33) -> 
B24: =IF(ISBLANK('N1. Demand'!B34),"",'N1. Demand'!B34) -> 
B25: =IF(ISBLANK('N1. Demand'!B35),"",'N1. Demand'!B35) -> 
B26: =IF(ISBLANK('N1. Demand'!B36),"",'N1. Demand'!B36) -> 
B27: =IF(ISBLANK('N1. Demand'!B37),"",'N1. Demand'!B37) -> 
B28: =IF(ISBLANK('N1. Demand'!B38),"",'N1. Demand'!B38) -> 
B29: =IF(ISBLANK('N1. Demand'!B39),"",'N1. Demand'!B39) -> 
B30: =IF(ISBLANK('N1. Demand'!B40),"",'N1. Demand'!B40) -> 
B31: =IF(ISBLANK('N1. Demand'!B41),"",'N1. Demand'!B41) -> 
B32: =IF(ISBLANK('N1. Demand'!B42),"",'N1. Demand'!B42) -> 
B33: =IF(ISBLANK('N1. Demand'!B43),"",'N1. Demand'!B43) -> 
B34: =IF(ISBLANK('N1. Demand'!B44),"",'N1. Demand'!B44) -> 
B35: =IF(ISBLANK('N1. Demand'!B45),"",'N1. Demand'!B45) -> 
B36: =IF(ISBLANK('N1. Demand'!B46),"",'N1. Demand'!B46) -> 
B37: =IF(ISBLANK('N1. Demand'!B47),"",'N1. Demand'!B47) -> 
B38: =IF(ISBLANK('N1. Demand'!B48),"",'N1. Demand'!B48) -> 
B39: =IF(ISBLANK('N1. Demand'!B49),"",'N1. Demand'!B49) -> 
B40: =IF(ISBLANK('N1. Demand'!B50),"",'N1. Demand'!B50) -> 
B41: =IF(ISBLANK('N1. Demand'!B51),"",'N1. Demand'!B51) -> 
B42: =IF(ISBLANK('N1. Demand'!B52),"",'N1. Demand'!B52) -> 
B43: =IF(ISBLANK('N1. Demand'!B53),"",'N1. Demand'!B53) -> 
B44: =IF(ISBLANK('N1. Demand'!B54),"",'N1. Demand'!B54) -> 
B45: =IF(ISBLANK('N1. Demand'!B55),"",'N1. Demand'!B55) -> 
B46: =IF(ISBLANK('N1. Demand'!B56),"",'N1. Demand'!B56) -> 
B47: =IF(ISBLANK('N1. Demand'!B57),"",'N1. Demand'!B57) -> 
B48: =IF(ISBLANK('N1. Demand'!B58),"",'N1. Demand'!B58) -> 
B49: =IF(ISBLANK('N1. Demand'!B59),"",'N1. Demand'!B59) -> 
B50: =IF(ISBLANK('N1. Demand'!B60),"",'N1. Demand'!B60) -> 
B51: =IF(ISBLANK('N1. Demand'!B61),"",'N1. Demand'!B61) -> 
B52: =IF(ISBLANK('N1. Demand'!B62),"",'N1. Demand'!B62) -> 
B53: =IF(ISBLANK('N1. Demand'!B63),"",'N1. Demand'!B63) -> 
B54: =IF(ISBLANK('N1. Demand'!B64),"",'N1. Demand'!B64) -> 
B55: =IF(ISBLANK('N1. Demand'!B65),"",'N1. Demand'!B65) -> 
B56: =IF(ISBLANK('N1. Demand'!B66),"",'N1. Demand'!B66) -> 
B57: =IF(ISBLANK('N1. Demand'!B67),"",'N1. Demand'!B67) -> 
B58: =IF(ISBLANK('N1. Demand'!B68),"",'N1. Demand'!B68) -> 
B59: =IF(ISBLANK('N1. Demand'!B69),"",'N1. Demand'!B69) -> 
B60: =IF(ISBLANK('N1. Demand'!B70),"",'N1. Demand'!B70) -> 
B61: =IF(ISBLANK('N1. Demand'!B71),"",'N1. Demand'!B71) -> 
B62: =IF(ISBLANK('N1. Demand'!B72),"",'N1. Demand'!B72) -> 
B63: =IF(ISBLANK('N1. Demand'!B73),"",'N1. Demand'!B73) -> 
B64: =IF(ISBLANK('N1. Demand'!B74),"",'N1. Demand'!B74) -> 
B65: =IF(ISBLANK('N1. Demand'!B75),"",'N1. Demand'!B75) -> 
B66: =IF(ISBLANK('N1. Demand'!B76),"",'N1. Demand'!B76) -> 
B67: =IF(ISBLANK('N1. Demand'!B77),"",'N1. Demand'!B77) -> 
B68: =IF(ISBLANK('N1. Demand'!B78),"",'N1. Demand'!B78) -> 
B69: =IF(ISBLANK('N1. Demand'!B79),"",'N1. Demand'!B79) -> 
B70: =IF(ISBLANK('N1. Demand'!B80),"",'N1. Demand'!B80) -> 
B71: =IF(ISBLANK('N1. Demand'!B81),"",'N1. Demand'!B81) -> 
B72: =IF(ISBLANK('N1. Demand'!B82),"",'N1. Demand'!B82) -> 
B73: =IF(ISBLANK('N1. Demand'!B83),"",'N1. Demand'!B83) -> 
B74: =IF(ISBLANK('N1. Demand'!B84),"",'N1. Demand'!B84) -> 
B75: =IF(ISBLANK('N1. Demand'!B85),"",'N1. Demand'!B85) -> 
B76: =IF(ISBLANK('N1. Demand'!B86),"",'N1. Demand'!B86) -> 
B77: =IF(ISBLANK('N1. Demand'!B87),"",'N1. Demand'!B87) -> 
B78: =IF(ISBLANK('N1. Demand'!B88),"",'N1. Demand'!B88) -> 
B79: =IF(ISBLANK('N1. Demand'!B89),"",'N1. Demand'!B89) -> 
B80: =IF(ISBLANK('N1. Demand'!B90),"",'N1. Demand'!B90) -> 
B81: =IF(ISBLANK('N1. Demand'!B91),"",'N1. Demand'!B91) -> 
B82: =IF(ISBLANK('N1. Demand'!B92),"",'N1. Demand'!B92) -> 
B83: =IF(ISBLANK('N1. Demand'!B93),"",'N1. Demand'!B93) -> 
B84: =IF(ISBLANK('N1. Demand'!B94),"",'N1. Demand'!B94) -> 
B85: =IF(ISBLANK('N1. Demand'!B95),"",'N1. Demand'!B95) -> 
B86: Total | C86: =SUM(C11:C85) -> 64057750 | D86: 62449851.76 | E86: 60797909.84 | F86: 61173641.21 | G86: 61587399.04 | H86: 62094497.79 | I86: 62340325.85
B88: F3.1.2 - STAND ALONE COST PER UNIT - BY TARIFF CLASS
C89: STAND ALONE COST PER UNIT
C90: =CONCATENATE("$0's, real ",dms_DollarReal) -> $0's, real June 2021
B91: Tariff Class | C91: =CRCP_y4 -> 2019-20 | D91: =CRCP_y5 -> 2020-21 | E91: =FRCP_y1 -> 2021-22 | F91: =FRCP_y2 -> 2022-23 | G91: =FRCP_y3 -> 2023-24 | H91: =FRCP_y4 -> 2024-25 | I91: =FRCP_y5 -> 2025-26
B92: Volume | E92: 9.749929767 | F92: 10.10207136 | G92: 10.4512669 | H92: 10.81934128 | I92: 11.21492002
B93: Demand | E93: 36.68181175 | F93: 37.07704739 | G93: 36.84245228 | H93: 37.33111245 | I93: 37.42995435
B113: F3.1.3 - AVOIDABLE COST PER UNIT - BY TARIFF CLASS
C114: AVOIDABLE COST PER UNIT
C115: =CONCATENATE("$0's, real ",dms_DollarReal) -> $0's, real June 2021
B116: Tariff Class | C116: =CRCP_y4 -> 2019-20 | D116: =CRCP_y5 -> 2020-21 | E116: =FRCP_y1 -> 2021-22 | F116: =FRCP_y2 -> 2022-23 | G116: =FRCP_y3 -> 2023-24 | H116: =FRCP_y4 -> 2024-25 | I116: =FRCP_y5 -> 2025-26
B117: =IF(ISBLANK(B92),"",B92) -> Volume | E117: 2.635675103 | F117: 2.711920432 | G117: 2.927398047 | H117: 3.008489086 | I117: 3.152067325
B118: =IF(ISBLANK(B93),"",B93) -> Demand | E118: 0.7457294911 | F118: 0.7129584502 | G118: 0.7527650934 | H118: 0.7276159313 | I118: 0.744932155
B139: F3.2 - ANCILLARY REFERENCE SERVICES
C140: REVENUE
C141: =CONCATENATE("$0's, real ",dms_DollarReal) -> $0's, real June 2021
B142: Service Name | C142: =CRCP_y4 -> 2019-20 | D142: =CRCP_y5 -> 2020-21 | E142: =FRCP_y1 -> 2021-22 | F142: =FRCP_y2 -> 2022-23 | G142: =FRCP_y3 -> 2023-24 | H142: =FRCP_y4 -> 2024-25 | I142: =FRCP_y5 -> 2025-26
B143: Request for service | C143: 741 | D143: 720 | E143: 800 | F143: 819.1964659 | G143: 838.8535623 | H143: 858.9823421 | I143: 879.5941237
B144: Special Meter reads | C144: 576976 | D144: 569373.6 | E144: 329990 | F144: 346888.7435 | G144: 364198.7597 | H144: 382247.1422 | I144: 401325.8139
B145: Residential Disconnection fee (less than 6m3/hour meter set) | C145: 139613 | D145: 164992 | E145: 171990 | F145: 180776.1801 | G145: 189884.9895 | H145: 199326.8525 | I145: 209255.442
B146: Business Disconnection fee (greater than 6m3/hour meter set) | C146: 7145 | D146: 20886 | E146: 21420 | F146: 22302.62379 | G146: 23026.53028 | H146: 23965.60734 | I146: 24738.58473
B147: Residential Reconnection fee (less than 6m3/hour meter set) | C147: 27738 | D147: 32634 | E147: 34155 | F147: 35896.16514 | G147: 37748.4103 | H147: 39620.56053 | I147: 41560.82234
B148: Business Reconnection fee (greater than 6m3/hour meter set) | C148: 1207 | D148: 3604 | E148: 3740 | F148: 3886.063235 | G148: 4036.982768 | H148: 4192.907557 | I148: 4353.990912
B149: Decommission & meter removal - residential (less than 6m3/hour meter set) | C149: 204099 | D149: 264616 | E149: 327630 | F149: 406843.6849 | G149: 491777.9009 | H149: 582712.1463 | I149: 679200.5925
B150: Decommission & meter removal - business (greater than 6m3/hour meter set) | C150: 37580 | D150: 49610 | E150: 62730 | F150: 78089.90312 | G150: 94150.8267 | H150: 110937.5695 | I150: 129828.0927
B152: Total | C152: =SUM(C143:C151) -> 995099 | D152: 1106435.6 | E152: =SUM(E143:E151) -> 952455 | F152: =SUM(F143:F151) -> 1075502.56 | G152: 1205663.254 | H152: 1343861.768 | I152: 1491142.933
B155: F3.3 - REBATEABLE SERVICES
C156: REVENUE
C157: =CONCATENATE("$0's, real ",dms_DollarReal) -> $0's, real June 2021
B158: Service Name | C158: =CRCP_y4 -> 2019-20 | D158: =CRCP_y5 -> 2020-21 | E158: =FRCP_y1 -> 2021-22 | F158: =FRCP_y2 -> 2022-23 | G158: =FRCP_y3 -> 2023-24 | H158: =FRCP_y4 -> 2024-25 | I158: =FRCP_y5 -> 2025-26
B165: Total | C165: =SUM(C159:C164) -> 0 | D165: =SUM(D159:D164) -> 0 | E165: 0 | F165: 0 | G165: 0 | H165: 0 | I165: 0
B168: F3.4 - NON-REFERENCE SERVICES
C169: REVENUE
C170: =CONCATENATE("$0's, real ",dms_DollarReal) -> $0's, real June 2021
B171: Service Name | C171: =CRCP_y4 -> 2019-20 | D171: =CRCP_y5 -> 2020-21 | E171: =FRCP_y1 -> 2021-22 | F171: =FRCP_y2 -> 2022-23 | G171: =FRCP_y3 -> 2023-24 | H171: =FRCP_y4 -> 2024-25 | I171: =FRCP_y5 -> 2025-26
B172: Interconnection Service | C172: 0 | D172: 0 | E172: 0 | F172: 0 | G172: 0 | H172: 0 | I172: 0
B173: Negotiated Service | C173: 0 | D173: 0 | E173: 0 | F173: 0 | G173: 0 | H173: 0 | I173: 0
B178: Total | C178: =SUM(C172:C177) -> 0 | D178: =SUM(D172:D177) -> 0 | E178: 0 | F178: 0 | G178: 0 | H178: 0 | I178: 0
B181: F3.5 - TOTAL REVENUE
C182: REVENUE
C183: =CONCATENATE("$0's, real ",dms_DollarReal) -> $0's, real June 2021
C184: =CRCP_y4 -> 2019-20 | D184: =CRCP_y5 -> 2020-21 | E184: =FRCP_y1 -> 2021-22 | F184: =FRCP_y2 -> 2022-23 | G184: =FRCP_y3 -> 2023-24 | H184: =FRCP_y4 -> 2024-25 | I184: =FRCP_y5 -> 2025-26
B185: Total | C185: =SUM(C178,C165,C152,C86) -> 65052849 | D185: 63556287.36 | E185: 61750364.84 | F185: 62249143.77 | G185: 62793062.29 | H185: 63438359.56 | I185: 63831468.78

Sheet F2. Capex
B1: =INDEX(dms_Worksheet_List,MATCH(dms_Model,dms_Model_List)) -> REGULATORY REPORTING STATEMENT
B2: =INDEX(dms_TradingNameFull_List,MATCH(dms_TradingName,dms_TradingName_List)) -> Evoenergy Gas
B3: =dms_Header_Span -> 2019-20 - 2025-26
B4: F2. CAPITAL EXPENDITURE
B7: F2.7 - IMMEDIATE EXPENSING CAPEX
B8: F2.7.1 - ACTUAL - AS INCURRED
C9: EXPENDITURE
C10: $0's, nominal
B11: Asset class | C11: =dms_y1 -> 2019-20 | D11: =dms_y2 -> 2020-21
B42: Total | C42: =SUM(C12:C41) -> 0 | D42: 0

Sheet Additional disclosures
